Boday Name,Service Area,Expense Type,Payment Date,Amount,Supplier Name
Bolton MBC,Childrens Services,Legal Fees,21-Nov-19,"2,760.00",18 St John Street Chambers
Bolton MBC,Childrens Services,Legal Fees,28-Nov-19,"1,560.00",18 St John Street Chambers
Bolton MBC,Childrens Services,Legal Fees,28-Nov-19,"1,500.00",18 St John Street Chambers
Bolton MBC,Childrens Services,Legal Fees,28-Nov-19,"1,500.00",18 St John Street Chambers
Bolton MBC,Childrens Services,Legal Fees,14-Nov-19,"1,140.00",18 St John Street Chambers
Bolton MBC,Childrens Services,Legal Fees,28-Nov-19,"1,140.00",18 St John Street Chambers
Bolton MBC,Childrens Services,Legal Fees,21-Nov-19,780,18 St John Street Chambers
Bolton MBC,Childrens Services,Legal Fees,14-Nov-19,780,18 St John Street Chambers
Bolton MBC,Childrens Services,Legal Fees,14-Nov-19,780,18 St John Street Chambers
Bolton MBC,Childrens Services,Legal Fees,14-Nov-19,780,18 St John Street Chambers
Bolton MBC,Childrens Services,Legal Fees,28-Nov-19,780,18 St John Street Chambers
Bolton MBC,Childrens Services,Legal Fees,14-Nov-19,780,9 St John Street Chambers
Bolton MBC,Adult Services,Residential Provision,05-Nov-19,"4,080.00",Abafields Residential Home
Bolton MBC,Adult Services,Residential Provision,05-Nov-19,"122,572.19",Abbey Healthcare (Farnworth) Limited
Bolton MBC,Adult Services,Other Agency/Contracted Services,07-Nov-19,"62,985.40",Abbey Healthcare (Farnworth) Limited
Bolton MBC,Adult Services,Nursing Provision,05-Nov-19,"5,623.50",Abbey Healthcare (Farnworth) Limited
Bolton MBC,Adult Services,Residential Provision,05-Nov-19,"11,713.20",Abbeycliffe Residential Care Home
Bolton MBC,Adult Services,Residential Provision,05-Nov-19,"1,814.08",Abbeydale Nursing Home
Bolton MBC,Adult Services,Residential Provision,05-Nov-19,"7,878.52",Abbeydale Residential Care Home
Bolton MBC,Childrens Services,Uniforms,28-Nov-19,580.8,Abstract Creative Screenprinting & Embroidery Limited
Bolton MBC,Bolton MBC Balance Sheet,CIS Deductions,25-Nov-19,"3,870.00",Access Doors Systems Ltd
Bolton MBC,Bolton MBC Balance Sheet,CIS Deductions,28-Nov-19,504,Access Doors Systems Ltd
Bolton MBC,Childrens Services,Day To Day Maintenance,28-Nov-19,504,Access Doors Systems Ltd
Bolton MBC,Environmental Services,Operational Equipment Maint,25-Nov-19,690,Access Doors Systems Ltd
Bolton MBC,Chief Executives,General Subscriptions,11-Nov-19,"3,600.00",Access Intelligence Media & Communications Limited
Bolton MBC,Adult Services,Contracted Services,04-Nov-19,"2,900.00",Access to Care Limited
Bolton MBC,Adult Services,Contracted Services,11-Nov-19,"2,900.00",Access to Care Limited
Bolton MBC,Childrens Services,Vol Assoc Grants - General,14-Nov-19,"2,655.00",Access to Care Limited
Bolton MBC,Childrens Services,Vol Assoc Grants - General,14-Nov-19,"2,655.00",Access to Care Limited
Bolton MBC,Childrens Services,Vol Assoc Grants - General,14-Nov-19,"2,655.00",Access to Care Limited
Bolton MBC,Childrens Services,Vol Assoc Grants - General,14-Nov-19,"2,655.00",Access to Care Limited
Bolton MBC,Childrens Services,Vol Assoc Grants - General,14-Nov-19,"2,655.00",Access to Care Limited
Bolton MBC,Childrens Services,Vol Assoc Grants - General,04-Nov-19,885,Access to Care Limited
Bolton MBC,Childrens Services,Vol Assoc Grants - General,04-Nov-19,885,Access to Care Limited
Bolton MBC,Childrens Services,Vol Assoc Grants - General,04-Nov-19,885,Access to Care Limited
Bolton MBC,Childrens Services,Vol Assoc Grants - General,04-Nov-19,885,Access to Care Limited
Bolton MBC,Childrens Services,Vol Assoc Grants - General,04-Nov-19,885,Access to Care Limited
Bolton MBC,Childrens Services,Vol Assoc Grants - General,04-Nov-19,885,Access to Care Limited
Bolton MBC,Childrens Services,Vol Assoc Grants - General,04-Nov-19,885,Access to Care Limited
Bolton MBC,Childrens Services,Vol Assoc Grants - General,04-Nov-19,885,Access to Care Limited
Bolton MBC,Childrens Services,Vol Assoc Grants - General,04-Nov-19,885,Access to Care Limited
Bolton MBC,Childrens Services,Vol Assoc Grants - General,11-Nov-19,885,Access to Care Limited
Bolton MBC,Childrens Services,Vol Assoc Grants - General,11-Nov-19,885,Access to Care Limited
Bolton MBC,Childrens Services,Vol Assoc Grants - General,11-Nov-19,885,Access to Care Limited
Bolton MBC,Childrens Services,Vol Assoc Grants - General,25-Nov-19,885,Access to Care Limited
Bolton MBC,Childrens Services,Vol Assoc Grants - General,25-Nov-19,885,Access to Care Limited
Bolton MBC,Childrens Services,Vol Assoc Grants - General,25-Nov-19,885,Access to Care Limited
Bolton MBC,Childrens Services,Vol Assoc Grants - General,25-Nov-19,885,Access to Care Limited
Bolton MBC,Childrens Services,Vol Assoc Grants - General,11-Nov-19,885,Access to Care Limited
Bolton MBC,Childrens Services,Agency Staff - Other,14-Nov-19,"3,000.00",Ackerman Pierce Limited
Bolton MBC,Childrens Services,Agency Staff - Other,14-Nov-19,"3,000.00",Ackerman Pierce Limited
Bolton MBC,Childrens Services,Agency Staff - Other,14-Nov-19,"3,000.00",Ackerman Pierce Limited
Bolton MBC,Childrens Services,Agency Staff - Other,14-Nov-19,"3,000.00",Ackerman Pierce Limited
Bolton MBC,Childrens Services,Agency Staff - Other,18-Nov-19,"3,000.00",Ackerman Pierce Limited
Bolton MBC,Childrens Services,Agency Staff - Other,21-Nov-19,"2,340.00",Ackerman Pierce Limited
Bolton MBC,Childrens Services,Agency Staff - Other,21-Nov-19,"2,340.00",Ackerman Pierce Limited
Bolton MBC,Childrens Services,Agency Staff - Other,21-Nov-19,"2,340.00",Ackerman Pierce Limited
Bolton MBC,Childrens Services,Agency Staff - Other,28-Nov-19,"2,340.00",Ackerman Pierce Limited
Bolton MBC,Childrens Services,Agency Staff - Other,28-Nov-19,"2,340.00",Ackerman Pierce Limited
Bolton MBC,Childrens Services,Agency Staff - Other,28-Nov-19,"2,340.00",Ackerman Pierce Limited
Bolton MBC,Childrens Services,Agency Staff - Other,25-Nov-19,"2,340.00",Ackerman Pierce Limited
Bolton MBC,Childrens Services,Agency Staff - Other,25-Nov-19,"2,340.00",Ackerman Pierce Limited
Bolton MBC,Childrens Services,Agency Staff - Other,25-Nov-19,"2,340.00",Ackerman Pierce Limited
Bolton MBC,Childrens Services,Agency Staff - Other,28-Nov-19,"2,106.00",Ackerman Pierce Limited
Bolton MBC,Childrens Services,Agency Staff - Other,28-Nov-19,"1,872.00",Ackerman Pierce Limited
Bolton MBC,Childrens Services,Agency Staff - Other,25-Nov-19,"1,638.00",Ackerman Pierce Limited
Bolton MBC,Childrens Services,Agency Staff - Other,18-Nov-19,"1,200.00",Ackerman Pierce Limited
Bolton MBC,Childrens Services,Agency Staff - Other,18-Nov-19,"1,200.00",Ackerman Pierce Limited
Bolton MBC,Housing GRF,Security Systems - Rental,28-Nov-19,"1,482.85",Acorn Environment Services Ltd
Bolton MBC,Housing GRF,Refuse Collection,14-Nov-19,"1,055.18",Acorn Environment Services Ltd
Bolton MBC,Childrens Services,Vol Assoc Grants - General,11-Nov-19,"3,981.33",Acorn House Fostering Services
Bolton MBC,Childrens Services,Vol Assoc Grants - General,25-Nov-19,"3,852.90",Acorn House Fostering Services
Bolton MBC,Childrens Services,Vol Assoc Grants - General,11-Nov-19,"3,788.82",Acorn House Fostering Services
Bolton MBC,Childrens Services,Vol Assoc Grants - General,25-Nov-19,"3,666.60",Acorn House Fostering Services
Bolton MBC,Childrens Services,Inter Agency Fees,14-Nov-19,"27,000.00",Adoption Matters
Bolton MBC,Childrens Services,Other Fees,21-Nov-19,"1,625.20",Adoption Matters
Bolton MBC,Childrens Services,Other Fees,21-Nov-19,850.17,Adoption Matters
Bolton MBC,Childrens Services,Other Fees,21-Nov-19,816.5,Adoption Matters
Bolton MBC,Bolton MBC Balance Sheet,CIS Deductions,14-Nov-19,"38,862.00",Advanced Building (NW) Limited
Bolton MBC,Bolton MBC Balance Sheet,CIS Deductions,14-Nov-19,"4,932.00",Advanced Building (NW) Limited
Bolton MBC,Childrens Services,Day To Day Maintenance,25-Nov-19,"3,888.00",Advanced Building (NW) Limited
Bolton MBC,Childrens Services,Other Fees,07-Nov-19,"4,987.92",Advanced Childcare Assessments Ltd
Bolton MBC,Childrens Services,Other Fees,07-Nov-19,"2,560.26",Advanced Childcare Assessments Ltd
Bolton MBC,Childrens Services,Other Fees,07-Nov-19,"2,290.98",Advanced Childcare Assessments Ltd
Bolton MBC,Childrens Services,Other Fees,07-Nov-19,"2,224.80",Advanced Childcare Assessments Ltd
Bolton MBC,Childrens Services,Other Fees,07-Nov-19,"1,956.00",Advanced Childcare Assessments Ltd
Bolton MBC,Environmental Services,Information and Communication Technology,28-Nov-19,"1,315.80",Advanced Communication Projects Limited
Bolton MBC,Highways ,Work in Progress Additions,07-Nov-19,"9,600.00",Aecom Limited
Bolton MBC,Development & Regeneration,Work in Progress Additions,28-Nov-19,746.4,Aegis Services Limited
Bolton MBC,Bolton MBC Balance Sheet,CIS Deductions,18-Nov-19,"22,492.27",Aggregate Industries UK Limited
Bolton MBC,Bolton MBC Balance Sheet,CIS Deductions,11-Nov-19,"1,140.00",Aggregate Industries UK Limited
Bolton MBC,Bolton MBC Balance Sheet,CIS Deductions,21-Nov-19,"1,137.72",Aggregate Industries UK Limited
Bolton MBC,Bolton MBC Balance Sheet,CIS Deductions,21-Nov-19,"1,137.72",Aggregate Industries UK Limited
Bolton MBC,Bolton MBC Balance Sheet,CIS Deductions,25-Nov-19,"1,040.55",Aggregate Industries UK Limited
Bolton MBC,Bolton MBC Balance Sheet,CIS Deductions,11-Nov-19,876.94,Aggregate Industries UK Limited
Bolton MBC,Bolton MBC Balance Sheet,CIS Deductions,21-Nov-19,855.73,Aggregate Industries UK Limited
Bolton MBC,Bolton MBC Balance Sheet,CIS Deductions,21-Nov-19,818.62,Aggregate Industries UK Limited
Bolton MBC,Bolton MBC Balance Sheet,CIS Deductions,11-Nov-19,684,Aggregate Industries UK Limited
Bolton MBC,Bolton MBC Balance Sheet,CIS Deductions,21-Nov-19,678.21,Aggregate Industries UK Limited
Bolton MBC,Bolton MBC Balance Sheet,CIS Deductions,28-Nov-19,609.86,Aggregate Industries UK Limited
Bolton MBC,Bolton MBC Balance Sheet,CIS Deductions,04-Nov-19,570,Aggregate Industries UK Limited
Bolton MBC,Bolton MBC Balance Sheet,CIS Deductions,04-Nov-19,570,Aggregate Industries UK Limited
Bolton MBC,Environmental Services,Direct Materials,21-Nov-19,"1,365.72",Aggregate Industries UK Limited
Bolton MBC,Environmental Services,Direct Materials,28-Nov-19,"1,311.76",Aggregate Industries UK Limited
Bolton MBC,Environmental Services,Direct Materials,21-Nov-19,"1,281.68",Aggregate Industries UK Limited
Bolton MBC,Environmental Services,Direct Materials,21-Nov-19,"1,258.63",Aggregate Industries UK Limited
Bolton MBC,Environmental Services,Direct Materials,04-Nov-19,"1,140.00",Aggregate Industries UK Limited
Bolton MBC,Environmental Services,Direct Materials,21-Nov-19,"1,140.00",Aggregate Industries UK Limited
Bolton MBC,Environmental Services,Direct Materials,21-Nov-19,"1,140.00",Aggregate Industries UK Limited
Bolton MBC,Environmental Services,Direct Materials,11-Nov-19,"1,137.72",Aggregate Industries UK Limited
Bolton MBC,Environmental Services,General Materials,28-Nov-19,912,Aggregate Industries UK Limited
Bolton MBC,Environmental Services,Direct Materials,25-Nov-19,912,Aggregate Industries UK Limited
Bolton MBC,Environmental Services,Direct Materials,25-Nov-19,909.72,Aggregate Industries UK Limited
Bolton MBC,Environmental Services,Direct Materials,25-Nov-19,909.72,Aggregate Industries UK Limited
Bolton MBC,Environmental Services,Direct Materials,28-Nov-19,843.55,Aggregate Industries UK Limited
Bolton MBC,Environmental Services,Direct Materials,21-Nov-19,813.17,Aggregate Industries UK Limited
Bolton MBC,Environmental Services,Direct Materials,07-Nov-19,798,Aggregate Industries UK Limited
Bolton MBC,Environmental Services,Direct Materials,21-Nov-19,714,Aggregate Industries UK Limited
Bolton MBC,Environmental Services,Direct Materials,07-Nov-19,703.8,Aggregate Industries UK Limited
Bolton MBC,Environmental Services,Direct Materials,04-Nov-19,703.8,Aggregate Industries UK Limited
Bolton MBC,Environmental Services,Direct Materials,21-Nov-19,703.8,Aggregate Industries UK Limited
Bolton MBC,Environmental Services,Direct Materials,11-Nov-19,681.72,Aggregate Industries UK Limited
Bolton MBC,Environmental Services,Direct Materials,21-Nov-19,627,Aggregate Industries UK Limited
Bolton MBC,Environmental Services,General Materials,28-Nov-19,570,Aggregate Industries UK Limited
Bolton MBC,Environmental Services,Direct Materials,25-Nov-19,570,Aggregate Industries UK Limited
Bolton MBC,Highways ,Inventory AP Accrual,28-Nov-19,"1,438.98",Aggregate Industries UK Limited
Bolton MBC,Highways ,Inv Val Materials,25-Nov-19,"1,012.32",Aggregate Industries UK Limited
Bolton MBC,Highways ,Inventory AP Accrual,07-Nov-19,883.9,Aggregate Industries UK Limited
Bolton MBC,Highways ,Inventory AP Accrual,11-Nov-19,873.84,Aggregate Industries UK Limited
Bolton MBC,Highways ,Inventory AP Accrual,25-Nov-19,872.26,Aggregate Industries UK Limited
Bolton MBC,Highways ,Inventory AP Accrual,25-Nov-19,616.81,Aggregate Industries UK Limited
Bolton MBC,Highways ,Inventory AP Accrual,21-Nov-19,572.31,Aggregate Industries UK Limited
Bolton MBC,Highways ,Inventory AP Accrual,25-Nov-19,547.26,Aggregate Industries UK Limited
Bolton MBC,Adult Services,Other Fees,21-Nov-19,"25,038.72",Agilisys Limited
Bolton MBC,Adult Services,Other Fees,21-Nov-19,"1,550.16",Agilisys Limited
Bolton MBC,Chief Executives,Microsoft Licences,21-Nov-19,"801,166.19",Agilisys Limited
Bolton MBC,Chief Executives,Agilisys - Managed Service,21-Nov-19,"331,872.98",Agilisys Limited
Bolton MBC,Chief Executives,Other Fees,28-Nov-19,"74,079.67",Agilisys Limited
Bolton MBC,Chief Executives,Other Fees,28-Nov-19,"39,200.23",Agilisys Limited
Bolton MBC,Chief Executives,Agilisys - Transformation,21-Nov-19,"18,535.02",Agilisys Limited
Bolton MBC,Chief Executives,Centrex Line Rental,21-Nov-19,"15,403.31",Agilisys Limited
Bolton MBC,Chief Executives,Agilisys - Minor Project Works,21-Nov-19,"15,115.04",Agilisys Limited
Bolton MBC,Chief Executives,Telephones - Direct Calls,21-Nov-19,"14,848.19",Agilisys Limited
Bolton MBC,Chief Executives,Modems and Lines,28-Nov-19,"12,458.65",Agilisys Limited
Bolton MBC,Chief Executives,Agilisys - Minor Project Works,21-Nov-19,"11,689.20",Agilisys Limited
Bolton MBC,Development & Regeneration,Other Fees,28-Nov-19,"1,747.96",Agilisys Limited
Bolton MBC,Bolton MBC Balance Sheet,CIS Deductions,18-Nov-19,"4,182.31",AGR Building & Fencing Contractors Limited
Bolton MBC,Childrens Services,Day To Day Maintenance,11-Nov-19,"24,885.48",AGR Building & Fencing Contractors Limited
Bolton MBC,Childrens Services,Day To Day Maintenance,04-Nov-19,"4,927.09",AGR Building & Fencing Contractors Limited
Bolton MBC,Childrens Services,Day To Day Maintenance,04-Nov-19,"2,659.42",AGR Building & Fencing Contractors Limited
Bolton MBC,Adult Services,Residential Provision,05-Nov-19,"7,220.00",Agricola House
Bolton MBC,Adult Services,Clients Aids & Adaptations,25-Nov-19,"2,835.36",Aidapt Bathrooms Ltd
Bolton MBC,Adult Services,Clients Aids & Adaptations,21-Nov-19,"1,611.53",Aidapt Bathrooms Ltd
Bolton MBC,Adult Services,Clients Aids & Adaptations,21-Nov-19,900,Aidapt Bathrooms Ltd
Bolton MBC,Adult Services,Clients Aids & Adaptations,21-Nov-19,772.2,Aidapt Bathrooms Ltd
Bolton MBC,Adult Services,Clients Aids & Adaptations,07-Nov-19,675,Aidapt Bathrooms Ltd
Bolton MBC,Development & Regeneration,Work in Progress Additions,25-Nov-19,"1,800.00",Ainsworth Surveying Services Limited
Bolton MBC,Environmental Services,Contracted Services,04-Nov-19,528,All 4 Pets Limited#Leigh Dogs And Cats Home
Bolton MBC,Adult Services,Training Exps Tuition Fees,11-Nov-19,"1,389.31",Allintus Limited
Bolton MBC,Chief Executives,Other Fees,11-Nov-19,"8,883.38",Allpay.net Limited
Bolton MBC,Chief Executives,Other Fees,11-Nov-19,"2,256.46",Allpay.net Limited
Bolton MBC,Chief Executives,Other Fees,11-Nov-19,988.45,Allpay.net Limited
Bolton MBC,Environmental Services,Engineering Work,14-Nov-19,"2,003.52",Allroads Training Limited
Bolton MBC,Environmental Services,Engineering Work,14-Nov-19,607.8,Allroads Training Limited
Bolton MBC,Environmental Services,Vehicle Fuel,11-Nov-19,"52,338.55",Allstar Business Solutions
Bolton MBC,Environmental Services,Vehicle Fuel,25-Nov-19,"51,250.19",Allstar Business Solutions
Bolton MBC,Housing GRF,Other Security Expenses,14-Nov-19,"1,253.16",Alsecure Group Ltd
Bolton MBC,Housing GRF,Other Security Expenses,07-Nov-19,"1,189.44",Alsecure Group Ltd
Bolton MBC,Childrens Services,Contracted Services,25-Nov-19,600,Alston Associates
Bolton MBC,Highways ,Inventory AP Accrual,07-Nov-19,"4,020.00",Alto Bollards (Newcastle) Limited
Bolton MBC,Environmental Services,Operational Equipment Purchase,25-Nov-19,624,Aluminium Access Products Ltd
Bolton MBC,Environmental Services,Artistes Fees,04-Nov-19,"9,196.80",Amande Concerts Limited
Bolton MBC,Childrens Services,Vol Assoc Grants - General,18-Nov-19,"14,750.00",Amber Family Limited
Bolton MBC,Public Health,Room Hire,21-Nov-19,589.92,Anderton Centre-LOAI Ltd
Bolton MBC,Environmental Services,Horticultural Materials,18-Nov-19,541.87,Anon Design & Publishing Ltd
Bolton MBC,Adult Services,Residential Provision,05-Nov-19,"4,536.00",Ansar Projects
Bolton MBC,Environmental Services,Direct Materials,21-Nov-19,"1,932.72",Anthony Axford Ltd
Bolton MBC,Adult Services,Catering Provisions-Food,07-Nov-19,"1,253.54",Apetito Limited
Bolton MBC,Adult Services,Catering Provisions-Food,21-Nov-19,"1,089.31",Apetito Limited
Bolton MBC,Adult Services,Catering Provisions-Food,14-Nov-19,"1,067.51",Apetito Limited
Bolton MBC,Adult Services,Catering Provisions-Food,28-Nov-19,940.74,Apetito Limited
Bolton MBC,Adult Services,Catering Provisions-Food,07-Nov-19,856.36,Apetito Limited
Bolton MBC,Adult Services,Catering Provisions-Food,04-Nov-19,801.1,Apetito Limited
Bolton MBC,Adult Services,Catering Provisions-Food,14-Nov-19,773.12,Apetito Limited
Bolton MBC,Adult Services,Catering Provisions-Food,14-Nov-19,768.64,Apetito Limited
Bolton MBC,Adult Services,Catering Provisions-Food,21-Nov-19,720.71,Apetito Limited
Bolton MBC,Adult Services,Catering Provisions-Food,25-Nov-19,693.48,Apetito Limited
Bolton MBC,Adult Services,Catering Provisions-Food,28-Nov-19,687.14,Apetito Limited
Bolton MBC,Adult Services,Catering Provisions-Food,07-Nov-19,659.34,Apetito Limited
Bolton MBC,Childrens Services,Vol Assoc Grants - General,28-Nov-19,"15,642.86",Area Camden Limited
Bolton MBC,Chief Executives,Staff/Officers - Other Fares,04-Nov-19,"1,225.00",Arriva Rail North Ltd
Bolton MBC,Environmental Services,Caretaking/Cleaning Equipment,25-Nov-19,900,Arrow County Supplies Limited
Bolton MBC,Environmental Services,Artistes Fees,07-Nov-19,"3,944.40",Artistes International Management
Bolton MBC,Public Health,Contracted Services,11-Nov-19,936.46,Asda Pharmacy
Bolton MBC,Adult Services,Residential Provision,05-Nov-19,"2,588.00",Ashton View Nursing Home
Bolton MBC,Adult Services,Residential Provision,05-Nov-19,"46,324.52",Astley Grange Homes Limited
Bolton MBC,Adult Services,Contracted Services,11-Nov-19,662.5,Autistic Society Greater Manchester Area
Bolton MBC,Childrens Services,Contracted Services,21-Nov-19,"2,500.00",Autistic Society Greater Manchester Area
Bolton MBC,Bolton MBC Balance Sheet,CIS Deductions,07-Nov-19,722.13,Automatic Alarms Limited
Bolton MBC,Childrens Services,Agency Staff - Full-time,07-Nov-19,810,Axcis Education Recruitment
Bolton MBC,Childrens Services,Agency Staff - Full-time,18-Nov-19,810,Axcis Education Recruitment
Bolton MBC,Childrens Services,Agency Staff - Full-time,25-Nov-19,810,Axcis Education Recruitment
Bolton MBC,Childrens Services,Agency Staff - Full-time,25-Nov-19,810,Axcis Education Recruitment
Bolton MBC,Childrens Services,Agency Staff - Full-time,28-Nov-19,810,Axcis Education Recruitment
Bolton MBC,Childrens Services,Agency Staff - Full-time,28-Nov-19,810,Axcis Education Recruitment
Bolton MBC,Childrens Services,Agency Staff - Full-time,07-Nov-19,682.74,Axcis Education Recruitment
Bolton MBC,Childrens Services,Agency Staff - Full-time,18-Nov-19,682.74,Axcis Education Recruitment
Bolton MBC,Childrens Services,Agency Staff - Full-time,25-Nov-19,682.74,Axcis Education Recruitment
Bolton MBC,Childrens Services,Agency Staff - Full-time,28-Nov-19,682.74,Axcis Education Recruitment
Bolton MBC,Childrens Services,Agency Staff - Full-time,18-Nov-19,648,Axcis Education Recruitment
Bolton MBC,Childrens Services,Agency Staff - Full-time,07-Nov-19,546.19,Axcis Education Recruitment
Bolton MBC,Adult Services,Contracted Services,11-Nov-19,"76,596.00",Backup North West#BYPHS
Bolton MBC,Childrens Services,Vol Assoc Grants - General,21-Nov-19,"2,963.74",Backup North West#BYPHS
Bolton MBC,Childrens Services,Vol Assoc Grants - General,07-Nov-19,"2,459.36",Backup North West#BYPHS
Bolton MBC,Adult Services,Residential Provision,05-Nov-19,"2,288.20",Bank House Care Home#1
Bolton MBC,Chief Executives,Office Stationery,07-Nov-19,"2,141.28",Banner Group Limited
Bolton MBC,Chief Executives,Office Stationery,07-Nov-19,782.4,Banner Group Limited
Bolton MBC,Adult Services,Residential Provision,05-Nov-19,"24,870.20",Bannister Farm Cottage
Bolton MBC,Adult Services,Residential Provision,05-Nov-19,"2,048.00",Barley Brook Care Home
Bolton MBC,Childrens Services,Inter Agency Fees,28-Nov-19,"51,000.00",Barnardo's
Bolton MBC,Childrens Services,Vol Assoc Grants - General,07-Nov-19,"3,410.00",Barnardo's
Bolton MBC,Childrens Services,Vol Assoc Grants - General,07-Nov-19,"3,307.70",Barnardo's
Bolton MBC,Childrens Services,Vol Assoc Grants - General,21-Nov-19,"3,300.00",Barnardo's
Bolton MBC,Childrens Services,Vol Assoc Grants - General,21-Nov-19,"3,201.00",Barnardo's
Bolton MBC,Environmental Services,Training Exps Tuition Fees,21-Nov-19,"1,088.04",Bartec Auto ID Ltd
Bolton MBC,Chief Executives,Woodland Maintenance,18-Nov-19,500,Bat Surveys DL
Bolton MBC,Adult Services,Contracted Services,04-Nov-19,"2,900.00",Bateman Street
Bolton MBC,Adult Services,Contracted Services,11-Nov-19,"2,900.00",Bateman Street
Bolton MBC,Environmental Services,General Materials,07-Nov-19,564.44,Bathgate Silica Sand Ltd
Bolton MBC,Childrens Services,Contracted Services,18-Nov-19,"1,042.50",Baxter Rhodes Music
Bolton MBC,Bolton MBC Balance Sheet,CIS Deductions,11-Nov-19,868.04,BBR Roofing Limited
Bolton MBC,Adult Services,Nursing Provision,05-Nov-19,"8,007.43",Bedford Residential Nursing Care Home
Bolton MBC,Adult Services,Residential Provision,05-Nov-19,"2,066.96",Beechfield Lodge#Anchor Trust
Bolton MBC,Adult Services,Residential Provision,05-Nov-19,"18,820.56",Beechville Care Home
Bolton MBC,Environmental Services,Direct Materials,14-Nov-19,"1,459.20",Benchmark Building Supplies Ltd
Bolton MBC,Highways ,Inventory AP Accrual,21-Nov-19,937.64,Benchmark Building Supplies Ltd
Bolton MBC,Adult Services,Nursing Provision,05-Nov-19,"16,097.76",Berkeley House
Bolton MBC,Development & Regeneration,Book Fund Expenditure,28-Nov-19,"6,707.94",Bertram Trading Ltd#Bertram Library Services
Bolton MBC,Bolton MBC Balance Sheet,CIS Deductions,11-Nov-19,"115,104.34",Bethell Construction Ltd
Bolton MBC,Bolton MBC Balance Sheet,CIS Deductions,11-Nov-19,"67,033.85",Bethell Construction Ltd
Bolton MBC,Bolton MBC Balance Sheet,CIS Deductions,11-Nov-19,"24,545.06",Bethell Construction Ltd
Bolton MBC,Bolton MBC Balance Sheet,CIS Deductions,11-Nov-19,"21,193.92",Bethell Construction Ltd
Bolton MBC,Bolton MBC Balance Sheet,CIS Deductions,28-Nov-19,"12,049.68",Bethell Construction Ltd
Bolton MBC,Environmental Services,Engineering Work,18-Nov-19,"6,326.09",Bethell Construction Ltd
Bolton MBC,Highways ,Work in Progress Additions,11-Nov-19,"26,281.04",Bethell Construction Ltd
Bolton MBC,Highways ,Work in Progress Additions,07-Nov-19,"4,104.06",Bethell Construction Ltd
Bolton MBC,Childrens Services,Other Fees,28-Nov-19,540,Big Comedy Shop
Bolton MBC,Housing GRF,Op Equip Furniture Purchase,21-Nov-19,912,Birkdale Design Ltd
Bolton MBC,Housing GRF,Op Equip Furniture Purchase,21-Nov-19,654,Birkdale Design Ltd
Bolton MBC,Childrens Services,Vol Assoc Grants - General,18-Nov-19,"5,926.58",Birtenshaw
Bolton MBC,Childrens Services,Vol Assoc Grants - General,07-Nov-19,"2,650.00",Birtenshaw
Bolton MBC,Childrens Services,Marketing,21-Nov-19,600,Blackburn with Darwen Borough Council
Bolton MBC,Adult Services,Residential Provision,05-Nov-19,"58,419.17",Blackrod House Limited
Bolton MBC,Adult Services,Other Agency/Contracted Services,04-Nov-19,"2,131.92",Blackrod House Limited
Bolton MBC,Chief Executives,Miscellaneous Grants,28-Nov-19,"3,947.00",Blackrod Sports And Community Centre
Bolton MBC,Adult Services,Residential Provision,05-Nov-19,"5,658.96",Bluebell Cottage Veedale
Bolton MBC,Childrens Services,Contracted Services,18-Nov-19,"1,814.60",BOBTEACHES
Bolton MBC,Adult Services,Contracted Services,04-Nov-19,"22,756.00",Bolton Carers Support
Bolton MBC,Adult Services,Contracted Services,04-Nov-19,"7,500.00",Bolton Carers Support
Bolton MBC,Bolton MBC Balance Sheet,CIS Deductions,18-Nov-19,894.61,Bolton Carpet Warehouse
Bolton MBC,Housing GRF,Operational Equipment Purchase,18-Nov-19,"1,159.50",Bolton Carpet Warehouse
Bolton MBC,Housing GRF,Operational Equipment Purchase,18-Nov-19,"1,079.78",Bolton Carpet Warehouse
Bolton MBC,Housing GRF,Operational Equipment Purchase,18-Nov-19,928.48,Bolton Carpet Warehouse
Bolton MBC,Housing GRF,Operational Equipment Purchase,18-Nov-19,750.6,Bolton Carpet Warehouse
Bolton MBC,Housing GRF,Operational Equipment Purchase,04-Nov-19,750.6,Bolton Carpet Warehouse
Bolton MBC,Housing GRF,Operational Equipment Purchase,04-Nov-19,750.6,Bolton Carpet Warehouse
Bolton MBC,Housing GRF,Operational Equipment Purchase,04-Nov-19,750.6,Bolton Carpet Warehouse
Bolton MBC,Housing GRF,Operational Equipment Purchase,18-Nov-19,750.6,Bolton Carpet Warehouse
Bolton MBC,Housing GRF,Operational Equipment Purchase,18-Nov-19,750.6,Bolton Carpet Warehouse
Bolton MBC,Housing GRF,Operational Equipment Purchase,18-Nov-19,750.6,Bolton Carpet Warehouse
Bolton MBC,Housing GRF,Operational Equipment Purchase,18-Nov-19,631.8,Bolton Carpet Warehouse
Bolton MBC,Housing GRF,Operational Equipment Purchase,04-Nov-19,599.29,Bolton Carpet Warehouse
Bolton MBC,Housing GRF,Operational Equipment Purchase,04-Nov-19,553.18,Bolton Carpet Warehouse
Bolton MBC,Housing GRF,Operational Equipment Purchase,04-Nov-19,543.42,Bolton Carpet Warehouse
Bolton MBC,Housing GRF,Operational Equipment Purchase,04-Nov-19,526.61,Bolton Carpet Warehouse
Bolton MBC,Childrens Services,Agency Staff - Full-time,18-Nov-19,995,Bolton College#Was Community College
Bolton MBC,Development & Regeneration,Contracted Services,26-Nov-19,"163,862.00",Bolton College#Was Community College
Bolton MBC,Development & Regeneration,Contracted Services,29-Nov-19,"102,869.90",Bolton Community Leisure Limited
Bolton MBC,Chief Executives,Marketing,28-Nov-19,"3,750.00",Bolton Community Radio CIC#Bolton FM CIC
Bolton MBC,Childrens Services,Contracted Services,21-Nov-19,"3,750.00",Bolton Council Of Mosques
Bolton MBC,Public Health,Contracted Services,11-Nov-19,"15,242.75",Bolton CVS#Bolton Community & Voluntary Services
Bolton MBC,Chief Executives,Miscellaneous Grants,25-Nov-19,827,Bolton Green Umbrella
Bolton MBC,Chief Executives,Miscellaneous Grants,28-Nov-19,"19,993.17",Bolton Hindu Forum
Bolton MBC,Chief Executives,Miscellaneous Grants,21-Nov-19,"5,400.00",Bolton Interfaith Council
Bolton MBC,Childrens Services,Contracted Services,14-Nov-19,"21,043.50",Bolton Lads & Girls Club
Bolton MBC,Childrens Services,Contracted Services,18-Nov-19,"7,500.00",Bolton Lads & Girls Club
Bolton MBC,Childrens Services,Contracted Services,28-Nov-19,"7,500.00",Bolton Lads & Girls Club
Bolton MBC,Chief Executives,Election Expenses,25-Nov-19,"12,000.00",Bolton Middlebrook Leisure Trust#Bolton Arena
Bolton MBC,Chief Executives,Election Expenses,25-Nov-19,"4,616.64",Bolton Middlebrook Leisure Trust#Bolton Arena
Bolton MBC,Adult Services,Contracted Services,11-Nov-19,"1,903.00",Bolton New Care Limited T/A Home Instead Senior Care
Bolton MBC,Adult Services,Contracted Services,25-Nov-19,"1,717.60",Bolton New Care Limited T/A Home Instead Senior Care
Bolton MBC,Adult Services,Contracted Services,11-Nov-19,"1,716.80",Bolton New Care Limited T/A Home Instead Senior Care
Bolton MBC,Adult Services,Partnership Staff,28-Nov-19,"125,000.00",Bolton NHS Foundation Trust
Bolton MBC,Adult Services,Partnership Staff,28-Nov-19,"11,300.00",Bolton NHS Foundation Trust
Bolton MBC,Adult Services,Partnership Staff,28-Nov-19,"2,765.08",Bolton NHS Foundation Trust
Bolton MBC,Adult Services,Partnership Staff,28-Nov-19,"2,122.00",Bolton NHS Foundation Trust
Bolton MBC,Chief Executives,Training Exps Tuition Fees,07-Nov-19,"2,400.00",Bolton NHS Foundation Trust
Bolton MBC,Childrens Services,Vol Assoc Grants - General,28-Nov-19,"16,583.33",Bolton NHS Foundation Trust
Bolton MBC,Public Health,Contracted Services,28-Nov-19,"743,250.00",Bolton NHS Foundation Trust
Bolton MBC,Public Health,Vol Assoc Grants - General,28-Nov-19,"127,291.86",Bolton NHS Foundation Trust
Bolton MBC,Public Health,Vol Assoc Grants - General,28-Nov-19,"9,191.25",Bolton NHS Foundation Trust
Bolton MBC,Chief Executives,Miscellaneous Grants,07-Nov-19,"5,394.50",Bolton Shopmobility#Community Care Options
Bolton MBC,Childrens Services,Other Fees,28-Nov-19,540,Bolton Tuition Centre
Bolton MBC,Childrens Services,Other Fees,28-Nov-19,540,Bolton Tuition Centre
Bolton MBC,Childrens Services,Other Fees,28-Nov-19,540,Bolton Tuition Centre
Bolton MBC,Childrens Services,Training Exps Tuition Fees,07-Nov-19,750,Bolton Under Fives Forum#BUFF
Bolton MBC,Childrens Services,Other Fees,14-Nov-19,"14,925.40",Bolton Whites Hotel
Bolton MBC,Public Health,Contracted Services,11-Nov-19,584.38,Boots The Chemist
Bolton MBC,Childrens Services,Training Exps Tuition Fees,11-Nov-19,632.1,Brathay Services Limited
Bolton MBC,Adult Services,Residential Provision,05-Nov-19,"2,112.20",Bridge House Residential Care Home
Bolton MBC,Adult Services,Contracted Services,14-Nov-19,"3,635.00",Bridgewater Home Care
Bolton MBC,Adult Services,Contracted Services,14-Nov-19,"1,890.00",Bridgewater Home Care
Bolton MBC,Adult Services,Contracted Services,14-Nov-19,742,Bridgewater Home Care
Bolton MBC,Chief Executives,General Subscriptions,04-Nov-19,"1,566.00",Bright Interactive Limited
Bolton MBC,Childrens Services,Fees/Expenses Schools,21-Nov-19,"2,765.00",Brighter Sound Ltd
Bolton MBC,Environmental Services,Uniforms,18-Nov-19,"2,356.74",British Bespoke Workwear
Bolton MBC,Adult Services,Residential Provision,05-Nov-19,"2,200.00",Brookfield Residential Care Home Ltd
Bolton MBC,Adult Services,Residential Provision,05-Nov-19,"13,910.24",Brookvale
Bolton MBC,Adult Services,Residential Provision,05-Nov-19,"1,866.96",Broughton House#EPH
Bolton MBC,Adult Services,Residential Provision,05-Nov-19,"3,863.96",Browfield Residential Care Home
Bolton MBC,Development & Regeneration,Work in Progress Additions,25-Nov-19,"4,582.80",Building Design Partnership Ltd
Bolton MBC,Environmental Services,Contracted Services,21-Nov-19,"5,256.00",Bulky Bob's 2015 Limited
Bolton MBC,Adult Services,Nursing Provision,05-Nov-19,"16,893.30",Burrswood House
Bolton MBC,Adult Services,Residential Provision,05-Nov-19,"2,741.40",Burrswood House
Bolton MBC,Childrens Services,Educational Visits,28-Nov-19,"3,274.74",Butlins Skyline Ltd#Butlins#Bourne Leisure Ltd
Bolton MBC,Childrens Services,Educational Visits,28-Nov-19,"2,953.24",Butlins Skyline Ltd#Butlins#Bourne Leisure Ltd
Bolton MBC,Childrens Services,Vol Assoc Grants - General,14-Nov-19,"7,164.00",By The Bridge North West
Bolton MBC,Childrens Services,Vol Assoc Grants - General,14-Nov-19,"3,766.50",By The Bridge North West
Bolton MBC,Environmental Services,Operational Equipment Maint,28-Nov-19,"1,310.40",C A S Products Limited
Bolton MBC,Bolton MBC Balance Sheet,CIS Deductions,25-Nov-19,503.1,C Horrocks & Sons Limited
Bolton MBC,Adult Services,Residential Provision,05-Nov-19,"9,818.40",Calvert House
Bolton MBC,Childrens Services,Vol Assoc Grants - General,07-Nov-19,"29,571.30",Cambian Childcare Limited
Bolton MBC,Childrens Services,Vol Assoc Grants - General,07-Nov-19,"23,250.00",Cambian Childcare Limited
Bolton MBC,Childrens Services,Vol Assoc Grants - General,07-Nov-19,"22,500.00",Cambian Childcare Limited
Bolton MBC,Childrens Services,Vol Assoc Grants - General,07-Nov-19,"22,500.00",Cambian Childcare Limited
Bolton MBC,Childrens Services,Vol Assoc Grants - General,07-Nov-19,"22,500.00",Cambian Childcare Limited
Bolton MBC,Childrens Services,Vol Assoc Grants - General,07-Nov-19,"22,500.00",Cambian Childcare Limited
Bolton MBC,Childrens Services,Vol Assoc Grants - General,07-Nov-19,"19,285.80",Cambian Childcare Limited
Bolton MBC,Childrens Services,Vol Assoc Grants - General,07-Nov-19,"16,757.07",Cambian Childcare Limited
Bolton MBC,Childrens Services,Vol Assoc Grants - General,07-Nov-19,"4,500.00",Cambian Childcare Limited
Bolton MBC,Adult Services,Residential Provision,05-Nov-19,"5,856.60",Cameron House Care Home
Bolton MBC,Chief Executives,Computer Software,21-Nov-19,"5,642.66",Capita Business Services Limited
Bolton MBC,Adult Services,Nursing Provision,05-Nov-19,"3,968.00",Carders Court Care Home
Bolton MBC,Adult Services,Cleaning Materials,28-Nov-19,675.42,Care Corner Limited
Bolton MBC,Adult Services,Cleaning Materials,28-Nov-19,531.66,Care Corner Limited
Bolton MBC,Childrens Services,Vol Assoc Grants - General,18-Nov-19,"10,827.99",Care Today Childrens Services
Bolton MBC,Adult Services,Contracted Services,14-Nov-19,"11,280.64",Caring Alternatives Limited
Bolton MBC,Adult Services,Contracted Services,14-Nov-19,"2,489.80",Caring Alternatives Limited
Bolton MBC,Childrens Services,Inter Agency Fees,28-Nov-19,"51,000.00",Caritas Care Ltd
Bolton MBC,Childrens Services,Inter Agency Fees,14-Nov-19,"2,214.29",Caritas Care Ltd
Bolton MBC,Adult Services,Residential Provision,05-Nov-19,"1,819.40",Carr Bank House
Bolton MBC,Adult Services,Clients Aids & Adaptations,21-Nov-19,"2,381.18",Cefndy Healthcare#Cefndy Enterprises
Bolton MBC,Childrens Services,Legal Fees,18-Nov-19,900,Central Chambers
Bolton MBC,Environmental Services,Contracted Services,25-Nov-19,"1,303.89",Centurion Hydraulics Ltd
Bolton MBC,Environmental Services,Contracted Services,07-Nov-19,954.84,Centurion Hydraulics Ltd
Bolton MBC,Chief Executives,Management Fee,11-Nov-19,"189,213.78",CH Bolton Limited
Bolton MBC,Chief Executives,Management Fees,28-Nov-19,"11,538.58",CH Bolton Limited
Bolton MBC,Childrens Services,Agency Staff - Other,11-Nov-19,"1,465.20",Charles Hunter Associates Limited
Bolton MBC,Childrens Services,Agency Staff - Other,11-Nov-19,"1,465.20",Charles Hunter Associates Limited
Bolton MBC,Childrens Services,Agency Staff - Other,11-Nov-19,"1,465.20",Charles Hunter Associates Limited
Bolton MBC,Environmental Services,Plant Hire,21-Nov-19,900,Charltons Sweeper Hire Limited
Bolton MBC,Environmental Services,Plant Hire,21-Nov-19,510,Charltons Sweeper Hire Limited
Bolton MBC,Adult Services,Private Contracted Services,28-Nov-19,"15,350.71",Cheshire Centre for Independent Living
Bolton MBC,Adult Services,Private Contracted Services,04-Nov-19,"14,448.00",Cheshire Centre for Independent Living
Bolton MBC,Childrens Services,Vol Assoc Grants - General,25-Nov-19,"4,017.72",Child Action Northwest
Bolton MBC,Childrens Services,Contracted Services,28-Nov-19,"1,412.71",Child Action Northwest
Bolton MBC,Childrens Services,Other Fees,07-Nov-19,"1,192.75",Child in Mind Ltd
Bolton MBC,Childrens Services,Other Fees,11-Nov-19,626.98,Child in Mind Ltd
Bolton MBC,Adult Services,Residential Provision,05-Nov-19,"25,200.00",Chorley House
Bolton MBC,Adult Services,Residential Provision,05-Nov-19,"2,869.32",Chorley Lodge Residential Care Home
Bolton MBC,Adult Services,Residential Provision,05-Nov-19,"5,529.72",Church View
Bolton MBC,Chief Executives,Other Fees,18-Nov-19,"1,000.00",Churches on the Mount
Bolton MBC,Development & Regeneration,General Subscriptions,21-Nov-19,600,CILIP
Bolton MBC,Chief Executives,Training Exps Tuition Fees,07-Nov-19,"4,244.70",City & Guilds of London Institute
Bolton MBC,Development & Regeneration,Computer Maintenance,07-Nov-19,"23,400.00",Civica UK Ltd
Bolton MBC,Environmental Services,General Materials,07-Nov-19,540,Civils & Lintels
Bolton MBC,Highways ,Inventory AP Accrual,14-Nov-19,640.21,Civils & Lintels
Bolton MBC,Childrens Services,Marketing,07-Nov-19,"3,300.00",Clear Channel UK Limited
Bolton MBC,Environmental Services,Day To Day Maintenance,21-Nov-19,"1,710.00",Cleveland Sitesafe Ltd
Bolton MBC,Chief Executives,Staff Hotel Expenses,21-Nov-19,"2,161.60",Click Travel Limited
Bolton MBC,Childrens Services,Staff/Officers -  Rail Fares,21-Nov-19,"3,270.97",Click Travel Limited
Bolton MBC,Childrens Services,Office Stationery,18-Nov-19,"2,280.80",Click Travel Limited
Bolton MBC,Childrens Services,Contracted Services,18-Nov-19,"1,749.25",Clitheroe Guitar Studio
Bolton MBC,Adult Services,Information and Communication Technology,21-Nov-19,"4,249.37",CM2000 Care Management#HAS Technology Limited
Bolton MBC,Development & Regeneration,Other Fees,21-Nov-19,"14,954.89",CMS LLP
Bolton MBC,Development & Regeneration,Legal Fees,07-Nov-19,"1,563.36",CMS LLP
Bolton MBC,Environmental Services,Other Fees,18-Nov-19,698.06,Cobalt Telephone Technologies Ltd
Bolton MBC,Environmental Services,Direct Materials,21-Nov-19,"1,847.81",Colas Ltd
Bolton MBC,Environmental Services,Transport Hire,18-Nov-19,"2,745.60",Collett Transport Services Ltd#Specialist Fleet Services#CTS
Bolton MBC,Environmental Services,Transport Hire,11-Nov-19,"2,246.40",Collett Transport Services Ltd#Specialist Fleet Services#CTS
Bolton MBC,Childrens Services,Vol Assoc Grants - General,04-Nov-19,"21,142.00",Companion Support Services Limited
Bolton MBC,Childrens Services,Vol Assoc Grants - General,04-Nov-19,"19,990.66",Companion Support Services Limited
Bolton MBC,Childrens Services,Vol Assoc Grants - General,14-Nov-19,"3,342.69",Compass Fostering North Limited
Bolton MBC,Childrens Services,Vol Assoc Grants - General,14-Nov-19,"3,171.30",Compass Fostering North Limited
Bolton MBC,Chief Executives,Recruitment Advertising,21-Nov-19,"3,600.00",Complete Background Screening Limited#CBS
Bolton MBC,Chief Executives,Recruitment Advertising,18-Nov-19,"1,161.00",Complete Background Screening Limited#CBS
Bolton MBC,Adult Services,Residential Provision,05-Nov-19,"2,113.44",Coniston House Care Home
Bolton MBC,Property Services,Miscellaneous Expenses,14-Nov-19,"4,410.45",Contour Homes#Onward
Bolton MBC,Bolton MBC Balance Sheet,CIS Deductions,04-Nov-19,"1,176.00",Cool Canvas Limited
Bolton MBC,Adult Services,Client Support Costs,14-Nov-19,849.48,Copperbeech Dog Kennels and Cattery
Bolton MBC,Adult Services,Client Support Costs,18-Nov-19,825.2,Copperbeech Dog Kennels and Cattery
Bolton MBC,Adult Services,Residential Provision,05-Nov-19,"22,400.00",Cornerstone Trust
Bolton MBC,Adult Services,Residential Provision,05-Nov-19,"2,016.00",Cotleigh Residential Home
Bolton MBC,Adult Services,Other Agency/Contracted Services,04-Nov-19,"1,746.44",Coulson & Collins Care Home Ltd
Bolton MBC,Adult Services,Residential Provision,05-Nov-19,"16,731.60",Craegmoor Arden College Priory
Bolton MBC,Environmental Services,Day To Day Maintenance,25-Nov-19,528,Craven Roofing Limited
Bolton MBC,Adult Services,Contracted Services,11-Nov-19,"34,609.51",Creative Support Limited#3
Bolton MBC,Adult Services,Contracted Services,11-Nov-19,"18,525.14",Creative Support Limited#3
Bolton MBC,Adult Services,Contracted Services,28-Nov-19,"9,663.48",Creative Support Limited#3
Bolton MBC,Adult Services,Residential Provision,05-Nov-19,"2,000.00",Cressingham House
Bolton MBC,Adult Services,Nursing Provision,05-Nov-19,"3,366.00",Crystal Hall Care Home
Bolton MBC,Environmental Services,Clients - Taxi Fares,21-Nov-19,"1,106.70",Cumberland & Westmorland Schools Limited
Bolton MBC,Chief Executives,Work in Progress Additions,07-Nov-19,"5,685.92",Currie & Brown UK Limited
Bolton MBC,Chief Executives,Work in Progress Additions,18-Nov-19,"4,889.51",Currie & Brown UK Limited
Bolton MBC,Chief Executives,Cycle Purchase,25-Nov-19,"1,000.00",Cyclescheme.co.uk
Bolton MBC,Chief Executives,Interpretation and Translation Services,25-Nov-19,761.9,D A Languages Limited
Bolton MBC,Childrens Services,Other Fees,28-Nov-19,"1,815.59",D A Languages Limited
Bolton MBC,Childrens Services,Other Fees,14-Nov-19,"1,785.35",D A Languages Limited
Bolton MBC,Childrens Services,Other Fees,28-Nov-19,765.72,D A Languages Limited
Bolton MBC,Childrens Services,Other Fees,28-Nov-19,544.81,D A Languages Limited
Bolton MBC,Chief Executives,Other Fees,28-Nov-19,"4,200.80",DAC Beachcroft LLP
Bolton MBC,Chief Executives,Other Fees,28-Nov-19,"2,478.00",DAC Beachcroft LLP
Bolton MBC,Environmental Services,Legal Fees,28-Nov-19,"2,227.20",DAC Beachcroft LLP
Bolton MBC,Housing GRF,Legal Fees,07-Nov-19,"4,272.00",DAC Beachcroft LLP
Bolton MBC,Adult Services,Contracted Services,21-Nov-19,"3,209.00",Redacted - Personal Data
Bolton MBC,Environmental Services,Contracted Services,07-Nov-19,"4,217.40",Das-Automotive
Bolton MBC,Environmental Services,Contracted Services,07-Nov-19,745.8,Das-Automotive
Bolton MBC,Environmental Services,Contracted Services,07-Nov-19,549,Das-Automotive
Bolton MBC,Chief Executives,Records Storage,21-Nov-19,"1,044.29",Dataspace
Bolton MBC,Chief Executives,Records Storage,21-Nov-19,911.7,Dataspace
Bolton MBC,Childrens Services,Records Storage,14-Nov-19,"1,191.07",Dataspace
Bolton MBC,Childrens Services,Records Storage,14-Nov-19,"1,136.10",Dataspace
Bolton MBC,Childrens Services,Family Placement (Daycare),11-Nov-19,"1,220.00",Redacted - Personal Data
Bolton MBC,Environmental Services,Transport Hire,25-Nov-19,594,Dawsongroup Bus And Coach Limited
Bolton MBC,Housing GRF,Legal Fees,18-Nov-19,"1,050.00",Deans Court Chambers
Bolton MBC,Childrens Services,Computer Purchase,14-Nov-19,"1,749.38",Dell Corporation Ltd
Bolton MBC,Adult Services,Residential Provision,04-Nov-19,"66,911.86",Denstone Crescent
Bolton MBC,Adult Services,Residential Provision,05-Nov-19,"17,821.00",Denstone Crescent
Bolton MBC,Childrens Services,Clients - Bus Fares,25-Nov-19,"2,090.00",Diamond Bus North West Limited
Bolton MBC,Childrens Services,Clients - Bus Fares,07-Nov-19,808,Diamond Bus North West Limited
Bolton MBC,Childrens Services,Clients - Bus Fares,07-Nov-19,579.5,Diamond Bus North West Limited
Bolton MBC,Childrens Services,Clients - Bus Passes,07-Nov-19,565.25,Diamond Bus North West Limited
Bolton MBC,Childrens Services,Clients - Bus Fares,07-Nov-19,532,Diamond Bus North West Limited
Bolton MBC,Adult Services,Contracted Services,04-Nov-19,"1,455.84",Diamond Care Services Ltd
Bolton MBC,Adult Services,Client Support Costs,07-Nov-19,"1,380.00",Diamond Home Support Bolton
Bolton MBC,Adult Services,Client Support Costs,28-Nov-19,"1,160.00",Diamond Home Support Bolton
Bolton MBC,Adult Services,Client Support Costs,07-Nov-19,990,Diamond Home Support Bolton
Bolton MBC,Adult Services,Contracted Services,11-Nov-19,"2,846.87",Dignity in Life Ltd#DIL Foundation
Bolton MBC,Adult Services,Contracted Services,21-Nov-19,"2,686.84",Dignity in Life Ltd#DIL Foundation
Bolton MBC,Adult Services,Contracted Services,11-Nov-19,"2,616.90",Dignity in Life Ltd#DIL Foundation
Bolton MBC,Adult Services,Contracted Services,11-Nov-19,"2,442.44",Dignity in Life Ltd#DIL Foundation
Bolton MBC,Adult Services,Contracted Services,11-Nov-19,"2,220.40",Dignity in Life Ltd#DIL Foundation
Bolton MBC,Adult Services,Contracted Services,11-Nov-19,"1,974.57",Dignity in Life Ltd#DIL Foundation
Bolton MBC,Adult Services,Contracted Services,11-Nov-19,"1,890.04",Dignity in Life Ltd#DIL Foundation
Bolton MBC,Adult Services,Contracted Services,11-Nov-19,"1,842.46",Dignity in Life Ltd#DIL Foundation
Bolton MBC,Adult Services,Contracted Services,21-Nov-19,"1,673.23",Dignity in Life Ltd#DIL Foundation
Bolton MBC,Adult Services,Contracted Services,11-Nov-19,"1,579.18",Dignity in Life Ltd#DIL Foundation
Bolton MBC,Adult Services,Contracted Services,11-Nov-19,"1,554.28",Dignity in Life Ltd#DIL Foundation
Bolton MBC,Adult Services,Contracted Services,11-Nov-19,"1,332.24",Dignity in Life Ltd#DIL Foundation
Bolton MBC,Adult Services,Contracted Services,11-Nov-19,"1,332.24",Dignity in Life Ltd#DIL Foundation
Bolton MBC,Adult Services,Contracted Services,11-Nov-19,"1,173.64",Dignity in Life Ltd#DIL Foundation
Bolton MBC,Adult Services,Contracted Services,11-Nov-19,"1,118.13",Dignity in Life Ltd#DIL Foundation
Bolton MBC,Adult Services,Contracted Services,11-Nov-19,"1,087.68",Dignity in Life Ltd#DIL Foundation
Bolton MBC,Adult Services,Contracted Services,11-Nov-19,"1,035.98",Dignity in Life Ltd#DIL Foundation
Bolton MBC,Adult Services,Contracted Services,11-Nov-19,"1,008.70",Dignity in Life Ltd#DIL Foundation
Bolton MBC,Adult Services,Contracted Services,11-Nov-19,999.18,Dignity in Life Ltd#DIL Foundation
Bolton MBC,Adult Services,Contracted Services,11-Nov-19,983.32,Dignity in Life Ltd#DIL Foundation
Bolton MBC,Adult Services,Contracted Services,11-Nov-19,967.46,Dignity in Life Ltd#DIL Foundation
Bolton MBC,Adult Services,Contracted Services,11-Nov-19,963.5,Dignity in Life Ltd#DIL Foundation
Bolton MBC,Adult Services,Contracted Services,11-Nov-19,935.74,Dignity in Life Ltd#DIL Foundation
Bolton MBC,Adult Services,Contracted Services,11-Nov-19,922.26,Dignity in Life Ltd#DIL Foundation
Bolton MBC,Adult Services,Contracted Services,11-Nov-19,919.88,Dignity in Life Ltd#DIL Foundation
Bolton MBC,Adult Services,Contracted Services,11-Nov-19,888.16,Dignity in Life Ltd#DIL Foundation
Bolton MBC,Adult Services,Contracted Services,11-Nov-19,888.16,Dignity in Life Ltd#DIL Foundation
Bolton MBC,Adult Services,Contracted Services,11-Nov-19,876.27,Dignity in Life Ltd#DIL Foundation
Bolton MBC,Adult Services,Contracted Services,11-Nov-19,864.37,Dignity in Life Ltd#DIL Foundation
Bolton MBC,Adult Services,Contracted Services,11-Nov-19,770.85,Dignity in Life Ltd#DIL Foundation
Bolton MBC,Adult Services,Contracted Services,11-Nov-19,729.56,Dignity in Life Ltd#DIL Foundation
Bolton MBC,Adult Services,Contracted Services,11-Nov-19,697.84,Dignity in Life Ltd#DIL Foundation
Bolton MBC,Adult Services,Contracted Services,11-Nov-19,666.12,Dignity in Life Ltd#DIL Foundation
Bolton MBC,Adult Services,Contracted Services,11-Nov-19,666.12,Dignity in Life Ltd#DIL Foundation
Bolton MBC,Adult Services,Contracted Services,11-Nov-19,655.34,Dignity in Life Ltd#DIL Foundation
Bolton MBC,Adult Services,Contracted Services,11-Nov-19,651.88,Dignity in Life Ltd#DIL Foundation
Bolton MBC,Adult Services,Contracted Services,11-Nov-19,651.88,Dignity in Life Ltd#DIL Foundation
Bolton MBC,Adult Services,Contracted Services,21-Nov-19,612.83,Dignity in Life Ltd#DIL Foundation
Bolton MBC,Adult Services,Contracted Services,11-Nov-19,602.68,Dignity in Life Ltd#DIL Foundation
Bolton MBC,Adult Services,Contracted Services,11-Nov-19,597.13,Dignity in Life Ltd#DIL Foundation
Bolton MBC,Adult Services,Contracted Services,11-Nov-19,528.61,Dignity in Life Ltd#DIL Foundation
Bolton MBC,Adult Services,Contracted Services,11-Nov-19,503.56,Dignity in Life Ltd#DIL Foundation
Bolton MBC,Childrens Services,Day To Day Maintenance,18-Nov-19,"4,928.51",Direct Civils Limited
Bolton MBC,Chief Executives,Disclosure Monitoring,14-Nov-19,"20,603.00",Disclosure and Barring Service
Bolton MBC,Adult Services,Residential Provision,05-Nov-19,"2,113.44",Dove Court Care Home
Bolton MBC,Adult Services,Clients Aids & Adaptations,14-Nov-19,613.2,Drive DeVilbiss Sidhil Limited
Bolton MBC,Adult Services,Nursing Provision,05-Nov-19,"2,316.00",Dundoran Nursing Home
Bolton MBC,Environmental Services,Other Security Expenses,14-Nov-19,"6,218.44",Duval FM Limited
Bolton MBC,Adult Services,Residential Provision,05-Nov-19,"2,266.32",Eachstep Blackley
Bolton MBC,Adult Services,Clients Aids & Adaptations,28-Nov-19,"2,050.86",Easylink UK#Medpage Limited
Bolton MBC,Adult Services,Clients Aids & Adaptations,04-Nov-19,929.1,Easylink UK#Medpage Limited
Bolton MBC,Adult Services,Residential Provision,05-Nov-19,"3,733.92",Ecclesholme
Bolton MBC,Childrens Services,Contracted Services,14-Nov-19,"5,040.00",ECM Education Consultants Ltd
Bolton MBC,Childrens Services,Private Contracted Services,25-Nov-19,"3,600.00",ECM Education Consultants Ltd
Bolton MBC,Childrens Services,Private Contracted Services,28-Nov-19,900,ECM Education Consultants Ltd
Bolton MBC,Childrens Services,Contracted Services,25-Nov-19,720,ECM Education Consultants Ltd
Bolton MBC,Environmental Services,Contract Hire,18-Nov-19,"1,894.35",Econ Engineering Limited
Bolton MBC,Environmental Services,Contract Hire,18-Nov-19,"1,894.35",Econ Engineering Limited
Bolton MBC,Environmental Services,Contract Hire,18-Nov-19,"1,894.35",Econ Engineering Limited
Bolton MBC,Environmental Services,Contract Hire,18-Nov-19,"1,894.35",Econ Engineering Limited
Bolton MBC,Environmental Services,Contract Hire,18-Nov-19,"1,894.35",Econ Engineering Limited
Bolton MBC,Environmental Services,Contract Hire,18-Nov-19,"1,894.35",Econ Engineering Limited
Bolton MBC,Environmental Services,Contract Hire,18-Nov-19,"1,894.35",Econ Engineering Limited
Bolton MBC,Environmental Services,Contract Hire,18-Nov-19,"1,894.35",Econ Engineering Limited
Bolton MBC,Environmental Services,Contract Hire,18-Nov-19,"1,384.55",Econ Engineering Limited
Bolton MBC,Adult Services,Contracted Services,11-Nov-19,"1,110.20",Eden Care Support Services Ltd
Bolton MBC,Adult Services,Contracted Services,21-Nov-19,"1,110.20",Eden Care Support Services Ltd
Bolton MBC,Adult Services,Contracted Services,11-Nov-19,"1,062.62",Eden Care Support Services Ltd
Bolton MBC,Adult Services,Contracted Services,21-Nov-19,"1,054.69",Eden Care Support Services Ltd
Bolton MBC,Adult Services,Contracted Services,11-Nov-19,967.46,Eden Care Support Services Ltd
Bolton MBC,Adult Services,Contracted Services,21-Nov-19,697.84,Eden Care Support Services Ltd
Bolton MBC,Adult Services,Contracted Services,11-Nov-19,670.09,Eden Care Support Services Ltd
Bolton MBC,Adult Services,Contracted Services,11-Nov-19,666.12,Eden Care Support Services Ltd
Bolton MBC,Adult Services,Contracted Services,21-Nov-19,666.12,Eden Care Support Services Ltd
Bolton MBC,Adult Services,Contracted Services,11-Nov-19,666.12,Eden Care Support Services Ltd
Bolton MBC,Adult Services,Contracted Services,21-Nov-19,666.12,Eden Care Support Services Ltd
Bolton MBC,Adult Services,Contracted Services,11-Nov-19,610.61,Eden Care Support Services Ltd
Bolton MBC,Adult Services,Contracted Services,21-Nov-19,610.61,Eden Care Support Services Ltd
Bolton MBC,Adult Services,Contracted Services,11-Nov-19,602.68,Eden Care Support Services Ltd
Bolton MBC,Adult Services,Contracted Services,21-Nov-19,570.96,Eden Care Support Services Ltd
Bolton MBC,Adult Services,Contracted Services,21-Nov-19,539.24,Eden Care Support Services Ltd
Bolton MBC,Adult Services,Contracted Services,11-Nov-19,504.89,Eden Care Support Services Ltd
Bolton MBC,Adult Services,Residential Provision,05-Nov-19,"3,800.00",Eden Mansions
Bolton MBC,Chief Executives,Mobile Telephone Rental,07-Nov-19,"2,974.69",EE#Everything Everywhere
Bolton MBC,Chief Executives,Mobile Telephone Rental,11-Nov-19,561.89,EE#Everything Everywhere
Bolton MBC,Chief Executives,Survey Fees,11-Nov-19,"6,235.62",Electoral Reform Services
Bolton MBC,Bolton MBC Balance Sheet,CIS Deductions,04-Nov-19,754.54,Electricity North West Limited#United Utilities Electricity Services Ltd
Bolton MBC,Bolton MBC Balance Sheet,CIS Deductions,04-Nov-19,732.84,Electricity North West Limited#United Utilities Electricity Services Ltd
Bolton MBC,Bolton MBC Balance Sheet,CIS Deductions,28-Nov-19,521.64,Electricity North West Limited#United Utilities Electricity Services Ltd
Bolton MBC,Environmental Services,Engineering Work,14-Nov-19,754.54,Electricity North West Limited#United Utilities Electricity Services Ltd
Bolton MBC,Environmental Services,Engineering Work,04-Nov-19,521.64,Electricity North West Limited#United Utilities Electricity Services Ltd
Bolton MBC,Adult Services,Residential Provision,05-Nov-19,"9,437.72",Ellershaw House Ltd
Bolton MBC,Environmental Services,Artistes Fees,11-Nov-19,"10,992.00",Ellis Live Limited
Bolton MBC,Development & Regeneration,Other Fees,21-Nov-19,"2,400.00",Ellis Productions
Bolton MBC,Highways ,Inventory AP Accrual,25-Nov-19,"1,963.44",Emo Oil Ltd#Was Shell Oil
Bolton MBC,Bolton MBC Balance Sheet,CIS Deductions,28-Nov-19,913.99,Engie FM Limited
Bolton MBC,Environmental Services,Transport Hire,18-Nov-19,928.29,Enterprise Flex-E-Rent
Bolton MBC,Environmental Services,Transport Hire,18-Nov-19,858.53,Enterprise Flex-E-Rent
Bolton MBC,Environmental Services,Transport Hire,07-Nov-19,847.58,Enterprise Flex-E-Rent
Bolton MBC,Environmental Services,Transport Hire,07-Nov-19,803.14,Enterprise Flex-E-Rent
Bolton MBC,Chief Executives,Day To Day Maintenance,21-Nov-19,"1,035.00",Equilibrium Architects Limited
Bolton MBC,Adult Services,Contracted Services,21-Nov-19,"3,700.00",Equilibrium Healthcare Limited
Bolton MBC,Adult Services,Contracted Services,07-Nov-19,"2,846.00",Equilibrium Healthcare Limited
Bolton MBC,Adult Services,Contracted Services,21-Nov-19,"2,846.00",Equilibrium Healthcare Limited
Bolton MBC,Development & Regeneration,Gas - General,18-Nov-19,"61,272.98",Eric Wright FM Ltd
Bolton MBC,Development & Regeneration,Rent Of Buildings,04-Nov-19,"19,404.69",Eric Wright FM Ltd
Bolton MBC,Development & Regeneration,Goods for Resale,18-Nov-19,"13,865.22",Eric Wright FM Ltd
Bolton MBC,Childrens Services,Day To Day Maintenance,28-Nov-19,"2,247.60",ESCO Electrical Contractors Limited
Bolton MBC,Adult Services,Contracted Services,14-Nov-19,"5,694.90",Eskdale House
Bolton MBC,Development & Regeneration,Agency Staff - Other,18-Nov-19,"3,216.40",Event Services NW Limited
Bolton MBC,Chief Executives,Marketing,14-Nov-19,"7,357.20",Event Solutions#Event Solutions Group Limited
Bolton MBC,Chief Executives,Marketing,14-Nov-19,"2,094.60",Event Solutions#Event Solutions Group Limited
Bolton MBC,Childrens Services,Legal Fees,14-Nov-19,"1,170.00",Exchange Chamber
Bolton MBC,Environmental Services,Artistes Fees,25-Nov-19,"7,336.20",Exchange Events Limited
Bolton MBC,Environmental Services,Operational Equipment Rental,14-Nov-19,"7,704.17",F R Sharrock Ltd#Sharrocks
Bolton MBC,Adult Services,Contracted Services,07-Nov-19,"4,757.14",Fallowfield Project
Bolton MBC,Childrens Services,Vol Assoc Grants - General,07-Nov-19,"3,467.10",Family Care Fostering Limited
Bolton MBC,Environmental Services,Vehicle Servicing,25-Nov-19,708.24,Faun Zoeller (UK) Limited
Bolton MBC,Environmental Services,Vehicle Servicing,25-Nov-19,561.6,Faun Zoeller (UK) Limited
Bolton MBC,Environmental Services,Contracted Services,28-Nov-19,541.34,Faun Zoeller (UK) Limited
Bolton MBC,Adult Services,Contracted Services,14-Nov-19,"1,194.48",FCNA Homecare (First Call Nursing Agency)
Bolton MBC,Adult Services,Contracted Services,25-Nov-19,"1,194.48",FCNA Homecare (First Call Nursing Agency)
Bolton MBC,Adult Services,Contracted Services,14-Nov-19,651.92,FCNA Homecare (First Call Nursing Agency)
Bolton MBC,Adult Services,Contracted Services,25-Nov-19,651.92,FCNA Homecare (First Call Nursing Agency)
Bolton MBC,Childrens Services,Other Fees,18-Nov-19,960,FFT Education Limited#FFT Literacy
Bolton MBC,Childrens Services,Clients - Bus Fares,07-Nov-19,"1,615.00",First Manchester Limited & First Transforming Travel
Bolton MBC,Housing GRF,Kitchen Equipment,07-Nov-19,"1,053.75",Fishers Textiles
Bolton MBC,Childrens Services,Vol Assoc Grants - General,04-Nov-19,"29,850.00",Footsteps A Path To Change 08 Limited
Bolton MBC,Childrens Services,Other Fees,14-Nov-19,"2,460.48",Forensic Testing Service Ltd
Bolton MBC,Childrens Services,Other Fees,28-Nov-19,"1,235.04",Forensic Testing Service Ltd
Bolton MBC,Childrens Services,Other Fees,14-Nov-19,703.8,Forensic Testing Service Ltd
Bolton MBC,Adult Services,Clients Aids & Adaptations,18-Nov-19,891.48,FormAl Group Limited#FormAlign
Bolton MBC,Adult Services,Contracted Services,28-Nov-19,"54,250.00",Fortalice Limited#Bolton Womens Aid
Bolton MBC,Adult Services,Residential Provision,05-Nov-19,"4,659.52",Fosse Bank House
Bolton MBC,Childrens Services,Vol Assoc Grants - General,21-Nov-19,"4,269.00",Foster Care Associates Limited
Bolton MBC,Childrens Services,Vol Assoc Grants - General,21-Nov-19,"3,477.57",Foster Care Associates Limited
Bolton MBC,Childrens Services,Vol Assoc Grants - General,21-Nov-19,"3,450.90",Foster Care Associates Limited
Bolton MBC,Childrens Services,Vol Assoc Grants - General,21-Nov-19,"3,450.90",Foster Care Associates Limited
Bolton MBC,Childrens Services,Vol Assoc Grants - General,21-Nov-19,"3,278.35",Foster Care Associates Limited
Bolton MBC,Childrens Services,Vol Assoc Grants - General,21-Nov-19,"3,278.35",Foster Care Associates Limited
Bolton MBC,Childrens Services,Vol Assoc Grants - General,21-Nov-19,"1,280.70",Foster Care Associates Limited
Bolton MBC,Childrens Services,Vol Assoc Grants - General,14-Nov-19,"7,063.57",Foster Careline Limited
Bolton MBC,Childrens Services,Vol Assoc Grants - General,14-Nov-19,810,Foster Cares Limited
Bolton MBC,Childrens Services,Vol Assoc Grants - General,14-Nov-19,810,Foster Cares Limited
Bolton MBC,Childrens Services,Vol Assoc Grants - General,14-Nov-19,810,Foster Cares Limited
Bolton MBC,Childrens Services,Vol Assoc Grants - General,21-Nov-19,799,Fostering Limited
Bolton MBC,Childrens Services,Vol Assoc Grants - General,21-Nov-19,799,Fostering Limited
Bolton MBC,Childrens Services,Vol Assoc Grants - General,21-Nov-19,799,Fostering Limited
Bolton MBC,Childrens Services,Vol Assoc Grants - General,21-Nov-19,799,Fostering Limited
Bolton MBC,Childrens Services,Vol Assoc Grants - General,25-Nov-19,799,Fostering Limited
Bolton MBC,Childrens Services,Vol Assoc Grants - General,21-Nov-19,799,Fostering Limited
Bolton MBC,Childrens Services,Vol Assoc Grants - General,25-Nov-19,799,Fostering Limited
Bolton MBC,Childrens Services,Vol Assoc Grants - General,21-Nov-19,799,Fostering Limited
Bolton MBC,Childrens Services,Vol Assoc Grants - General,25-Nov-19,799,Fostering Limited
Bolton MBC,Childrens Services,Vol Assoc Grants - General,21-Nov-19,799,Fostering Limited
Bolton MBC,Childrens Services,Vol Assoc Grants - General,25-Nov-19,799,Fostering Limited
Bolton MBC,Childrens Services,Vol Assoc Grants - General,21-Nov-19,799,Fostering Limited
Bolton MBC,Childrens Services,Vol Assoc Grants - General,25-Nov-19,799,Fostering Limited
Bolton MBC,Childrens Services,Vol Assoc Grants - General,21-Nov-19,799,Fostering Limited
Bolton MBC,Childrens Services,Vol Assoc Grants - General,25-Nov-19,799,Fostering Limited
Bolton MBC,Childrens Services,Vol Assoc Grants - General,25-Nov-19,799,Fostering Limited
Bolton MBC,Childrens Services,Vol Assoc Grants - General,25-Nov-19,799,Fostering Limited
Bolton MBC,Childrens Services,Vol Assoc Grants - General,25-Nov-19,799,Fostering Limited
Bolton MBC,Childrens Services,Vol Assoc Grants - General,28-Nov-19,799,Fostering Limited
Bolton MBC,Childrens Services,Vol Assoc Grants - General,28-Nov-19,799,Fostering Limited
Bolton MBC,Childrens Services,Vol Assoc Grants - General,21-Nov-19,727.5,Fostering Limited
Bolton MBC,Childrens Services,Vol Assoc Grants - General,21-Nov-19,727.5,Fostering Limited
Bolton MBC,Childrens Services,Vol Assoc Grants - General,21-Nov-19,727.5,Fostering Limited
Bolton MBC,Childrens Services,Vol Assoc Grants - General,21-Nov-19,727.5,Fostering Limited
Bolton MBC,Childrens Services,Vol Assoc Grants - General,21-Nov-19,727.5,Fostering Limited
Bolton MBC,Childrens Services,Vol Assoc Grants - General,21-Nov-19,727.5,Fostering Limited
Bolton MBC,Childrens Services,Vol Assoc Grants - General,21-Nov-19,727.5,Fostering Limited
Bolton MBC,Childrens Services,Vol Assoc Grants - General,21-Nov-19,727.5,Fostering Limited
Bolton MBC,Childrens Services,Vol Assoc Grants - General,21-Nov-19,727.5,Fostering Limited
Bolton MBC,Childrens Services,Vol Assoc Grants - General,21-Nov-19,727.5,Fostering Limited
Bolton MBC,Childrens Services,Vol Assoc Grants - General,21-Nov-19,727.5,Fostering Limited
Bolton MBC,Childrens Services,Vol Assoc Grants - General,21-Nov-19,727.5,Fostering Limited
Bolton MBC,Childrens Services,Vol Assoc Grants - General,21-Nov-19,727.5,Fostering Limited
Bolton MBC,Childrens Services,Vol Assoc Grants - General,25-Nov-19,727.5,Fostering Limited
Bolton MBC,Childrens Services,Vol Assoc Grants - General,25-Nov-19,727.5,Fostering Limited
Bolton MBC,Childrens Services,Vol Assoc Grants - General,25-Nov-19,727.5,Fostering Limited
Bolton MBC,Childrens Services,Vol Assoc Grants - General,25-Nov-19,727.5,Fostering Limited
Bolton MBC,Childrens Services,Vol Assoc Grants - General,28-Nov-19,727.5,Fostering Limited
Bolton MBC,Childrens Services,Vol Assoc Grants - General,28-Nov-19,727.5,Fostering Limited
Bolton MBC,Childrens Services,Vol Assoc Grants - General,21-Nov-19,"3,546.77",Fostering People Limited
Bolton MBC,Childrens Services,Vol Assoc Grants - General,21-Nov-19,"3,518.50",Fostering People Limited
Bolton MBC,Childrens Services,Vol Assoc Grants - General,21-Nov-19,"3,405.00",Fostering People Limited
Bolton MBC,Childrens Services,Vol Assoc Grants - General,21-Nov-19,"3,263.40",Fostering People Limited
Bolton MBC,Adult Services,Residential Provision,05-Nov-19,"182,232.78",Four Seasons Nursing Home
Bolton MBC,Adult Services,Clients Aids & Adaptations,14-Nov-19,"5,252.40",Frontier Therapeutics
Bolton MBC,Adult Services,Clients Aids & Adaptations,28-Nov-19,"5,100.00",Frontier Therapeutics
Bolton MBC,Environmental Services,Vehicle Servicing,07-Nov-19,"1,040.28",Fuchs Lubricants (UK) plc
Bolton MBC,Childrens Services,Vol Assoc Grants - General,11-Nov-19,"3,792.86",Fusion Fostering Limited
Bolton MBC,Development & Regeneration,Work in Progress Additions,14-Nov-19,"3,600.00",Gardiner & Theobald LLP
Bolton MBC,Childrens Services,Other Fees,11-Nov-19,"1,323.00",Gaskells Private Day Nursery Ltd
Bolton MBC,Environmental Services,Recruitment Advertising,21-Nov-19,"25,527.60",GatenbySanderson
Bolton MBC,Childrens Services,Private Contracted Services,07-Nov-19,840,Gateway Outsource Solutions Limited
Bolton MBC,Childrens Services,Private Contracted Services,14-Nov-19,840,Gateway Outsource Solutions Limited
Bolton MBC,Childrens Services,Private Contracted Services,21-Nov-19,840,Gateway Outsource Solutions Limited
Bolton MBC,Adult Services,Residential Provision,05-Nov-19,"2,266.48",Gedling Village Care Home
Bolton MBC,Bolton MBC Balance Sheet,CIS Deductions,14-Nov-19,"93,600.30",George Cox & Sons Limited
Bolton MBC,Highways ,Work in Progress Additions,11-Nov-19,"1,244.23",George Cox & Sons Limited
Bolton MBC,Childrens Services,Marketing,11-Nov-19,"24,000.00",Georgeco Marketing Services LLP#George And Co
Bolton MBC,Adult Services,Residential Provision,05-Nov-19,"5,152.20",GHS Brookdale
Bolton MBC,Adult Services,Residential Provision,05-Nov-19,"26,700.00",Glenbank Care Home Ltd
Bolton MBC,Childrens Services,Other Clients Services,21-Nov-19,900,Glendale Guest House
Bolton MBC,Childrens Services,Other Clients Services,21-Nov-19,900,Glendale Guest House
Bolton MBC,Childrens Services,Other Clients Services,21-Nov-19,900,Glendale Guest House
Bolton MBC,Childrens Services,Other Clients Services,21-Nov-19,900,Glendale Guest House
Bolton MBC,Childrens Services,Other Clients Services,21-Nov-19,900,Glendale Guest House
Bolton MBC,Childrens Services,Other Clients Services,21-Nov-19,900,Glendale Guest House
Bolton MBC,Childrens Services,Other Clients Services,21-Nov-19,900,Glendale Guest House
Bolton MBC,Childrens Services,Other Clients Services,21-Nov-19,900,Glendale Guest House
Bolton MBC,Housing GRF,Clients Temporary Accommodation,25-Nov-19,900,Glendale Guest House
Bolton MBC,Housing GRF,Clients Temporary Accommodation,25-Nov-19,900,Glendale Guest House
Bolton MBC,Housing GRF,Clients Temporary Accommodation,25-Nov-19,750,Glendale Guest House
Bolton MBC,Housing GRF,Clients Temporary Accommodation,25-Nov-19,600,Glendale Guest House
Bolton MBC,Housing GRF,Clients Temporary Accommodation,25-Nov-19,600,Glendale Guest House
Bolton MBC,Housing GRF,Clients Temporary Accommodation,25-Nov-19,600,Glendale Guest House
Bolton MBC,Housing GRF,Clients Temporary Accommodation,25-Nov-19,600,Glendale Guest House
Bolton MBC,Housing GRF,Clients Temporary Accommodation,25-Nov-19,600,Glendale Guest House
Bolton MBC,Housing GRF,Clients Temporary Accommodation,25-Nov-19,600,Glendale Guest House
Bolton MBC,Housing GRF,Clients Temporary Accommodation,25-Nov-19,600,Glendale Guest House
Bolton MBC,Housing GRF,Clients Temporary Accommodation,25-Nov-19,600,Glendale Guest House
Bolton MBC,Housing GRF,Clients Temporary Accommodation,25-Nov-19,600,Glendale Guest House
Bolton MBC,Housing GRF,Clients Temporary Accommodation,25-Nov-19,600,Glendale Guest House
Bolton MBC,Housing GRF,Clients Temporary Accommodation,25-Nov-19,600,Glendale Guest House
Bolton MBC,Housing GRF,Clients Temporary Accommodation,25-Nov-19,595,Glendale Guest House
Bolton MBC,Housing GRF,Clients Temporary Accommodation,25-Nov-19,500,Glendale Guest House
Bolton MBC,Housing GRF,Clients Temporary Accommodation,25-Nov-19,500,Glendale Guest House
Bolton MBC,Housing GRF,Clients Temporary Accommodation,25-Nov-19,500,Glendale Guest House
Bolton MBC,Environmental Services,Other Fees,14-Nov-19,"1,970.00",GLK Promotions
Bolton MBC,Adult Services,Residential Provision,05-Nov-19,"29,758.61",Gorsey Clough Nursing Home Ltd
Bolton MBC,Adult Services,Residential Provision,05-Nov-19,"5,200.00",Grace Court Care Centre
Bolton MBC,Adult Services,Contracted Services,04-Nov-19,588,Grace Health and Social Care Limited
Bolton MBC,Adult Services,Contracted Services,07-Nov-19,588,Grace Health and Social Care Limited
Bolton MBC,Adult Services,Contracted Services,14-Nov-19,588,Grace Health and Social Care Limited
Bolton MBC,Adult Services,Contracted Services,21-Nov-19,588,Grace Health and Social Care Limited
Bolton MBC,Adult Services,Residential Provision,05-Nov-19,"18,932.86",Grange Lea Residential Care Home Limited
Bolton MBC,Childrens Services,Other Fees,25-Nov-19,750,Great Lever Nursery Ltd
Bolton MBC,Adult Services,Contracted Services,18-Nov-19,"12,327.20",Great Places Housing Association
Bolton MBC,Adult Services,Contracted Services,07-Nov-19,"12,327.20",Great Places Housing Group#Not Great Places Housing Association
Bolton MBC,Adult Services,Contracted Services,07-Nov-19,"12,327.20",Great Places Housing Group#Not Great Places Housing Association
Bolton MBC,Adult Services,Contracted Services,07-Nov-19,"12,327.20",Great Places Housing Group#Not Great Places Housing Association
Bolton MBC,Adult Services,Contracted Services,07-Nov-19,"12,327.20",Great Places Housing Group#Not Great Places Housing Association
Bolton MBC,Highways ,Work in Progress Additions,14-Nov-19,"2,550.80",Greater Manchester Combined Authority#Greater Manchester Police#Greater Manchester Fire & Rescue Service
Bolton MBC,Highways ,Work in Progress Additions,14-Nov-19,"1,975.47",Greater Manchester Combined Authority#Greater Manchester Police#Greater Manchester Fire & Rescue Service
Bolton MBC,Highways ,Work in Progress Additions,14-Nov-19,"1,158.38",Greater Manchester Combined Authority#Greater Manchester Police#Greater Manchester Fire & Rescue Service
Bolton MBC,Chief Executives,Miscellaneous Grants,28-Nov-19,"8,568.50",Greater Manchester Industrial Mission Trust
Bolton MBC,Adult Services,Partnership Staff,11-Nov-19,"23,876.00",Greater Manchester Mental Health NHS Foundation Trust
Bolton MBC,Childrens Services,Marketing,07-Nov-19,"1,300.00",Green Fold Special School#Green Fold @ The Orchards Federation
Bolton MBC,Adult Services,Contracted Services,28-Nov-19,"19,205.20",Greenacres
Bolton MBC,Development & Regeneration,Work in Progress Additions,21-Nov-19,839.18,GreenBlue Urban Ltd
Bolton MBC,Environmental Services,Vehicle Servicing,07-Nov-19,588.59,Greenchem Solutions Ltd
Bolton MBC,Adult Services,Residential Provision,05-Nov-19,"33,441.43",Greenlands Residential Home Limited
Bolton MBC,Adult Services,Residential Provision,05-Nov-19,"1,457.14",Greenlands Residential Home Limited
Bolton MBC,Housing GRF,Clients Temporary Accommodation,28-Nov-19,"7,700.00",Grosvenor Guest House
Bolton MBC,Bolton MBC Balance Sheet,CIS Deductions,14-Nov-19,"9,600.00",Groundwork Landscapes Limited
Bolton MBC,Adult Services,Residential Provision,05-Nov-19,"2,774.80",Grove House#Grove House Home for Older People
Bolton MBC,Bolton MBC Balance Sheet,CIS Deductions,07-Nov-19,"2,663.40",H & C (Plant Hire) Limited
Bolton MBC,Bolton MBC Balance Sheet,CIS Deductions,28-Nov-19,"1,021.20",H & C (Plant Hire) Limited
Bolton MBC,Environmental Services,Plant Hire,21-Nov-19,"4,380.60",H & C (Plant Hire) Limited
Bolton MBC,Environmental Services,Plant Hire,18-Nov-19,"4,084.80",H & C (Plant Hire) Limited
Bolton MBC,Environmental Services,Plant Hire,21-Nov-19,"3,836.40",H & C (Plant Hire) Limited
Bolton MBC,Environmental Services,Plant Hire,21-Nov-19,"3,670.80",H & C (Plant Hire) Limited
Bolton MBC,Environmental Services,Plant Hire,28-Nov-19,"2,042.40",H & C (Plant Hire) Limited
Bolton MBC,Environmental Services,Plant Hire,21-Nov-19,"1,777.20",H & C (Plant Hire) Limited
Bolton MBC,Environmental Services,Plant Hire,21-Nov-19,"1,380.00",H & C (Plant Hire) Limited
Bolton MBC,Environmental Services,Plant Hire,21-Nov-19,"1,324.80",H & C (Plant Hire) Limited
Bolton MBC,Environmental Services,Plant Hire,25-Nov-19,"1,108.20",H & C (Plant Hire) Limited
Bolton MBC,Environmental Services,Plant Hire,28-Nov-19,"1,021.20",H & C (Plant Hire) Limited
Bolton MBC,Environmental Services,Plant Hire,21-Nov-19,993.6,H & C (Plant Hire) Limited
Bolton MBC,Environmental Services,Plant Hire,25-Nov-19,938.4,H & C (Plant Hire) Limited
Bolton MBC,Environmental Services,Plant Hire,21-Nov-19,828,H & C (Plant Hire) Limited
Bolton MBC,Environmental Services,Plant Hire,21-Nov-19,662.4,H & C (Plant Hire) Limited
Bolton MBC,Childrens Services,Operational Equipment Purchase,14-Nov-19,"5,225.35",H Jenkinson & Company Ltd#Jenkinsons Office Supplies
Bolton MBC,Childrens Services,Office Furniture Purchase,11-Nov-19,759.87,H W Audio Ltd T/As HW Music Megastore
Bolton MBC,Adult Services,Residential Provision,05-Nov-19,"5,856.60",Half Acre Care Home
Bolton MBC,Childrens Services,Contracted Services,07-Nov-19,"2,500.00",Harmony Youth Project
Bolton MBC,Adult Services,Residential Provision,05-Nov-19,"17,189.12",Hartington House
Bolton MBC,Adult Services,Clients Aids & Adaptations,28-Nov-19,"1,928.40",Harvest Healthcare Ltd
Bolton MBC,Adult Services,Clients Aids & Adaptations,21-Nov-19,"1,728.00",Harvest Healthcare Ltd
Bolton MBC,Adult Services,Clients Aids & Adaptations,14-Nov-19,811.2,Harvest Healthcare Ltd
Bolton MBC,Adult Services,Clients Aids & Adaptations,21-Nov-19,585,Harvest Healthcare Ltd
Bolton MBC,Chief Executives,AR Unapplied Receipts Refunds,04-Nov-19,532.03,Harworth Estates Investments Limited
Bolton MBC,Childrens Services,Clients - Taxi Fares,04-Nov-19,925.2,Hastings Cars NW Limited
Bolton MBC,Adult Services,Residential Provision,05-Nov-19,"2,356.72",Hatfield Residential And Nursing Home
Bolton MBC,Childrens Services,Electricity - General,21-Nov-19,"216,332.09",Haven Power Limited
Bolton MBC,Adult Services,Nursing Provision,05-Nov-19,"38,326.96",Hazelbrook Christian Nursing Home
Bolton MBC,Adult Services,Residential Provision,05-Nov-19,"3,424.29",Hazelbrook Christian Nursing Home
Bolton MBC,Adult Services,Residential Provision,05-Nov-19,"2,319.24",Hazelwell Lodge
Bolton MBC,Chief Executives,Medical Referees Fees,21-Nov-19,"26,448.48",Health Management Limited
Bolton MBC,Childrens Services,Other Fees,25-Nov-19,625,Heaton House Private Nursery School#Heaton House Nursery Limited
Bolton MBC,Public Health,Contracted Services,07-Nov-19,"1,293.79",Heaton Medical Centre#P82031
Bolton MBC,Adult Services,Residential Provision,05-Nov-19,"20,623.00",Heaton Vale
Bolton MBC,Adult Services,Clients Aids & Adaptations,07-Nov-19,"1,184.16",Helping Hand Co (Ledbury) Ltd
Bolton MBC,Adult Services,Clients Aids & Adaptations,07-Nov-19,562.56,Helping Hand Co (Ledbury) Ltd
Bolton MBC,Adult Services,Residential Provision,05-Nov-19,"3,307.36",Henshaws Society For The Blind
Bolton MBC,Adult Services,Residential Provision,05-Nov-19,"7,514.00",HF Trust Limited Honeysuckle House
Bolton MBC,Adult Services,Nursing Provision,05-Nov-19,"2,100.00",High Peak Lodge Residential and Nursing Home
Bolton MBC,Adult Services,Residential Provision,05-Nov-19,"2,113.44",Highcliffe Residential Home#Teamcare Ltd
Bolton MBC,Adult Services,Residential Provision,05-Nov-19,"2,353.32",Highfield Hall
Bolton MBC,Adult Services,Residential Provision,05-Nov-19,"2,600.00",Hillcrest Care Home
Bolton MBC,Adult Services,Other Fees,29-Nov-19,"7,500.00",HMCTS#Her Majestys Courts And Tribunals Service
Bolton MBC,Childrens Services,Other Fees,18-Nov-19,"6,990.00",HMCTS#Her Majestys Courts And Tribunals Service
Bolton MBC,Childrens Services,Other Fees,26-Nov-19,"3,200.00",HMCTS#Her Majestys Courts And Tribunals Service
Bolton MBC,Housing GRF,Other Fees,18-Nov-19,"3,561.00",HMCTS#Her Majestys Courts And Tribunals Service
Bolton MBC,Public Health,Residential Provision,28-Nov-19,"2,052.51",Holgate House Limited
Bolton MBC,Childrens Services,Vol Assoc Grants - General,28-Nov-19,"15,170.00",Holistic Approach Limited
Bolton MBC,Childrens Services,Vol Assoc Grants - General,28-Nov-19,"12,300.00",Holistic Approach Limited
Bolton MBC,Childrens Services,Vol Assoc Grants - General,28-Nov-19,"12,300.00",Holistic Approach Limited
Bolton MBC,Childrens Services,Vol Assoc Grants - General,28-Nov-19,"12,300.00",Holistic Approach Limited
Bolton MBC,Childrens Services,Vol Assoc Grants - General,28-Nov-19,"12,300.00",Holistic Approach Limited
Bolton MBC,Childrens Services,Vol Assoc Grants - General,28-Nov-19,"12,300.00",Holistic Approach Limited
Bolton MBC,Childrens Services,Vol Assoc Grants - General,28-Nov-19,"11,550.00",Holistic Approach Limited
Bolton MBC,Adult Services,Residential Provision,05-Nov-19,"37,179.00",Hollands Nursing Home
Bolton MBC,Adult Services,Residential Provision,05-Nov-19,"8,676.45",Hollands Nursing Home
Bolton MBC,Adult Services,Residential Provision,05-Nov-19,"3,307.84",Hollybank Care Home
Bolton MBC,Adult Services,Contracted Services,04-Nov-19,"76,225.04",Homecare For You Ltd#BLACKBURN
Bolton MBC,Adult Services,Contracted Services,04-Nov-19,"9,444.43",Homecare For You Ltd#BLACKBURN
Bolton MBC,Environmental Services,Horticultural Materials,07-Nov-19,518.75,Horticultural Trades Association
Bolton MBC,Chief Executives,Refreshments for Meetings,18-Nov-19,"1,306.80",Howcrofts Fine Foods Ltd#Odessa Cafe and Salad Bar
Bolton MBC,Adult Services,Contracted Services,07-Nov-19,"88,908.64",Human Support Group#Homecare Support
Bolton MBC,Adult Services,Residential Provision,05-Nov-19,"22,552.00",Hyde  Lea
Bolton MBC,Development & Regeneration,Office Stationery,18-Nov-19,"55,266.24",Icescape Limited
Bolton MBC,Adult Services,Contracted Services,28-Nov-19,991.25,ICRIT Healthcare
Bolton MBC,Adult Services,Contracted Services,07-Nov-19,872.3,ICRIT Healthcare
Bolton MBC,Adult Services,Contracted Services,18-Nov-19,872.3,ICRIT Healthcare
Bolton MBC,Adult Services,Contracted Services,21-Nov-19,872.3,ICRIT Healthcare
Bolton MBC,Adult Services,Contracted Services,07-Nov-19,610.61,ICRIT Healthcare
Bolton MBC,Adult Services,Contracted Services,14-Nov-19,610.61,ICRIT Healthcare
Bolton MBC,Adult Services,Contracted Services,25-Nov-19,610.61,ICRIT Healthcare
Bolton MBC,Childrens Services,Computer Software,04-Nov-19,"2,004.00",Iflourish Limited
Bolton MBC,Childrens Services,Other Fees,28-Nov-19,705.6,Iflourish Limited
Bolton MBC,Childrens Services,Computer Software,25-Nov-19,558,Iflourish Limited
Bolton MBC,Chief Executives,Training Exps Tuition Fees,14-Nov-19,718.2,ILM
Bolton MBC,Chief Executives,Marketing,07-Nov-19,876,Impression (Bolton) Limited#1
Bolton MBC,Development & Regeneration,Exhibits Purchase,28-Nov-19,"6,928.80",Impression (Bolton) Limited#1
Bolton MBC,Adult Services,Contracted Services - Rental Voids,28-Nov-19,"5,304.00",Inclusion Housing CIC Limited
Bolton MBC,Adult Services,Contracted Services - Rental Voids,14-Nov-19,"4,243.20",Inclusion Housing CIC Limited
Bolton MBC,Childrens Services,Training Exps Tuition Fees,28-Nov-19,"1,473.60",Independent Thinking Limited
Bolton MBC,Childrens Services,Vol Assoc Grants - General,21-Nov-19,"2,464.29",Indie 16 Limited
Bolton MBC,Bolton MBC Balance Sheet,CIS Deductions,14-Nov-19,"4,350.60",Indigo Technology Services Limited
Bolton MBC,Chief Executives,Information and Communication Technology,21-Nov-19,720,Inform CPI Limited
Bolton MBC,Childrens Services,Vol Assoc Grants - General,21-Nov-19,"2,882.23",Inspire Community Services Limited
Bolton MBC,Childrens Services,Vol Assoc Grants - General,21-Nov-19,"2,011.80",Inspire Community Services Limited
Bolton MBC,Childrens Services,Vol Assoc Grants - General,21-Nov-19,"2,011.80",Inspire Community Services Limited
Bolton MBC,Childrens Services,Vol Assoc Grants - General,21-Nov-19,"2,010.00",Inspire Community Services Limited
Bolton MBC,Childrens Services,Vol Assoc Grants - General,21-Nov-19,"2,010.00",Inspire Community Services Limited
Bolton MBC,Childrens Services,Vol Assoc Grants - General,21-Nov-19,"1,607.10",Inspire Community Services Limited
Bolton MBC,Childrens Services,Vol Assoc Grants - General,21-Nov-19,"1,607.10",Inspire Community Services Limited
Bolton MBC,Childrens Services,Vol Assoc Grants - General,04-Nov-19,"1,325.60",Inspire Community Services Limited
Bolton MBC,Childrens Services,Vol Assoc Grants - General,21-Nov-19,"1,242.75",Inspire Community Services Limited
Bolton MBC,Childrens Services,Vol Assoc Grants - General,04-Nov-19,"1,242.75",Inspire Community Services Limited
Bolton MBC,Childrens Services,Vol Assoc Grants - General,21-Nov-19,"1,242.75",Inspire Community Services Limited
Bolton MBC,Childrens Services,Vol Assoc Grants - General,21-Nov-19,"1,242.75",Inspire Community Services Limited
Bolton MBC,Childrens Services,Vol Assoc Grants - General,21-Nov-19,"1,242.75",Inspire Community Services Limited
Bolton MBC,Childrens Services,Vol Assoc Grants - General,21-Nov-19,"1,242.75",Inspire Community Services Limited
Bolton MBC,Childrens Services,Vol Assoc Grants - General,21-Nov-19,"1,242.75",Inspire Community Services Limited
Bolton MBC,Childrens Services,Vol Assoc Grants - General,04-Nov-19,"1,242.75",Inspire Community Services Limited
Bolton MBC,Childrens Services,Vol Assoc Grants - General,21-Nov-19,"1,242.75",Inspire Community Services Limited
Bolton MBC,Childrens Services,Vol Assoc Grants - General,21-Nov-19,"1,242.75",Inspire Community Services Limited
Bolton MBC,Childrens Services,Vol Assoc Grants - General,21-Nov-19,"1,242.75",Inspire Community Services Limited
Bolton MBC,Childrens Services,Vol Assoc Grants - General,21-Nov-19,"1,242.75",Inspire Community Services Limited
Bolton MBC,Childrens Services,Vol Assoc Grants - General,04-Nov-19,"1,242.75",Inspire Community Services Limited
Bolton MBC,Childrens Services,Vol Assoc Grants - General,21-Nov-19,"1,071.30",Inspire Community Services Limited
Bolton MBC,Childrens Services,Vol Assoc Grants - General,21-Nov-19,"1,071.30",Inspire Community Services Limited
Bolton MBC,Highways ,Inventory AP Accrual,28-Nov-19,"1,794.24",Instarmac Group plc
Bolton MBC,Environmental Services,Training Exps Tuition Fees,21-Nov-19,"1,346.40",Institute of Licensing Ltd
Bolton MBC,Environmental Services,Training Exps Tuition Fees,21-Nov-19,673.2,Institute of Licensing Ltd
Bolton MBC,Childrens Services,Other Fees,07-Nov-19,"2,500.00",Integrate Families
Bolton MBC,Adult Services,Other Fees,21-Nov-19,"3,384.00",Interpreting & Translating Services
Bolton MBC,Childrens Services,Other Fees,21-Nov-19,"1,344.00",IntraQuest Limited#Intraquest Community CIC
Bolton MBC,Childrens Services,Other Fees,07-Nov-19,864,IntraQuest Limited#Intraquest Community CIC
Bolton MBC,Childrens Services,Agency Staff - Other,21-Nov-19,"22,770.00",IRG Advisors LLP T/A Odgers Interim#Odgers Connect
Bolton MBC,Childrens Services,Agency Staff - Other,18-Nov-19,"8,124.00",IRG Advisors LLP T/A Odgers Interim#Odgers Connect
Bolton MBC,Childrens Services,Agency Staff - Other,14-Nov-19,"7,311.60",IRG Advisors LLP T/A Odgers Interim#Odgers Connect
Bolton MBC,Childrens Services,Agency Staff - Other,28-Nov-19,"6,600.00",IRG Advisors LLP T/A Odgers Interim#Odgers Connect
Bolton MBC,Childrens Services,Agency Staff - Other,14-Nov-19,"5,940.00",IRG Advisors LLP T/A Odgers Interim#Odgers Connect
Bolton MBC,Childrens Services,Agency Staff - Other,14-Nov-19,"5,940.00",IRG Advisors LLP T/A Odgers Interim#Odgers Connect
Bolton MBC,Environmental Services,General Materials,07-Nov-19,"13,932.00",Isaac Butterworth (Ironfounders) Limited
Bolton MBC,Environmental Services,Horticultural Materials,07-Nov-19,"1,392.00",J A Jones & Sons
Bolton MBC,Bolton MBC Balance Sheet,CIS Deductions,28-Nov-19,"5,055.00",J C Davies Plant Hire
Bolton MBC,Environmental Services,Plant Hire,28-Nov-19,"3,165.00",J C Davies Plant Hire
Bolton MBC,Bolton MBC Balance Sheet,CIS Deductions,04-Nov-19,830.34,J Dickinson & Sons (Horwich) Limited#2
Bolton MBC,Bolton MBC Balance Sheet,CIS Deductions,11-Nov-19,733.2,J Dickinson & Sons (Horwich) Limited#2
Bolton MBC,Bolton MBC Balance Sheet,CIS Deductions,11-Nov-19,508.64,J Dickinson & Sons (Horwich) Limited#2
Bolton MBC,Environmental Services,Engineering Work,21-Nov-19,981.56,J Dickinson & Sons (Horwich) Limited#2
Bolton MBC,Environmental Services,Refuse Collection,14-Nov-19,727.57,J Dickinson & Sons (Horwich) Limited#2
Bolton MBC,Environmental Services,Refuse Collection,21-Nov-19,660.13,J Dickinson & Sons (Horwich) Limited#2
Bolton MBC,Environmental Services,Engineering Work,04-Nov-19,581.03,J Dickinson & Sons (Horwich) Limited#2
Bolton MBC,Environmental Services,Engineering Work,25-Nov-19,521.65,J Dickinson & Sons (Horwich) Limited#2
Bolton MBC,Housing GRF,Security Systems - Purchases,28-Nov-19,672,J G Redford Limited
Bolton MBC,Bolton MBC Balance Sheet,CIS Deductions,14-Nov-19,"8,516.28",J Hopkins (Contractors) Ltd
Bolton MBC,Bolton MBC Balance Sheet,CIS Deductions,14-Nov-19,"6,408.01",J Hopkins (Contractors) Ltd
Bolton MBC,Bolton MBC Balance Sheet,CIS Deductions,07-Nov-19,"6,048.00",J Hopkins (Contractors) Ltd
Bolton MBC,Bolton MBC Balance Sheet,CIS Deductions,25-Nov-19,"6,048.00",J Hopkins (Contractors) Ltd
Bolton MBC,Environmental Services,Engineering Work,28-Nov-19,"9,072.00",J Hopkins (Contractors) Ltd
Bolton MBC,Environmental Services,Engineering Work,28-Nov-19,"9,072.00",J Hopkins (Contractors) Ltd
Bolton MBC,Environmental Services,Engineering Work,07-Nov-19,"6,652.80",J Hopkins (Contractors) Ltd
Bolton MBC,Environmental Services,Engineering Work,25-Nov-19,"3,600.22",J Hopkins (Contractors) Ltd
Bolton MBC,Highways ,Work in Progress Additions,14-Nov-19,"8,627.30",J Hopkins (Contractors) Ltd
Bolton MBC,Highways ,Work in Progress Additions,28-Nov-19,"6,472.44",J Hopkins (Contractors) Ltd
Bolton MBC,Childrens Services,Contracted Services,25-Nov-19,500,J Linden Limited
Bolton MBC,Childrens Services,Other Fees,21-Nov-19,"4,000.00",J S Educational Ltd
Bolton MBC,Environmental Services,Catering Provisions-Food,14-Nov-19,"8,919.54",J W Young (Butchers) Limited
Bolton MBC,Environmental Services,Catering Provisions-Food,28-Nov-19,"8,867.28",J W Young (Butchers) Limited
Bolton MBC,Environmental Services,Catering Provisions-Food,28-Nov-19,"5,620.06",J W Young (Butchers) Limited
Bolton MBC,Environmental Services,Catering Provisions-Food,14-Nov-19,"5,383.88",J W Young (Butchers) Limited
Bolton MBC,Chief Executives,Other Fees,25-Nov-19,"2,186.62",Jacobs Certificated Bailiffs#4
Bolton MBC,Chief Executives,Other Fees,14-Nov-19,"1,902.32",Jacobs Certificated Bailiffs#4
Bolton MBC,Chief Executives,Other Fees,14-Nov-19,"1,016.29",Jacobs Certificated Bailiffs#4
Bolton MBC,Adult Services,Residential Provision,05-Nov-19,"3,960.00",Jah Jireh Nursing Home
Bolton MBC,Housing GRF,Agency Staff - Sickness Cover,04-Nov-19,"1,354.20",James Andrews Recruitment Solutions Limited
Bolton MBC,Housing GRF,Agency Staff - Sickness Cover,18-Nov-19,"1,354.20",James Andrews Recruitment Solutions Limited
Bolton MBC,Housing GRF,Agency Staff - Sickness Cover,18-Nov-19,"1,354.20",James Andrews Recruitment Solutions Limited
Bolton MBC,Adult Services,Clients Aids & Adaptations,11-Nov-19,"1,030.52",James Gibson (Darwen) Limited
Bolton MBC,Adult Services,Clients Aids & Adaptations,11-Nov-19,785.43,James Gibson (Darwen) Limited
Bolton MBC,Adult Services,Clients Aids & Adaptations,28-Nov-19,"3,658.80",James Leckey Design Limited#Vida Global
Bolton MBC,Adult Services,Clients Aids & Adaptations,28-Nov-19,"3,357.72",James Leckey Design Limited#Vida Global
Bolton MBC,Environmental Services,Contracted Services,25-Nov-19,"1,587.60",James O Garnett Limited
Bolton MBC,Environmental Services,Contracted Services,28-Nov-19,"1,587.60",James O Garnett Limited
Bolton MBC,Adult Services,Residential Provision,05-Nov-19,"2,393.44",Jasmine Court
Bolton MBC,Childrens Services,Miscellaneous Expenses,14-Nov-19,"3,375.00",JBL Education Limited
Bolton MBC,Adult Services,Clients Aids & Adaptations,28-Nov-19,"1,252.80",Jenx Limited#Jiraffe
Bolton MBC,Adult Services,Contracted Services,07-Nov-19,"114,532.39",Jewel Home Support Ltd
Bolton MBC,Adult Services,Contracted Services,04-Nov-19,"3,616.84",Jewel Home Support Ltd
Bolton MBC,Adult Services,Contracted Services,14-Nov-19,"3,126.60",Jewel Home Support Ltd
Bolton MBC,Adult Services,Contracted Services,07-Nov-19,"1,587.73",Jewel Home Support Ltd
Bolton MBC,Childrens Services,Operational Equipment Purchase,14-Nov-19,"13,484.60",JISC Service Limited
Bolton MBC,Environmental Services,Contracted Services,25-Nov-19,"1,628.18",Johnston Sweepers Limited
Bolton MBC,Environmental Services,Vehicle Servicing,25-Nov-19,711.79,Johnston Sweepers Limited
Bolton MBC,Bolton MBC Balance Sheet,CIS Deductions,28-Nov-19,"1,492.62",Jones Lighting Limited
Bolton MBC,Bolton MBC Balance Sheet,CIS Deductions,07-Nov-19,"1,156.21",Jones Lighting Limited
Bolton MBC,Bolton MBC Balance Sheet,CIS Deductions,07-Nov-19,"1,156.21",Jones Lighting Limited
Bolton MBC,Bolton MBC Balance Sheet,CIS Deductions,07-Nov-19,"1,156.21",Jones Lighting Limited
Bolton MBC,Bolton MBC Balance Sheet,CIS Deductions,07-Nov-19,"1,156.21",Jones Lighting Limited
Bolton MBC,Bolton MBC Balance Sheet,CIS Deductions,28-Nov-19,"1,156.21",Jones Lighting Limited
Bolton MBC,Bolton MBC Balance Sheet,CIS Deductions,07-Nov-19,647.8,Jones Lighting Limited
Bolton MBC,Bolton MBC Balance Sheet,CIS Deductions,07-Nov-19,556.2,Jones Lighting Limited
Bolton MBC,Bolton MBC Balance Sheet,CIS Deductions,07-Nov-19,501.14,Jones Lighting Limited
Bolton MBC,Environmental Services, Direct Materials,07-Nov-19,"2,195.95",Jones Lighting Limited
Bolton MBC,Environmental Services,Engineering Work,28-Nov-19,"1,156.21",Jones Lighting Limited
Bolton MBC,Highways ,Work in Progress Additions,28-Nov-19,"5,502.46",Jones Lighting Limited
Bolton MBC,Highways ,Work in Progress Additions,25-Nov-19,"1,546.16",Jones Lighting Limited
Bolton MBC,Environmental Services,Artistes Fees,07-Nov-19,"15,197.59",Joseph Purdy Productions Limited
Bolton MBC,Childrens Services,Other Fees,21-Nov-19,"2,500.00",Julie Stirpe Associates Limited
Bolton MBC,Childrens Services,Other Fees,21-Nov-19,"2,500.00",Julie Stirpe Associates Limited
Bolton MBC,Environmental Services,Contracted Services,21-Nov-19,"4,615.68",Kays Traffic Management Systems Limited
Bolton MBC,Environmental Services,Contracted Services,21-Nov-19,"2,415.22",Kays Traffic Management Systems Limited
Bolton MBC,Environmental Services,Contracted Services,14-Nov-19,"2,340.00",Kays Traffic Management Systems Limited
Bolton MBC,Environmental Services,Artistes Fees,07-Nov-19,"11,400.00",Kennedy Street Enterprises
Bolton MBC,Adult Services,Contracted Services,18-Nov-19,"150,591.52",Keymen Associates Ltd#Mayday Homecare
Bolton MBC,Adult Services,Contracted Services,04-Nov-19,"148,705.01",Keymen Associates Ltd#Mayday Homecare
Bolton MBC,Childrens Services,Vol Assoc Grants - General,04-Nov-19,"15,214.29",Keys Childcare Limited
Bolton MBC,Childrens Services,Other Fees,14-Nov-19,875,Kids Kapers
Bolton MBC,Environmental Services,Chemicals,07-Nov-19,"1,675.04",Killgerm Chemicals Ltd
Bolton MBC,Adult Services,Residential Provision,05-Nov-19,"12,618.76",Kingarth
Bolton MBC,Chief Executives,Legal Fees,28-Nov-19,"15,000.00",Kings Chambers
Bolton MBC,Chief Executives,Legal Fees,14-Nov-19,"2,106.00",Kings Chambers
Bolton MBC,Chief Executives,Legal Fees,28-Nov-19,"1,620.00",Kings Chambers
Bolton MBC,Chief Executives,Legal Fees,18-Nov-19,"1,080.00",Kings Chambers
Bolton MBC,Childrens Services,Legal Fees,14-Nov-19,"1,110.00",Kings Chambers
Bolton MBC,Development & Regeneration,Legal Fees,07-Nov-19,810,Kings Chambers
Bolton MBC,Adult Services,Residential Provision,05-Nov-19,"9,841.18",Knightswood Residential Home
Bolton MBC,Adult Services,Contracted Services,14-Nov-19,"1,205.12",L&Q Living Ltd
Bolton MBC,Adult Services,Nursing Provision,05-Nov-19,"3,016.98",Lakeland View Care Centre
Bolton MBC,Environmental Services,Test Purchases/Analysis,07-Nov-19,849,Lancashire County Council
Bolton MBC,Childrens Services,Catering Provisions-Food,11-Nov-19,869.2,Lancashire Fayre
Bolton MBC,Childrens Services,Catering Provisions-Food,11-Nov-19,694.2,Lancashire Fayre
Bolton MBC,Development & Regeneration,Legal Fees,07-Nov-19,"36,834.00",Landmark Chambers
Bolton MBC,Housing GRF,Rent Of Buildings,18-Nov-19,"1,498.85",Lang Estates Limited
Bolton MBC,Housing GRF,Rent Of Buildings,18-Nov-19,"1,494.36",Lang Estates Limited
Bolton MBC,Adult Services,Clients Aids & Adaptations,28-Nov-19,"1,252.80",Langham
Bolton MBC,Adult Services,Clients Aids & Adaptations,28-Nov-19,678.24,Langham
Bolton MBC,Adult Services,Nursing Provision,05-Nov-19,"3,012.52",Larkhall Springs
Bolton MBC,Adult Services,Residential Provision,05-Nov-19,"4,449.36",Lauren Court Residential Care Home
Bolton MBC,Childrens Services,ECDL Courseware Hosting,28-Nov-19,"3,360.00",Lead-IT
Bolton MBC,Childrens Services,ECDL Courseware Hosting,04-Nov-19,"3,150.00",Lead-IT
Bolton MBC,Childrens Services,ECDL Courseware Hosting,28-Nov-19,"2,520.00",Lead-IT
Bolton MBC,Childrens Services,Vol Assoc Grants - General,11-Nov-19,"6,587.12",Leaving Care Services Limited T/A Pathway
Bolton MBC,Childrens Services,ECDL Courseware Hosting,21-Nov-19,"2,940.84",LEB Partnership Limited
Bolton MBC,Childrens Services,ECDL Courseware Hosting,07-Nov-19,840.24,LEB Partnership Limited
Bolton MBC,Childrens Services,Other Fees,25-Nov-19,"1,244.97",Leeds And York Partnership NHS Foundation Trust
Bolton MBC,Childrens Services,Leisure Mngmnt Charges Partnership,25-Nov-19,594,Leeds City Council
Bolton MBC,Childrens Services,Catering Provisions-Food,28-Nov-19,555,Leeds City Council
Bolton MBC,Environmental Services,Transport Hire,07-Nov-19,"3,696.60",Leeds Commercial Limited
Bolton MBC,Environmental Services,Transport Hire,14-Nov-19,"1,260.00",Leeds Commercial Limited
Bolton MBC,Environmental Services,Transport Hire,14-Nov-19,594,Leeds Commercial Limited
Bolton MBC,Adult Services,Residential Provision,05-Nov-19,"128,882.71",Lever Edge Care Home
Bolton MBC,Childrens Services,Other Fees,25-Nov-19,500,Leverhulme Academy-Rivington & Blackrod
Bolton MBC,Childrens Services,Private Contracted Services,18-Nov-19,"4,811.34",Liam Trippier School Improvement Ltd
Bolton MBC,Environmental Services,Office Stationery,28-Nov-19,924,Liberty Services#Liberty Printers (AR & RF Reddin) Limited
Bolton MBC,Adult Services,Contracted Services,04-Nov-19,660,LifeBridge ASEND
Bolton MBC,Adult Services,Contracted Services,04-Nov-19,"25,179.06",Lifeways Community Care
Bolton MBC,Adult Services,Contracted Services,04-Nov-19,"25,123.68",Lifeways Community Care
Bolton MBC,Adult Services,Contracted Services,07-Nov-19,"21,130.05",Lifeways Community Care
Bolton MBC,Adult Services,Contracted Services,07-Nov-19,"20,191.93",Lifeways Community Care
Bolton MBC,Adult Services,Contracted Services,04-Nov-19,"20,016.74",Lifeways Community Care
Bolton MBC,Adult Services,Contracted Services,04-Nov-19,"20,016.66",Lifeways Community Care
Bolton MBC,Adult Services,Contracted Services,07-Nov-19,"19,128.51",Lifeways Community Care
Bolton MBC,Adult Services,Contracted Services,04-Nov-19,"18,181.06",Lifeways Community Care
Bolton MBC,Adult Services,Contracted Services,07-Nov-19,"17,263.30",Lifeways Community Care
Bolton MBC,Adult Services,Contracted Services,04-Nov-19,"17,040.78",Lifeways Community Care
Bolton MBC,Adult Services,Contracted Services,04-Nov-19,"16,749.18",Lifeways Community Care
Bolton MBC,Adult Services,Contracted Services,07-Nov-19,"16,749.12",Lifeways Community Care
Bolton MBC,Adult Services,Contracted Services,04-Nov-19,"16,116.18",Lifeways Community Care
Bolton MBC,Adult Services,Contracted Services,04-Nov-19,"16,087.42",Lifeways Community Care
Bolton MBC,Adult Services,Contracted Services,07-Nov-19,"15,614.20",Lifeways Community Care
Bolton MBC,Adult Services,Contracted Services,04-Nov-19,"15,377.30",Lifeways Community Care
Bolton MBC,Adult Services,Contracted Services,04-Nov-19,"14,803.70",Lifeways Community Care
Bolton MBC,Adult Services,Contracted Services,07-Nov-19,"13,841.69",Lifeways Community Care
Bolton MBC,Adult Services,Contracted Services,04-Nov-19,"13,764.34",Lifeways Community Care
Bolton MBC,Adult Services,Contracted Services,04-Nov-19,"13,337.79",Lifeways Community Care
Bolton MBC,Adult Services,Contracted Services,07-Nov-19,"13,168.08",Lifeways Community Care
Bolton MBC,Adult Services,Contracted Services,04-Nov-19,"10,745.85",Lifeways Community Care
Bolton MBC,Adult Services,Contracted Services,04-Nov-19,"10,021.68",Lifeways Community Care
Bolton MBC,Adult Services,Contracted Services,04-Nov-19,"9,103.92",Lifeways Community Care
Bolton MBC,Adult Services,Contracted Services,07-Nov-19,"8,596.95",Lifeways Community Care
Bolton MBC,Adult Services,Contracted Services,14-Nov-19,"2,563.36",Limes Place
Bolton MBC,Adult Services,Contracted Services,21-Nov-19,"2,563.36",Limes Place
Bolton MBC,Adult Services,Contracted Services,04-Nov-19,"5,615.88",Linden Walk
Bolton MBC,Financial Services,Treasury Management Services,14-Nov-19,"17,400.00",Link Asset Services
Bolton MBC,Environmental Services,Clients - Taxi Fares,28-Nov-19,747,Link Cars
Bolton MBC,Environmental Services,Artistes Fees,28-Nov-19,"10,676.80",Listen To The Music Limited
Bolton MBC,Childrens Services,Vol Assoc Grants - General,25-Nov-19,"3,155.36",Lorimer Fostering
Bolton MBC,Adult Services,Residential Provision,05-Nov-19,"2,722.32",Lotus Care (Ellerslie Court) Limited T/A Ellerslie Court
Bolton MBC,Environmental Services,Vehicle Servicing,21-Nov-19,"1,071.00",LPW (Europe) Ltd
Bolton MBC,Environmental Services,Vehicle Servicing,25-Nov-19,612,LPW (Europe) Ltd
Bolton MBC,Adult Services,Residential Provision,05-Nov-19,"41,064.86",Lyngate Residential Home#Lyngate Healthcare Ltd
Bolton MBC,Adult Services,Residential Provision,05-Nov-19,"5,610.00",Lyngate Residential Home#Lyngate Healthcare Ltd
Bolton MBC,Bolton MBC Balance Sheet,CIS Deductions,11-Nov-19,"2,095.00",M C Coote Ltd
Bolton MBC,Bolton MBC Balance Sheet,CIS Deductions,11-Nov-19,"1,869.00",M C Coote Ltd
Bolton MBC,Environmental Services,Engineering Work,25-Nov-19,"1,390.00",M C Coote Ltd
Bolton MBC,Childrens Services,Uniforms,25-Nov-19,900,Macron Store Manchester
Bolton MBC,Adult Services,Contracted Services,28-Nov-19,617.2,Making Space#4
Bolton MBC,Chief Executives,Procurement Hub,18-Nov-19,"33,972.94",Manchester City Council
Bolton MBC,Housing GRF,Miscellaneous Expenses,07-Nov-19,"2,000.00",Manchester City Council
Bolton MBC,Childrens Services,Training Exps Tuition Fees,18-Nov-19,"1,000.00",Manchester Metropolitan University
Bolton MBC,Highways ,Inventory AP Accrual,21-Nov-19,603,Manchester Safety Services Ltd
Bolton MBC,Adult Services,Clients Aids & Adaptations,21-Nov-19,"2,610.00",Mangar International Ltd
Bolton MBC,Adult Services,Clients Aids & Adaptations,21-Nov-19,534.37,Mangar International Ltd
Bolton MBC,Adult Services,Clients Aids & Adaptations,18-Nov-19,522.48,Mangar International Ltd
Bolton MBC,Childrens Services,Family Placement (Daycare),11-Nov-19,"1,220.00",Redacted - Personal Data
Bolton MBC,Childrens Services,Client Support Costs,11-Nov-19,"1,016.84",Redacted - Personal Data
Bolton MBC,Environmental Services,Programmed Maint. Work,21-Nov-19,698.4,Mark Mangnall & Son Limited
Bolton MBC,Chief Executives,Marketing,14-Nov-19,"14,400.00",Marketing Manchester
Bolton MBC,Development & Regeneration,Promoting Bolton,28-Nov-19,"2,052.00",Marketing Manchester
Bolton MBC,Adult Services,Nursing Provision,05-Nov-19,"5,955.99",Marley Court  Nursing & Residentail Home
Bolton MBC,Environmental Services,Maint Of Playgrounds,04-Nov-19,"6,598.80",Marthall Tree Products Ltd
Bolton MBC,Adult Services,Residential Provision,05-Nov-19,"5,345.44",Mary & Joseph House
Bolton MBC,Adult Services,Residential Provision,25-Nov-19,"5,190.94",Redacted - Personal Data
Bolton MBC,Adult Services,Contracted Services,14-Nov-19,"9,188.26",Mary Seacole House
Bolton MBC,Childrens Services,Sales -  Services,28-Nov-19,750,Masefield Academy
Bolton MBC,Adult Services,Residential Provision,05-Nov-19,"17,850.00",Max Potential UK Limited
Bolton MBC,Adult Services,Residential Provision,05-Nov-19,"6,120.00",Max Potential UK Limited-Glen Avenue
Bolton MBC,Adult Services,Residential Provision,05-Nov-19,"3,768.00",Mayflower Court Residential Home
Bolton MBC,Environmental Services,Advertising General,28-Nov-19,"1,074.00",McGrath Media
Bolton MBC,Environmental Services,Marketing,07-Nov-19,"1,074.00",McGrath Media
Bolton MBC,Adult Services,Residential Provision,05-Nov-19,"6,288.48",Meadow Bank Nursing Home
Bolton MBC,Adult Services,Clients Aids & Adaptations,04-Nov-19,"2,340.00",Medstrom Limited
Bolton MBC,Adult Services,Clients Aids & Adaptations,28-Nov-19,"1,153.20",Medstrom Limited
Bolton MBC,Adult Services,Clients Aids & Adaptations,04-Nov-19,"1,116.00",Medstrom Limited
Bolton MBC,Adult Services,Residential Provision,05-Nov-19,"20,242.60",Mencap
Bolton MBC,Housing GRF,Operational Equipment Purchase,25-Nov-19,"1,744.90",Merlin Lazer Ltd
Bolton MBC,Environmental Services,Engineering Work,07-Nov-19,"7,484.40",MetDesk Limited
Bolton MBC,Adult Services,Nursing Provision,05-Nov-19,"2,354.52",Mewsbrook House
Bolton MBC,Development & Regeneration,Book Fund Expenditure,21-Nov-19,983.49,Microform Imaging Limited
Bolton MBC,Adult Services,Contracted Services,18-Nov-19,"2,004.00",Midshires Care Limited#t/a Helping Hands Home Care
Bolton MBC,Adult Services,Contracted Services,18-Nov-19,"1,619.30",Midshires Care Limited#t/a Helping Hands Home Care
Bolton MBC,Adult Services,Residential Provision,05-Nov-19,"264,894.56",Mill View Care Home
Bolton MBC,Adult Services,Residential Provision,05-Nov-19,"13,826.64",Millbrook Way - Heathwaite
Bolton MBC,Housing GRF,Clients Temporary Accommodation,21-Nov-19,"8,400.00",MK Hotels
Bolton MBC,Housing GRF,Clients Temporary Accommodation,25-Nov-19,"1,150.00",MK Hotels
Bolton MBC,Development & Regeneration,Other Security Expenses,28-Nov-19,"7,704.00",MK Illumination UK Ltd
Bolton MBC,Environmental Services,Artistes Fees,07-Nov-19,"3,013.88",MLM Concerts Limited
Bolton MBC,Environmental Services,Marketing,07-Nov-19,"1,350.00",Moonscape Media Ltd#Primary Times
Bolton MBC,Adult Services,Residential Provision,05-Nov-19,"9,789.00",Morden Grange
Bolton MBC,Adult Services,Residential Provision,05-Nov-19,"17,172.00",Morgan Care Ltd
Bolton MBC,Adult Services,Client Support Costs,25-Nov-19,782,Moss Hall Farm Cattery
Bolton MBC,Adult Services,Nursing Provision,05-Nov-19,"3,700.00",Moston Grange Nursing Home
Bolton MBC,Environmental Services,Other Fees,11-Nov-19,"1,817.40",Mr Claus Limited T/A The Christmas Decorators
Bolton MBC,Chief Executives,Printing General,07-Nov-19,670.8,Murbros Printers Limited
Bolton MBC,Environmental Services,Transport Hire,18-Nov-19,"2,376.00",N D Brown Ltd
Bolton MBC,Public Health,Contracted Services,11-Nov-19,764.69,Nash Pharmacy Ltd
Bolton MBC,Chief Executives,Car Parking,11-Nov-19,"42,086.77",National Car Parks Ltd#NCP
Bolton MBC,Chief Executives,Car Parking,11-Nov-19,904.04,National Car Parks Ltd#NCP
Bolton MBC,Chief Executives,Car Parking,11-Nov-19,597.57,National Car Parks Ltd#NCP
Bolton MBC,Chief Executives,Car Parking,28-Nov-19,594.32,National Car Parks Ltd#NCP
Bolton MBC,Childrens Services,Vol Assoc Grants - General,21-Nov-19,"7,200.00",National Offender Management Service
Bolton MBC,Childrens Services,Vol Assoc Grants - General,28-Nov-19,"1,440.00",National Offender Management Service
Bolton MBC,Environmental Services,Engineering Work,07-Nov-19,780,Nationwide Safety & Training Limited
Bolton MBC,Adult Services,Residential Provision,05-Nov-19,"20,448.47",Nazareth Care Charitable Trust
Bolton MBC,Adult Services,Clients Aids & Adaptations,14-Nov-19,"1,662.00",Neater Solutions Ltd
Bolton MBC,Adult Services,Other Fees,14-Nov-19,"1,488.00",Net View Systems Limited
Bolton MBC,Environmental Services,Advertising General,25-Nov-19,"1,114.80",Newsquest Media Group
Bolton MBC,Childrens Services,Vol Assoc Grants - General,18-Nov-19,"5,478.94","Next Stage ""A Way Forward"" Youth Development Limited"
Bolton MBC,Childrens Services,Vol Assoc Grants - General,14-Nov-19,"5,239.80","Next Stage ""A Way Forward"" Youth Development Limited"
Bolton MBC,Childrens Services,Vol Assoc Grants - General,14-Nov-19,"4,805.00","Next Stage ""A Way Forward"" Youth Development Limited"
Bolton MBC,Childrens Services,Vol Assoc Grants - General,14-Nov-19,"4,805.00","Next Stage ""A Way Forward"" Youth Development Limited"
Bolton MBC,Childrens Services,Vol Assoc Grants - General,14-Nov-19,"4,805.00","Next Stage ""A Way Forward"" Youth Development Limited"
Bolton MBC,Childrens Services,Vol Assoc Grants - General,14-Nov-19,"4,650.00","Next Stage ""A Way Forward"" Youth Development Limited"
Bolton MBC,Childrens Services,Vol Assoc Grants - General,14-Nov-19,"1,395.00","Next Stage ""A Way Forward"" Youth Development Limited"
Bolton MBC,Childrens Services,Vol Assoc Grants - General,18-Nov-19,"23,025.00",Next Stage 4 Life Limited
Bolton MBC,Childrens Services,Vol Assoc Grants - General,18-Nov-19,"19,714.20",Next Stage 4 Life Limited
Bolton MBC,Childrens Services,Vol Assoc Grants - General,18-Nov-19,"19,714.20",Next Stage 4 Life Limited
Bolton MBC,Adult Services,Residential Provision,05-Nov-19,"3,800.00",Next Steps Kingscliffe
Bolton MBC,Adult Services,Residential Provision,11-Nov-19,"7,378.29",Next Steps The Elms
Bolton MBC,Adult Services,Residential Provision,05-Nov-19,"3,803.16",Next Steps The Elms
Bolton MBC,Childrens Services,Legal Fees,18-Nov-19,720,Nine St John Street
Bolton MBC,Childrens Services,Office Furniture Purchase,28-Nov-19,630,Normans Musical Instruments#Normans (Burton Upon Trent) Limited
Bolton MBC,Environmental Services,Refunds,14-Nov-19,911,North West Funfairs Limited
Bolton MBC,Childrens Services,Private Contracted Services,11-Nov-19,"6,954.00",Northern Education
Bolton MBC,Childrens Services,Contracted Services,11-Nov-19,"5,490.00",Northern Education
Bolton MBC,Childrens Services,Private Contracted Services,25-Nov-19,"5,490.00",Northern Education
Bolton MBC,Childrens Services,Private Contracted Services,25-Nov-19,915,Northern Education
Bolton MBC,Environmental Services,Transport Hire,18-Nov-19,"6,837.08",Northgate Vehicle Hire Ltd
Bolton MBC,Environmental Services,Uninsured Losses - Vehicles,07-Nov-19,"1,031.54",Northgate Vehicle Hire Ltd
Bolton MBC,Environmental Services,Governer Support-LEA,14-Nov-19,"62,694.41",NSL Limited#NSL Services Group
Bolton MBC,Environmental Services,Governer Support-LEA,04-Nov-19,"54,204.85",NSL Limited#NSL Services Group
Bolton MBC,Childrens Services,Miscellaneous Expenses,14-Nov-19,788.05,Nugent Adoption Services#Nugent Care
Bolton MBC,Environmental Services,Transport Hire,14-Nov-19,"2,340.00",Nu-Phalt Limited
Bolton MBC,Environmental Services,Transport Hire,25-Nov-19,"2,340.00",Nu-Phalt Limited
Bolton MBC,Environmental Services,Direct Materials,21-Nov-19,"1,392.00",Nu-Phalt Limited
Bolton MBC,Childrens Services,Other Fees,25-Nov-19,"2,014.83",Nurture-Psychology Service Ltd
Bolton MBC,Adult Services,Clients Aids & Adaptations,28-Nov-19,"1,099.80",NYMAS#North Yorkshire Mobility & Safety#Barwood
Bolton MBC,Environmental Services,Mobile Telephone Calls,28-Nov-19,614.16,O2 (UK) Limited#TELEFONICA
Bolton MBC,Environmental Services,Mobile Telephone Calls,28-Nov-19,600.26,O2 (UK) Limited#TELEFONICA
Bolton MBC,Environmental Services,Mobile Telephone Calls,28-Nov-19,586.49,O2 (UK) Limited#TELEFONICA
Bolton MBC,Public Health,Clients Medical Requisites,14-Nov-19,"3,500.00",Oasis Recovery Communities Limited#Treatment Direct Ltd
Bolton MBC,Public Health,Residential Provision,14-Nov-19,571.43,Oasis Recovery Communities Limited#Treatment Direct Ltd
Bolton MBC,Environmental Services,Floral Decorations,25-Nov-19,660,Octagon Flowers
Bolton MBC,Development & Regeneration,Room Hire,21-Nov-19,582,Octagon Theatre Trust Ltd#The Octagon#Octagon Theatre
Bolton MBC,Childrens Services,Vol Assoc Grants - General,07-Nov-19,"3,242.40",Olive Branch Fostering Limited
Bolton MBC,Childrens Services,Vol Assoc Grants - General,07-Nov-19,"3,242.40",Olive Branch Fostering Limited
Bolton MBC,Development & Regeneration,Agency Staff - Other,25-Nov-19,"2,399.58",Optimum Professional Solutions Limited
Bolton MBC,Adult Services,Residential Provision,05-Nov-19,"5,495.84",Options Vernon
Bolton MBC,Chief Executives,Computer Software Licences,28-Nov-19,"137,037.48",Oracle Corporation UK Limited
Bolton MBC,Childrens Services,Vol Assoc Grants - General,07-Nov-19,"3,818.70",Orange Grove Foster Care Limited
Bolton MBC,Childrens Services,Vol Assoc Grants - General,07-Nov-19,"3,627.60",Orange Grove Foster Care Limited
Bolton MBC,Adult Services,Residential Provision,05-Nov-19,"2,184.56",Orchard Court
Bolton MBC,Adult Services,Residential Provision,05-Nov-19,"3,596.00",Orchard House
Bolton MBC,Adult Services,Clients Aids & Adaptations,07-Nov-19,"2,267.16",Osprey Healthcare Ltd
Bolton MBC,Adult Services,Clients Aids & Adaptations,28-Nov-19,"1,440.72",Osprey Healthcare Ltd
Bolton MBC,Adult Services,Contracted Services,18-Nov-19,"6,954.00",Oswald House
Bolton MBC,Childrens Services,Vol Assoc Grants - General,21-Nov-19,"27,857.14",Outbound Care Limited
Bolton MBC,Development & Regeneration,Other Fees,11-Nov-19,"8,006.40",Ove Arup & Partners Ltd
Bolton MBC,Bolton MBC Balance Sheet,CIS Deductions,07-Nov-19,"11,566.56",P J Carney & Co Ltd
Bolton MBC,Environmental Services,Engineering Work,07-Nov-19,"9,895.20",P J Carney & Co Ltd
Bolton MBC,Environmental Services,Operational Equipment Maint,25-Nov-19,"1,295.40",Pakawaste Engineering Services Ltd
Bolton MBC,Childrens Services,Agency Staff - Other,07-Nov-19,"1,731.60",Paradigm Professional Consultancy Limited
Bolton MBC,Childrens Services,Agency Staff - Other,07-Nov-19,"1,731.60",Paradigm Professional Consultancy Limited
Bolton MBC,Childrens Services,Agency Staff - Other,07-Nov-19,"1,574.40",Paradigm Professional Consultancy Limited
Bolton MBC,Childrens Services,Agency Staff - Other,07-Nov-19,"1,539.84",Paradigm Professional Consultancy Limited
Bolton MBC,Childrens Services,Vol Assoc Grants - General,14-Nov-19,"5,403.30",Parallel Parents
Bolton MBC,Childrens Services,Vol Assoc Grants - General,14-Nov-19,"5,393.69",Parallel Parents
Bolton MBC,Childrens Services,Vol Assoc Grants - General,25-Nov-19,"3,931.73",Parallel Parents
Bolton MBC,Childrens Services,Vol Assoc Grants - General,21-Nov-19,"3,813.00",Parallel Parents
Bolton MBC,Childrens Services,Vol Assoc Grants - General,25-Nov-19,"3,813.00",Parallel Parents
Bolton MBC,Adult Services,Residential Provision,05-Nov-19,"3,280.88",Park Lane Healthcare (Croston Park) Limited
Bolton MBC,Environmental Services,Horticultural Materials,28-Nov-19,608.04,Park Lane Plants Ltd
Bolton MBC,Adult Services,Residential Provision,05-Nov-19,"5,355.73",Parkview Nursing & Residential Home
Bolton MBC,Environmental Services,General Subscriptions,21-Nov-19,"2,153.70",PATROL#Parking and Traffic Regulations Outside London
Bolton MBC,Housing GRF,Operational Equipment Purchase,25-Nov-19,558.96,Paul Davies Kitchen Appliance Centre T/A P&S Domestics
Bolton MBC,Housing GRF,Kitchen Equipment,25-Nov-19,516.96,Paul Davies Kitchen Appliance Centre T/A P&S Domestics
Bolton MBC,Housing GRF,Kitchen Equipment,25-Nov-19,516.96,Paul Davies Kitchen Appliance Centre T/A P&S Domestics
Bolton MBC,Housing GRF,Kitchen Equipment,25-Nov-19,516.96,Paul Davies Kitchen Appliance Centre T/A P&S Domestics
Bolton MBC,Housing GRF,Kitchen Equipment,14-Nov-19,516.96,Paul Davies Kitchen Appliance Centre T/A P&S Domestics
Bolton MBC,Housing GRF,Kitchen Equipment,28-Nov-19,516.96,Paul Davies Kitchen Appliance Centre T/A P&S Domestics
Bolton MBC,Bolton MBC Balance Sheet,CIS Deductions,07-Nov-19,"2,400.00",Peak Fabrications (Bolton) Limited
Bolton MBC,Bolton MBC Balance Sheet,CIS Deductions,07-Nov-19,"1,320.00",Peak Fabrications (Bolton) Limited
Bolton MBC,Environmental Services,Maint Of Playgrounds,07-Nov-19,"3,840.00",Peak Fabrications (Bolton) Limited
Bolton MBC,Environmental Services,Maint Of Playgrounds,07-Nov-19,"3,276.00",Peak Fabrications (Bolton) Limited
Bolton MBC,Environmental Services,Contracted Services,07-Nov-19,"2,220.00",Peak Fabrications (Bolton) Limited
Bolton MBC,Childrens Services,Operational Equipment Purchase,14-Nov-19,656.1,Pearson Education Limited
Bolton MBC,Childrens Services,Vol Assoc Grants - General,14-Nov-19,"11,571.43",Pebbles Care Limited
Bolton MBC,Adult Services,Residential Provision,05-Nov-19,"3,200.00",Pemberley House
Bolton MBC,Public Health,Other Fees,14-Nov-19,"12,420.00",Penna PLC
Bolton MBC,Public Health,Other Fees,14-Nov-19,"12,420.00",Penna PLC
Bolton MBC,Public Health,Other Fees,14-Nov-19,"11,040.00",Penna PLC
Bolton MBC,Bolton MBC Balance Sheet,CIS Deductions,28-Nov-19,"9,750.00",Pentagon Sport Limited
Bolton MBC,Bolton MBC Balance Sheet,CIS Deductions,18-Nov-19,"9,540.00",Pentagon Sport Limited
Bolton MBC,Childrens Services,Vol Assoc Grants - General,25-Nov-19,"4,927.80",People Who Foster Limited
Bolton MBC,Childrens Services,Vol Assoc Grants - General,04-Nov-19,"7,071.30",Perpetual Fostering Limited
Bolton MBC,Childrens Services,Vol Assoc Grants - General,04-Nov-19,"4,495.80",Perpetual Fostering Limited
Bolton MBC,Childrens Services,Vol Assoc Grants - General,04-Nov-19,"3,192.60",Perpetual Fostering Limited
Bolton MBC,Environmental Services,Contracted Services,25-Nov-19,"4,392.00",Peter Douglass Platforms
Bolton MBC,Environmental Services,Transport Hire,07-Nov-19,"1,152.00",Peter Douglass Platforms
Bolton MBC,Environmental Services,Transport Hire,14-Nov-19,"1,075.20",Peter Douglass Platforms
Bolton MBC,Environmental Services,Transport Hire,28-Nov-19,"1,075.20",Peter Douglass Platforms
Bolton MBC,Environmental Services,Transport Hire,07-Nov-19,921.6,Peter Douglass Platforms
Bolton MBC,Environmental Services,Transport Hire,07-Nov-19,504,Peter Douglass Platforms
Bolton MBC,Development & Regeneration,Book Fund Expenditure,25-Nov-19,"4,667.01",Peters Limited
Bolton MBC,Development & Regeneration,Book Fund Expenditure,07-Nov-19,"4,658.01",Peters Limited
Bolton MBC,Environmental Services,Other Fees,25-Nov-19,555.71,Phoenix Commercial Collections#2
Bolton MBC,Environmental Services,Agency Staff - Other,25-Nov-19,"1,176.00",PHS Group PLC
Bolton MBC,Childrens Services,Other Fees,14-Nov-19,965,Pickering Psychology Services Limited
Bolton MBC,Public Health,Contracted Services,07-Nov-19,"1,425.25",Pike View Medical Centre
Bolton MBC,Development & Regeneration,Goods for Resale,18-Nov-19,968.02,Playmobil UK Limited
Bolton MBC,Environmental Services,Other Fees,29-Nov-19,"16,666.67",Polka Dot Pantomines Limited
Bolton MBC,Development & Regeneration,Refunds,07-Nov-19,"1,794.00",PortalPlan Quest Limited
Bolton MBC,Environmental Services,Postage Charge,26-Nov-19,"36,000.00",Postage By Phone-Pitney Bowes Ltd
Bolton MBC,Chief Executives,Training Exp - Books Etc,28-Nov-19,723.59,Posturite Ltd
Bolton MBC,Adult Services,Contracted Services,14-Nov-19,"86,688.75",Premier Care Ltd
Bolton MBC,Adult Services,Contracted Services,04-Nov-19,"63,144.98",Premier Care Ltd
Bolton MBC,Adult Services,Contracted Services,14-Nov-19,"28,570.83",Premier Care Ltd
Bolton MBC,Adult Services,Contracted Services,04-Nov-19,"22,323.42",Premier Care Ltd
Bolton MBC,Chief Executives,Office Stationery,07-Nov-19,"1,455.55",Premier Paper Group Limited
Bolton MBC,Chief Executives,Office Stationery,21-Nov-19,656.4,Premier Paper Group Limited
Bolton MBC,Environmental Services,Health and Safety,25-Nov-19,708,Premier Pest Services
Bolton MBC,Environmental Services,Contracted Services,28-Nov-19,543.82,Premier Tail Lifts Ltd
Bolton MBC,Chief Executives,AR Unapplied Receipts Refunds,11-Nov-19,"5,946.92",Prestolee Multi Academy Trust t/a Prestolee Academy
Bolton MBC,Financial Services,Professional Fees re VAT advice helpline,28-Nov-19,"2,400.00",Pricewaterhousecoopers
Bolton MBC,Adult Services,Contracted Services,04-Nov-19,"12,600.00",Primrose Neurological Centre
Bolton MBC,Adult Services,Clients Aids & Adaptations,21-Nov-19,"3,163.50",Prism Medical UK
Bolton MBC,Adult Services,Clients Aids & Adaptations,21-Nov-19,"3,030.63",Prism Medical UK
Bolton MBC,Adult Services,Clients Aids & Adaptations,21-Nov-19,"2,587.20",Prism Medical UK
Bolton MBC,Adult Services,Clients Aids & Adaptations,21-Nov-19,"2,131.82",Prism Medical UK
Bolton MBC,Adult Services,Clients Aids & Adaptations,25-Nov-19,878.72,Prism Medical UK
Bolton MBC,Childrens Services,Vol Assoc Grants - General,14-Nov-19,"24,578.57",Proactive Care (Manchester) Ltd
Bolton MBC,Environmental Services,Agency Staff - Other,25-Nov-19,"3,134.70",Profile Security Services Ltd
Bolton MBC,Environmental Services,Agency Staff - Other,25-Nov-19,"2,792.08",Profile Security Services Ltd
Bolton MBC,Environmental Services,Agency Staff - Other,25-Nov-19,"2,515.06",Profile Security Services Ltd
Bolton MBC,Environmental Services,Agency Staff - Other,25-Nov-19,"2,354.30",Profile Security Services Ltd
Bolton MBC,Environmental Services,Agency Staff - Other,25-Nov-19,"1,585.62",Profile Security Services Ltd
Bolton MBC,Environmental Services,Agency Staff - Other,25-Nov-19,"1,121.90",Profile Security Services Ltd
Bolton MBC,Environmental Services,Agency Staff - Other,25-Nov-19,827.28,Profile Security Services Ltd
Bolton MBC,Environmental Services,Agency Staff - Other,25-Nov-19,761.78,Profile Security Services Ltd
Bolton MBC,Environmental Services,Agency Staff - Other,25-Nov-19,661.82,Profile Security Services Ltd
Bolton MBC,Highways ,Inventory AP Accrual,04-Nov-19,817.78,Protec Direct Ltd
Bolton MBC,Highways ,Work in Progress Additions,07-Nov-19,"6,614.40",Protek Fencing Ltd
Bolton MBC,Highways ,Work in Progress Additions,07-Nov-19,"5,505.85",Protek Fencing Ltd
Bolton MBC,Highways ,Work in Progress Additions,14-Nov-19,953.02,Protek Fencing Ltd
Bolton MBC,Childrens Services,Operational Equipment Purchase,04-Nov-19,713.82,Proviz Limited
Bolton MBC,Chief Executives,AR Unapplied Receipts Refunds,14-Nov-19,"87,052.00",PSP Bolton (GR) LLP
Bolton MBC,Adult Services,Contracted Services,04-Nov-19,"11,776.50",Putting You First Ltd#Your Life Your Way
Bolton MBC,Adult Services,Residential Provision,05-Nov-19,"12,376.88",Queens Park View#Intelligent Care
Bolton MBC,Adult Services,Clients Aids & Adaptations,14-Nov-19,885.6,Quest 88 Limited
Bolton MBC,Childrens Services,Agency Staff - Other,07-Nov-19,"6,885.00",Quickline Recruitment Limited
Bolton MBC,Childrens Services,Agency Staff - Other,07-Nov-19,"2,370.00",Quickline Recruitment Limited
Bolton MBC,Childrens Services,Agency Staff - Other,14-Nov-19,"2,042.40",Quickline Recruitment Limited
Bolton MBC,Childrens Services,Agency Staff - Other,14-Nov-19,"1,422.00",Quickline Recruitment Limited
Bolton MBC,Development & Regeneration,Other Fees,18-Nov-19,"19,470.98",Quod Limited
Bolton MBC,Environmental Services,Clients - Swimming Fares,21-Nov-19,"2,760.00",R S Tyrer Ltd
Bolton MBC,Adult Services,Clients Aids & Adaptations,07-Nov-19,"3,722.40",R82 UK Ltd
Bolton MBC,Adult Services,Nursing Provision,05-Nov-19,"11,122.48",Radcliffe Meadows Nursing Home
Bolton MBC,Environmental Services,Voluntary Sector- Area Working Grants,21-Nov-19,"24,000.00",Raise the Youth Foundation CIC Limited
Bolton MBC,Adult Services,Nursing Home Provision,05-Nov-19,"10,779.32",Randomlight Ltd#Heightside House
Bolton MBC,Adult Services,Contracted Services,07-Nov-19,"4,219.04",Recovery Support Ltd
Bolton MBC,Adult Services,Contracted Services,07-Nov-19,"1,445.91",Recovery Support Ltd
Bolton MBC,Adult Services,Contracted Services,07-Nov-19,"1,363.96",Recovery Support Ltd
Bolton MBC,Adult Services,Contracted Services,07-Nov-19,"1,332.24",Recovery Support Ltd
Bolton MBC,Adult Services,Contracted Services,07-Nov-19,"1,268.80",Recovery Support Ltd
Bolton MBC,Adult Services,Contracted Services,07-Nov-19,"1,046.76",Recovery Support Ltd
Bolton MBC,Adult Services,Contracted Services,07-Nov-19,761.28,Recovery Support Ltd
Bolton MBC,Adult Services,Contracted Services,07-Nov-19,697.48,Recovery Support Ltd
Bolton MBC,Adult Services,Contracted Services,07-Nov-19,634.4,Recovery Support Ltd
Bolton MBC,Adult Services,Contracted Services,07-Nov-19,507.52,Recovery Support Ltd
Bolton MBC,Adult Services,Contracted Services,21-Nov-19,"15,944.32",Redacted - Personal Data
Bolton MBC,Adult Services,Residential Provision,05-Nov-19,"8,889.96",Redacted - Personal Data
Bolton MBC,Adult Services,Contracted Services,04-Nov-19,"7,511.58",Redacted - Personal Data
Bolton MBC,Adult Services,Residential Provision,25-Nov-19,"2,710.19",Redacted - Personal Data
Bolton MBC,Adult Services,Sales -  Services,28-Nov-19,"1,242.61",Redacted - Personal Data
Bolton MBC,Adult Services,Other Agency/Contracted Services,21-Nov-19,"1,144.20",Redacted - Personal Data
Bolton MBC,Adult Services,Client - Direct Payments,28-Nov-19,"1,058.06",Redacted - Personal Data
Bolton MBC,Adult Services,Nursing Home Provision,25-Nov-19,833.77,Redacted - Personal Data
Bolton MBC,Adult Services,Clients - Direct Payment Recoveries,25-Nov-19,823.32,Redacted - Personal Data
Bolton MBC,Adult Services,Contracted Services,11-Nov-19,546.28,Redacted - Personal Data
Bolton MBC,Bolton MBC Balance Sheet,CIS Deductions,04-Nov-19,556.84,Redacted - Personal Data
Bolton MBC,Chief Executives,Other Fees,14-Nov-19,"3,780.00",Redacted - Personal Data
Bolton MBC,Chief Executives,Other Fees,07-Nov-19,"3,085.00",Redacted - Personal Data
Bolton MBC,Chief Executives,Other Fees,07-Nov-19,"2,000.00",Redacted - Personal Data
Bolton MBC,Chief Executives,Training Exps Tuition Fees,14-Nov-19,"1,900.00",Redacted - Personal Data
Bolton MBC,Chief Executives,Benefits - rent allowances,25-Nov-19,"1,164.00",Redacted - Personal Data
Bolton MBC,Chief Executives,Benefits - rent allowances,28-Nov-19,"1,061.76",Redacted - Personal Data
Bolton MBC,Chief Executives,Benefits - rent allowances,25-Nov-19,736,Redacted - Personal Data
Bolton MBC,Chief Executives,Benefits - rent allowances,25-Nov-19,692.72,Redacted - Personal Data
Bolton MBC,Chief Executives,O'paymnts Fraud Std,11-Nov-19,576.8,Redacted - Personal Data
Bolton MBC,Chief Executives,Benefits - rent allowances,11-Nov-19,553.84,Redacted - Personal Data
Bolton MBC,Childrens Services,Contracted Services,18-Nov-19,"3,045.00",Redacted - Personal Data
Bolton MBC,Childrens Services,Contracted Services,07-Nov-19,"3,000.00",Redacted - Personal Data
Bolton MBC,Childrens Services,Contracted Services,07-Nov-19,"1,950.00",Redacted - Personal Data
Bolton MBC,Childrens Services,Private Contracted Services,25-Nov-19,"1,800.00",Redacted - Personal Data
Bolton MBC,Childrens Services,Contracted Services,18-Nov-19,"1,675.00",Redacted - Personal Data
Bolton MBC,Childrens Services,Contracted Services,07-Nov-19,"1,650.00",Redacted - Personal Data
Bolton MBC,Childrens Services,Contracted Services,14-Nov-19,"1,640.00",Redacted - Personal Data
Bolton MBC,Childrens Services,Contracted Services,18-Nov-19,"1,425.00",Redacted - Personal Data
Bolton MBC,Childrens Services,Contracted Services,07-Nov-19,"1,360.00",Redacted - Personal Data
Bolton MBC,Childrens Services,Contracted Services,25-Nov-19,"1,242.00",Redacted - Personal Data
Bolton MBC,Childrens Services,Family Placement (Daycare),11-Nov-19,"1,220.00",Redacted - Personal Data
Bolton MBC,Childrens Services,Family Placement (Daycare),11-Nov-19,"1,220.00",Redacted - Personal Data
Bolton MBC,Childrens Services,Client Support Costs,25-Nov-19,"1,124.00",Redacted - Personal Data
Bolton MBC,Childrens Services,Contracted Services,18-Nov-19,"1,092.00",Redacted - Personal Data
Bolton MBC,Childrens Services,Contracted Services,07-Nov-19,"1,050.00",Redacted - Personal Data
Bolton MBC,Childrens Services,Text Books,07-Nov-19,"1,000.00",Redacted - Personal Data
Bolton MBC,Childrens Services,Fees/Expenses Schools,11-Nov-19,"1,000.00",Redacted - Personal Data
Bolton MBC,Childrens Services,Client - Direct Payments,21-Nov-19,996.08,Redacted - Personal Data
Bolton MBC,Childrens Services,Other Fees,14-Nov-19,862.4,Redacted - Personal Data
Bolton MBC,Childrens Services,Family Placement (Daycare),25-Nov-19,860.79,Redacted - Personal Data
Bolton MBC,Childrens Services,Contracted Services,07-Nov-19,860,Redacted - Personal Data
Bolton MBC,Childrens Services,Car Parking,11-Nov-19,858.46,Redacted - Personal Data
Bolton MBC,Childrens Services,Contracted Services,07-Nov-19,825,Redacted - Personal Data
Bolton MBC,Childrens Services,Other Fees,28-Nov-19,759.75,Redacted - Personal Data
Bolton MBC,Childrens Services,Contracted Services,04-Nov-19,723,Redacted - Personal Data
Bolton MBC,Childrens Services,Other Fees,21-Nov-19,668,Redacted - Personal Data
Bolton MBC,Childrens Services,Contracted Services,14-Nov-19,630,Redacted - Personal Data
Bolton MBC,Childrens Services,Other Fees,14-Nov-19,622.82,Redacted - Personal Data
Bolton MBC,Childrens Services,Family Placement (Daycare),11-Nov-19,620,Redacted - Personal Data
Bolton MBC,Childrens Services,Family Placement (Daycare),11-Nov-19,620,Redacted - Personal Data
Bolton MBC,Childrens Services,Family Placement (Daycare),11-Nov-19,620,Redacted - Personal Data
Bolton MBC,Childrens Services,Family Placement (Daycare),11-Nov-19,620,Redacted - Personal Data
Bolton MBC,Childrens Services,Family Placement (Daycare),11-Nov-19,620,Redacted - Personal Data
Bolton MBC,Childrens Services,Other Fees,21-Nov-19,609.75,Redacted - Personal Data
Bolton MBC,Childrens Services,Other Fees,28-Nov-19,580,Redacted - Personal Data
Bolton MBC,Childrens Services,Other Fees,21-Nov-19,577.5,Redacted - Personal Data
Bolton MBC,Childrens Services,Other Fees,14-Nov-19,570,Redacted - Personal Data
Bolton MBC,Childrens Services,Other Fees,14-Nov-19,570,Redacted - Personal Data
Bolton MBC,Childrens Services,Client - Direct Payments,21-Nov-19,564.2,Redacted - Personal Data
Bolton MBC,Childrens Services,Other Fees,21-Nov-19,558,Redacted - Personal Data
Bolton MBC,Childrens Services,Contracted Services,04-Nov-19,557.5,Redacted - Personal Data
Bolton MBC,Childrens Services,Other Fees,04-Nov-19,552,Redacted - Personal Data
Bolton MBC,Childrens Services,Family Placement (Daycare),11-Nov-19,552,Redacted - Personal Data
Bolton MBC,Childrens Services,Contracted Services,25-Nov-19,530.5,Redacted - Personal Data
Bolton MBC,Childrens Services,Contracted Services,14-Nov-19,527,Redacted - Personal Data
Bolton MBC,Childrens Services,Family Placement (Daycare),07-Nov-19,520.85,Redacted - Personal Data
Bolton MBC,Childrens Services,Other Fees,21-Nov-19,507,Redacted - Personal Data
Bolton MBC,Childrens Services,Client Support Costs,25-Nov-19,504.85,Redacted - Personal Data
Bolton MBC,Childrens Services,Fees/Expenses Schools,11-Nov-19,500,Redacted - Personal Data
Bolton MBC,Childrens Services,Fees/Expenses Schools,25-Nov-19,500,Redacted - Personal Data
Bolton MBC,Development & Regeneration,Legal Fees,07-Nov-19,"15,118.80",Redacted - Personal Data
Bolton MBC,Development & Regeneration,Miscellaneous Grants,25-Nov-19,"3,000.00",Redacted - Personal Data
Bolton MBC,Development & Regeneration,Consultancy Fees,07-Nov-19,600,Redacted - Personal Data
Bolton MBC,Development & Regeneration,Other Fees,21-Nov-19,583,Redacted - Personal Data
Bolton MBC,Environmental Services,Artistes Fees,11-Nov-19,"3,551.25",Redacted - Personal Data
Bolton MBC,Environmental Services,Medical Referees Fees,07-Nov-19,"2,360.00",Redacted - Personal Data
Bolton MBC,Environmental Services,Medical Referees Fees,07-Nov-19,"1,120.00",Redacted - Personal Data
Bolton MBC,Environmental Services,Day To Day Maintenance,25-Nov-19,591.89,Redacted - Personal Data
Bolton MBC,Environmental Services,Day To Day Maintenance,18-Nov-19,535.92,Redacted - Personal Data
Bolton MBC,Environmental Services,Operational Equipment Purchase,14-Nov-19,528,Redacted - Personal Data
Bolton MBC,Housing GRF,Rent Of Buildings,04-Nov-19,"1,427.33",Redacted - Personal Data
Bolton MBC,Housing GRF,Rent Of Buildings,04-Nov-19,"1,421.37",Redacted - Personal Data
Bolton MBC,Housing GRF,Rent Of Buildings,28-Nov-19,"1,283.50",Redacted - Personal Data
Bolton MBC,Housing GRF,Rent Of Buildings,28-Nov-19,"1,283.50",Redacted - Personal Data
Bolton MBC,Housing GRF,Rent Of Buildings,07-Nov-19,"1,075.31",Redacted - Personal Data
Bolton MBC,Housing GRF,Rent Of Buildings,04-Nov-19,"1,041.82",Redacted - Personal Data
Bolton MBC,Housing GRF,Rent Of Buildings,04-Nov-19,999.12,Redacted - Personal Data
Bolton MBC,Housing GRF,Rent Of Buildings,07-Nov-19,975,Redacted - Personal Data
Bolton MBC,Housing GRF,Rent Of Buildings,25-Nov-19,904,Redacted - Personal Data
Bolton MBC,Housing GRF,Rent Of Buildings,18-Nov-19,649.03,Redacted - Personal Data
Bolton MBC,Adult Services,Residential Provision,05-Nov-19,"5,041.12",Redbank Care Home#Payee Voyage North
Bolton MBC,Childrens Services,Agency Staff - Other,28-Nov-19,"163,407.45",Reed Specialist Recruitment Limited
Bolton MBC,Childrens Services,Agency Staff - Other,14-Nov-19,"155,130.39",Reed Specialist Recruitment Limited
Bolton MBC,Childrens Services,Agency Staff - Other,21-Nov-19,"135,264.61",Reed Specialist Recruitment Limited
Bolton MBC,Childrens Services,Agency Staff - Other,07-Nov-19,"16,968.00",Reed Specialist Recruitment Limited
Bolton MBC,Childrens Services,Agency Staff - Other,28-Nov-19,"16,968.00",Reed Specialist Recruitment Limited
Bolton MBC,Childrens Services,Agency Staff - Other,28-Nov-19,"16,968.00",Reed Specialist Recruitment Limited
Bolton MBC,Childrens Services,Agency Staff - Other,28-Nov-19,"10,680.00",Reed Specialist Recruitment Limited
Bolton MBC,Childrens Services,Agency Staff - Other,28-Nov-19,"10,272.00",Reed Specialist Recruitment Limited
Bolton MBC,Childrens Services,Agency Staff - Other,28-Nov-19,"2,040.00",Reed Specialist Recruitment Limited
Bolton MBC,Childrens Services,Agency Staff - Other,07-Nov-19,"1,428.00",Reed Specialist Recruitment Limited
Bolton MBC,Environmental Services,Agency Staff - Other,07-Nov-19,"132,542.48",Reed Specialist Recruitment Limited
Bolton MBC,Highways ,Inventory AP Accrual,07-Nov-19,744,Region Electrical Supplies Ltd#1
Bolton MBC,Environmental Services,Printing General,14-Nov-19,648.9,Regional Circular Distribution#RCD#Andrew Jenner Ltd
Bolton MBC,Bolton MBC Balance Sheet,CIS Deductions,07-Nov-19,"4,545.60",Regional Flooring Co Ltd
Bolton MBC,Childrens Services,Agency Staff - Other,04-Nov-19,"1,260.00",Retinue Solutions
Bolton MBC,Environmental Services,Plant Hire,07-Nov-19,"1,560.00",Richard Burton Haulage Limited
Bolton MBC,Environmental Services,Plant Hire,21-Nov-19,"1,560.00",Richard Burton Haulage Limited
Bolton MBC,Environmental Services,Plant Hire,28-Nov-19,"1,365.00",Richard Burton Haulage Limited
Bolton MBC,Environmental Services,Plant Hire,21-Nov-19,"1,248.00",Richard Burton Haulage Limited
Bolton MBC,Environmental Services,Plant Hire,04-Nov-19,576,Richard Burton Haulage Limited
Bolton MBC,Adult Services,Residential Provision,05-Nov-19,"2,019.76",Richmond Care Home
Bolton MBC,Chief Executives,Office Equipment Maintenance,14-Nov-19,610.8,Ricoh UK Limited
Bolton MBC,Environmental Services,General Subscriptions,21-Nov-19,720,RICS#Royal Institute of Chartered Surveyors
Bolton MBC,Adult Services,Residential Provision,05-Nov-19,"2,288.00",Ridgeway Lodge
Bolton MBC,Adult Services,Contracted Services,14-Nov-19,854.73,Right Care (NW) Limited
Bolton MBC,Adult Services,Contracted Services,25-Nov-19,678.85,Right Care (NW) Limited
Bolton MBC,Adult Services,Contracted Services,04-Nov-19,668.08,Right Care (NW) Limited
Bolton MBC,Adult Services,Contracted Services,14-Nov-19,596.1,Right Care (NW) Limited
Bolton MBC,Adult Services,Contracted Services,25-Nov-19,548.01,Right Care (NW) Limited
Bolton MBC,Adult Services,Contracted Services,04-Nov-19,535.03,Right Care (NW) Limited
Bolton MBC,Adult Services,Contracted Services,04-Nov-19,517.86,Right Care (NW) Limited
Bolton MBC,Adult Services,Contracted Services,04-Nov-19,516.57,Right Care (NW) Limited
Bolton MBC,Adult Services,Residential Provision,05-Nov-19,"6,072.00",Riverside House
Bolton MBC,Environmental Services,Transport Hire,11-Nov-19,"6,900.00",Riverside Truck Rental Limited
Bolton MBC,Environmental Services,Transport Hire,11-Nov-19,"6,900.00",Riverside Truck Rental Limited
Bolton MBC,Environmental Services,Transport Hire,11-Nov-19,"6,900.00",Riverside Truck Rental Limited
Bolton MBC,Environmental Services,Transport Hire,11-Nov-19,"6,900.00",Riverside Truck Rental Limited
Bolton MBC,Environmental Services,Transport Hire,18-Nov-19,"4,968.00",Riverside Truck Rental Limited
Bolton MBC,Environmental Services,Transport Hire,18-Nov-19,"4,940.40",Riverside Truck Rental Limited
Bolton MBC,Environmental Services,Transport Hire,07-Nov-19,"3,672.00",Riverside Truck Rental Limited
Bolton MBC,Adult Services,Residential Provision,05-Nov-19,"2,191.44",Rivington Park Care Home
Bolton MBC,Adult Services,Residential Provision,05-Nov-19,"29,941.34",Rivington View Nursing Home
Bolton MBC,Adult Services,Contracted Services,07-Nov-19,"22,701.88",RNHS Ltd
Bolton MBC,Adult Services,Contracted Services,07-Nov-19,"2,149.19",RNHS Ltd
Bolton MBC,Environmental Services,Cleaning Materials,07-Nov-19,"1,164.24",Robert Scott & Sons Limited
Bolton MBC,Chief Executives,Contracted Services,04-Nov-19,"9,600.00",Robertson Capital Projects Limited
Bolton MBC,Chief Executives,Contracted Services,25-Nov-19,"670,327.50",Robertson Facilities Management Limited
Bolton MBC,Chief Executives,Contracted Services,21-Nov-19,"663,031.04",Robertson Facilities Management Limited
Bolton MBC,Chief Executives,Contracted Services,04-Nov-19,"500,613.38",Robertson Facilities Management Limited
Bolton MBC,Bolton MBC Balance Sheet,CIS Deductions,14-Nov-19,793.87,Robinson Plant Hire
Bolton MBC,Environmental Services,Plant Hire,07-Nov-19,793.87,Robinson Plant Hire
Bolton MBC,Environmental Services,Plant Hire,25-Nov-19,793.87,Robinson Plant Hire
Bolton MBC,Environmental Services,Plant Hire,28-Nov-19,793.87,Robinson Plant Hire
Bolton MBC,Childrens Services,Vol Assoc Grants - General,25-Nov-19,"25,071.43",ROC Northwest Limited
Bolton MBC,Childrens Services,Vol Assoc Grants - General,11-Nov-19,"14,614.33",ROC Northwest Limited
Bolton MBC,Adult Services,Residential Provision,05-Nov-19,"21,204.02",Rose Court Nursing Home
Bolton MBC,Adult Services,Nursing Provision,05-Nov-19,"9,165.43",Rosebridge Court
Bolton MBC,Adult Services,Contracted Services,14-Nov-19,"43,477.28",Rosewood Court
Bolton MBC,Adult Services,Contracted Services,14-Nov-19,"2,913.76",Rosewood Court
Bolton MBC,Adult Services,Contracted Services,14-Nov-19,"2,714.00",Rosewood Court
Bolton MBC,Adult Services,Contracted Services,14-Nov-19,"2,185.32",Rosewood Court
Bolton MBC,Environmental Services,Clients - Taxi Fares,11-Nov-19,"1,560.00",Rossendale School#Charity Account
Bolton MBC,Public Health,Contracted Services,11-Nov-19,567.68,Rowlands Pharmacy
Bolton MBC,Adult Services,Contracted Services,07-Nov-19,"12,425.28",Royal House
Bolton MBC,Adult Services,Contracted Services,07-Nov-19,"12,425.28",Royal House
Bolton MBC,Adult Services,Contracted Services,21-Nov-19,"12,425.28",Royal House
Bolton MBC,Chief Executives,Postages Direct Costs,07-Nov-19,"3,570.29",Royal Mail Group Limited
Bolton MBC,Chief Executives,Postages Direct Costs,14-Nov-19,"3,219.01",Royal Mail Group Limited
Bolton MBC,Chief Executives,Postages Direct Costs,21-Nov-19,"3,031.21",Royal Mail Group Limited
Bolton MBC,Chief Executives,Postages Direct Costs,28-Nov-19,"3,018.88",Royal Mail Group Limited
Bolton MBC,Chief Executives,Survey Fees,07-Nov-19,"1,412.38",Royal Mail Group Limited
Bolton MBC,Chief Executives,Survey Fees,18-Nov-19,"1,251.84",Royal Mail Group Limited
Bolton MBC,Environmental Services,Training Exps Tuition Fees,07-Nov-19,540,RPS Training
Bolton MBC,Childrens Services,Private Contracted Services,25-Nov-19,500,RTB Education Consultancy
Bolton MBC,Childrens Services,Other Fees,14-Nov-19,"30,000.00",Salford City Council
Bolton MBC,Housing GRF,Rent Of Buildings,04-Nov-19,"1,095.00",Salton Properties
Bolton MBC,Housing GRF,Rent Of Buildings,04-Nov-19,"1,095.00",Salton Properties
Bolton MBC,Housing GRF,Rent Of Buildings,04-Nov-19,"1,095.00",Salton Properties
Bolton MBC,Public Health,Residential Provision,04-Nov-19,"1,900.47",Salus Withnell Hall Ltd
Bolton MBC,Childrens Services,Vol Assoc Grants - General,28-Nov-19,"18,214.29",Sandcastle Care Limited
Bolton MBC,Adult Services,Residential Provision,05-Nov-19,"2,011.48",Sandybrook House
Bolton MBC,Adult Services,Clients Aids & Adaptations,21-Nov-19,"1,165.16",Sarabec Limited
Bolton MBC,Adult Services,Clients Aids & Adaptations,21-Nov-19,"1,017.90",Sarabec Limited
Bolton MBC,Childrens Services,Other Fees,14-Nov-19,"5,255.40",Saville Group Ltd
Bolton MBC,Adult Services,Clients Aids & Adaptations,28-Nov-19,"2,156.40",Schuchmann LLP
Bolton MBC,Chief Executives,Electricity - General,18-Nov-19,"2,504.10",Scottish & Southern Energy plc#SSE
Bolton MBC,Childrens Services,Electricity - General,11-Nov-19,"3,087.44",Scottish & Southern Energy plc#SSE
Bolton MBC,Environmental Services,Electricity - General,21-Nov-19,"1,989.96",Scottish & Southern Energy plc#SSE
Bolton MBC,Childrens Services,Inter Agency Fees,21-Nov-19,"31,620.00",Scottish Adoption
Bolton MBC,Adult Services,Contracted Services,14-Nov-19,"14,238.00",SEA Recruitment Services Limited
Bolton MBC,Adult Services,Contracted Services,14-Nov-19,864,SEA Recruitment Services Limited
Bolton MBC,Childrens Services,Vol Assoc Grants - General,04-Nov-19,"2,749.90",Seashell Trust
Bolton MBC,Childrens Services,Vol Assoc Grants - General,25-Nov-19,"1,732.44",Seashell Trust
Bolton MBC,Bolton MBC Balance Sheet,CIS Deductions,25-Nov-19,"29,467.20",Seddon Construction Limited
Bolton MBC,Bolton MBC Balance Sheet,CIS Deductions,25-Nov-19,"1,290.00",Seddon Construction Limited
Bolton MBC,Highways ,Inventory AP Accrual,25-Nov-19,516,Seddons (Plant & Engineers) Ltd
Bolton MBC,Adult Services,Residential Provision,05-Nov-19,"15,798.64",Segal Gardens
Bolton MBC,Adult Services,Clients Aids & Adaptations,28-Nov-19,"4,680.00",Select Medical Limited
Bolton MBC,Adult Services,Clients Aids & Adaptations,28-Nov-19,"1,320.00",Select Medical Limited
Bolton MBC,Adult Services,Clients Aids & Adaptations,14-Nov-19,540,Select Medical Limited
Bolton MBC,Childrens Services,Other Fees,07-Nov-19,"3,150.00",SENCATT
Bolton MBC,Development & Regeneration,Other Security Expenses,25-Nov-19,"4,235.63",Servicom (High Tech) Ltd
Bolton MBC,Development & Regeneration,Other Security Expenses,25-Nov-19,"4,133.87",Servicom (High Tech) Ltd
Bolton MBC,Adult Services,Contracted Services,04-Nov-19,"14,898.24",Seva Line
Bolton MBC,Childrens Services,Other Fees,25-Nov-19,900,Shannon Educational Psychology Ltd
Bolton MBC,Childrens Services,Contracted Services,11-Nov-19,"1,000.00",Sharples School
Bolton MBC,Childrens Services,Contracted Services,11-Nov-19,500,Sharples School
Bolton MBC,Childrens Services,Contracted Services,11-Nov-19,500,Sharples School
Bolton MBC,Environmental Services,Contracted Services,07-Nov-19,"1,596.00",Shelley Signs Limited
Bolton MBC,Adult Services,Contracted Services,04-Nov-19,"26,647.33",Shenton House
Bolton MBC,Adult Services,Contracted Services,28-Nov-19,"26,647.33",Shenton House
Bolton MBC,Development & Regeneration,Other Fees,14-Nov-19,"1,652.40",Shoosmiths LLP
Bolton MBC,Environmental Services,Cleaning Materials,28-Nov-19,750,Shorrock Trichem Limited#Powercare#Coffee
Bolton MBC,Chief Executives,Civic Hospitality,28-Nov-19,888,Showmed
Bolton MBC,Adult Services,Contracted Services,14-Nov-19,"2,397.85",SignHealth#The Deaf Health Charity
Bolton MBC,Adult Services,Contracted Services,14-Nov-19,621.09,SignHealth#The Deaf Health Charity
Bolton MBC,Adult Services,Clients Aids & Adaptations,21-Nov-19,"1,754.82",SimplyMed Limited
Bolton MBC,Adult Services,Clients Aids & Adaptations,28-Nov-19,"1,332.00",SimplyMed Limited
Bolton MBC,Adult Services,Clients Aids & Adaptations,14-Nov-19,"1,176.00",SimplyMed Limited
Bolton MBC,Adult Services,Clients Aids & Adaptations,21-Nov-19,972,SimplyMed Limited
Bolton MBC,Childrens Services,Other Fees,21-Nov-19,"3,283.80",Simpson Millar LLP
Bolton MBC,Development & Regeneration,General Subscriptions,11-Nov-19,"3,900.00",SKV Communications Ltd
Bolton MBC,Environmental Services,Uniforms,28-Nov-19,813.6,SMI Int Group Limited
Bolton MBC,Adult Services,Clients Aids & Adaptations,28-Nov-19,985.68,Smitcare Limited
Bolton MBC,Environmental Services,Plant Hire,14-Nov-19,612,Smiths Equipment Hire Limited#2
Bolton MBC,Environmental Services,Plant Hire,21-Nov-19,513.36,Smiths Equipment Hire Limited#2
Bolton MBC,Environmental Services,Plant Hire,21-Nov-19,513.36,Smiths Equipment Hire Limited#2
Bolton MBC,Childrens Services,Vol Assoc Grants - General,14-Nov-19,"19,928.66",Social Care Services Group
Bolton MBC,Childrens Services,Vol Assoc Grants - General,11-Nov-19,"19,285.80",Social Care Services Group
Bolton MBC,Adult Services,Residential Provision,05-Nov-19,"12,051.40",Somerset House
Bolton MBC,Development & Regeneration,Agency Staff - Other,04-Nov-19,"5,237.00",Sonovate Limited#Park Avenue Recruitment Limited
Bolton MBC,Environmental Services,Agency Staff - Other,11-Nov-19,"3,892.69",South Ribble Borough Council
Bolton MBC,Childrens Services,Op Equip Furniture Purchase,07-Nov-19,741.3,Southerns Broadstock Limited
Bolton MBC,Childrens Services,Office Furniture Purchase,14-Nov-19,604.8,Southerns Broadstock Limited
Bolton MBC,Adult Services,Residential Provision,05-Nov-19,"1,866.20",Southview Lodge Residential Care Home
Bolton MBC,Chief Executives,Work in Progress Additions,18-Nov-19,"8,910.00",Special Catering Company (Albert Halls) Limited
Bolton MBC,Development & Regeneration,Work in Progress Additions,28-Nov-19,"21,059.48",Special Catering Company (Albert Halls) Limited
Bolton MBC,Development & Regeneration,Work in Progress Additions,28-Nov-19,"3,534.20",Special Catering Company (Albert Halls) Limited
Bolton MBC,Childrens Services,Catering - General,11-Nov-19,"2,388.00",Special Catering Holdings Limited#Heathcote & Co
Bolton MBC,Environmental Services,Operational Equipment Purchase,07-Nov-19,"6,300.00",Spectra Security Ltd
Bolton MBC,Adult Services,Residential Provision,05-Nov-19,"13,268.00",Spennymoor Care Home Ltd
Bolton MBC,Adult Services,Nursing Provision,05-Nov-19,"85,259.19",St Catherines Care Home
Bolton MBC,Adult Services,Nursing Provision,05-Nov-19,"3,400.00",St Georges Care Home (Wigan) Ltd
Bolton MBC,Childrens Services,Other Fees,21-Nov-19,"17,050.00",St James Secondary Academy#St James's Church Of England High School
Bolton MBC,Childrens Services,Legal Fees,28-Nov-19,"3,240.00",St Johns Buildings Barrister Chamber
Bolton MBC,Childrens Services,Legal Fees,18-Nov-19,"1,020.00",St Johns Buildings Barrister Chamber
Bolton MBC,Childrens Services,Legal Fees,28-Nov-19,965,St Johns Buildings Barrister Chamber
Bolton MBC,Childrens Services,Legal Fees,07-Nov-19,855,St Johns Buildings Barrister Chamber
Bolton MBC,Childrens Services,Legal Fees,28-Nov-19,810,St Johns Buildings Barrister Chamber
Bolton MBC,Childrens Services,Legal Fees,18-Nov-19,750,St Johns Buildings Barrister Chamber
Bolton MBC,Childrens Services,Legal Fees,14-Nov-19,560,St Johns Buildings Barrister Chamber
Bolton MBC,Adult Services,Nursing Provision,05-Nov-19,"2,085.08",St Marys Nursing Home
Bolton MBC,Childrens Services,Clients - Bus Passes,04-Nov-19,"1,596.00",Stagecoach Services Ltd
Bolton MBC,Adult Services,Residential Provision,05-Nov-19,"4,065.04",Stanley Grange#1
Bolton MBC,Adult Services,Residential Provision,05-Nov-19,"10,587.80",Starmount Villa Residential Care Home
Bolton MBC,Childrens Services,Other Fees,25-Nov-19,"4,650.00",States of Guernsey
Bolton MBC,Adult Services,Nursing Provision,05-Nov-19,"6,401.28",Stocks Hall Care Homes Ltd#St Helens
Bolton MBC,Childrens Services,Computer Purchase,28-Nov-19,"15,767.44",Stone Computers Limited
Bolton MBC,Childrens Services,Computer Purchase,04-Nov-19,"8,066.40",Stone Computers Limited
Bolton MBC,Childrens Services,Computer Purchase,28-Nov-19,"5,407.80",Stone Computers Limited
Bolton MBC,Childrens Services,Computer Purchase,28-Nov-19,"5,025.60",Stone Computers Limited
Bolton MBC,Childrens Services,Computer Purchase,07-Nov-19,"2,788.49",Stone Computers Limited
Bolton MBC,Childrens Services,Computer Purchase,28-Nov-19,"2,340.00",Stone Computers Limited
Bolton MBC,Childrens Services,Computer Purchase,25-Nov-19,"1,941.38",Stone Computers Limited
Bolton MBC,Childrens Services,Computer Purchase,28-Nov-19,"1,793.38",Stone Computers Limited
Bolton MBC,Childrens Services,Computer Purchase,04-Nov-19,"1,788.60",Stone Computers Limited
Bolton MBC,Childrens Services,Computer Purchase,04-Nov-19,"1,310.86",Stone Computers Limited
Bolton MBC,Childrens Services,Computer Purchase,28-Nov-19,959.4,Stone Computers Limited
Bolton MBC,Childrens Services,Computer Purchase,28-Nov-19,902.4,Stone Computers Limited
Bolton MBC,Childrens Services,Computer Purchase,25-Nov-19,803.54,Stone Computers Limited
Bolton MBC,Childrens Services,Computer Purchase,25-Nov-19,691.2,Stone Computers Limited
Bolton MBC,Childrens Services,Computer Purchase,28-Nov-19,628.2,Stone Computers Limited
Bolton MBC,Adult Services,Nursing Provision,05-Nov-19,"22,628.14",Strathmore Nursing And Residential Home
Bolton MBC,Adult Services,Nursing Provision,05-Nov-19,"4,568.11",Strathmore Nursing And Residential Home
Bolton MBC,Adult Services,Other Agency/Contracted Services,04-Nov-19,"3,482.88",Strathmore Nursing And Residential Home
Bolton MBC,Bolton MBC Balance Sheet,CIS Deductions,07-Nov-19,"8,760.00",Stressweld Limited
Bolton MBC,Childrens Services,Staff Conference Expenses,21-Nov-19,758.4,Strictly Education 4S Limited
Bolton MBC,Adult Services,Clients Aids & Adaptations,14-Nov-19,"2,340.00",Sumed International (UK) Limited
Bolton MBC,Adult Services,Clients Aids & Adaptations,04-Nov-19,"1,440.00",Sumed International (UK) Limited
Bolton MBC,Adult Services,Clients Aids & Adaptations,25-Nov-19,584.52,Sumed International (UK) Limited
Bolton MBC,Chief Executives,AR Unapplied Receipts Refunds,04-Nov-19,"3,446.57",Sunning Hill Primary School
Bolton MBC,Adult Services,Residential Provision,05-Nov-19,"45,120.00",Sunnyside Residential Home
Bolton MBC,Adult Services,Contracted Services,14-Nov-19,"91,630.84",SureCare Bolton#Sakinas Healthcare Limited
Bolton MBC,Adult Services,Contracted Services,18-Nov-19,"2,223.15",SureCare Bolton#Sakinas Healthcare Limited
Bolton MBC,Adult Services,Contracted Services,18-Nov-19,"2,154.43",SureCare Bolton#Sakinas Healthcare Limited
Bolton MBC,Childrens Services,Vol Assoc Grants - General,07-Nov-19,741.02,Swiis Foster Care Limited
Bolton MBC,Childrens Services,Vol Assoc Grants - General,14-Nov-19,741.02,Swiis Foster Care Limited
Bolton MBC,Childrens Services,Vol Assoc Grants - General,21-Nov-19,741.02,Swiis Foster Care Limited
Bolton MBC,Childrens Services,Vol Assoc Grants - General,25-Nov-19,741.02,Swiis Foster Care Limited
Bolton MBC,Childrens Services,Other Fees,11-Nov-19,"1,620.00",Synchrony Psychology Limited
Bolton MBC,Adult Services,Contracted Services,04-Nov-19,"25,375.80",Synergy Homecare
Bolton MBC,Environmental Services,Caretaking/Cleaning Equipment,07-Nov-19,"1,235.89",System Hygiene Limited
Bolton MBC,Bolton MBC Balance Sheet,CIS Deductions,28-Nov-19,"2,040.00",T Lowe & Son Limited
Bolton MBC,Adult Services,Residential Provision,05-Nov-19,"11,321.43",Take a Break with Choices
Bolton MBC,Adult Services,Residential Provision,05-Nov-19,"5,600.00",Take a Break with Choices
Bolton MBC,Environmental Services,Artistes Fees,04-Nov-19,"6,631.70",Tangent Management Ltd
Bolton MBC,Childrens Services,Other Fees,21-Nov-19,"1,185.88",Target Psychology Limited
Bolton MBC,Environmental Services,Contracted Services,18-Nov-19,"15,905.96",Terberg Matec UK
Bolton MBC,Environmental Services,Contracted Services,28-Nov-19,"3,662.10",Terberg Matec UK
Bolton MBC,Environmental Services,Contracted Services,28-Nov-19,"3,302.94",Terberg Matec UK
Bolton MBC,Environmental Services,Vehicle Servicing,07-Nov-19,"1,733.86",Terberg Matec UK
Bolton MBC,Environmental Services,Vehicle Servicing,07-Nov-19,"1,261.48",Terberg Matec UK
Bolton MBC,Environmental Services,Vehicle Servicing,28-Nov-19,917.07,Terberg Matec UK
Bolton MBC,Environmental Services,Vehicle Servicing,28-Nov-19,549.43,Terberg Matec UK
Bolton MBC,Adult Services,Residential Provision,05-Nov-19,"2,269.32",The Beeches Nursing Home
Bolton MBC,Adult Services,Residential Provision,05-Nov-19,"3,964.40",The Brandles
Bolton MBC,Adult Services,Residential Provision,05-Nov-19,"21,634.08",The Bungalow Residential Home
Bolton MBC,Adult Services,Residential Provision,05-Nov-19,"4,091.54",The Chanters Care Home
Bolton MBC,Childrens Services,Other Fees,11-Nov-19,"1,334.25",The Child Psychology Service Limited
Bolton MBC,Environmental Services,Direct Materials,11-Nov-19,600,The Columbaria Company
Bolton MBC,Environmental Services,Direct Materials,11-Nov-19,504,The Columbaria Company
Bolton MBC,Adult Services,Nursing Provision,05-Nov-19,"2,523.00",The Conifers Nursing Home
Bolton MBC,Adult Services,Residential Provision,05-Nov-19,"11,611.80",The David Lewis Centre
Bolton MBC,Environmental Services,Contracted Services,14-Nov-19,"1,058.40",The ExcluSec Group Limited T/As ExcluSec Security
Bolton MBC,Adult Services,Residential Provision,05-Nov-19,"1,764.00",The Hamiltons Care Home
Bolton MBC,Adult Services,Clients Aids & Adaptations,14-Nov-19,"5,220.00",The Key Safe Company#Supra UK Ltd
Bolton MBC,Adult Services,Clients Aids & Adaptations,28-Nov-19,"5,220.00",The Key Safe Company#Supra UK Ltd
Bolton MBC,Childrens Services,Leaving Care University Costs,28-Nov-19,"6,868.08",The Leaving Care Team
Bolton MBC,Childrens Services,Leaving Care University Costs,28-Nov-19,"5,834.90",The Leaving Care Team
Bolton MBC,Childrens Services,Leaving Care University Costs,07-Nov-19,"2,249.65",The Leaving Care Team
Bolton MBC,Childrens Services,Client Support Costs,28-Nov-19,"1,865.30",The Leaving Care Team
Bolton MBC,Childrens Services,Leaving Care University Costs,07-Nov-19,"1,012.76",The Leaving Care Team
Bolton MBC,Adult Services,Contracted Services,04-Nov-19,"36,491.19",The Local Care Company (Bolton) Limited
Bolton MBC,Adult Services,Contracted Services,04-Nov-19,647.62,The Local Care Company (Bolton) Limited
Bolton MBC,Adult Services,Residential Provision,05-Nov-19,"5,180.00",The Lodge Buckshaw Retirement Village#The Lodge
Bolton MBC,Adult Services,Residential Provision,05-Nov-19,"19,404.48",The Meadows
Bolton MBC,Chief Executives,Contracted Services,25-Nov-19,"2,155.21",The Midcounties Co-operative
Bolton MBC,Chief Executives,Printing General,25-Nov-19,921.6,The Nottingham Label Company Limited
Bolton MBC,Chief Executives,Printing General,25-Nov-19,531.6,The Nottingham Label Company Limited
Bolton MBC,Adult Services,Residential Provision,05-Nov-19,"17,434.80",The Old Vicarage
Bolton MBC,Adult Services,Residential Provision,05-Nov-19,"3,975.48",The Orchard
Bolton MBC,Adult Services,Residential Provision,05-Nov-19,"2,288.88",The Spinal Unit Action Group
Bolton MBC,Adult Services,Residential Provision,05-Nov-19,"3,400.00",The Spires
Bolton MBC,Adult Services,Contracted Services,04-Nov-19,"34,976.72",The Together Trust
Bolton MBC,Childrens Services,Vol Assoc Grants - General,07-Nov-19,"17,670.00",The Together Trust
Bolton MBC,Chief Executives,Training Exps Tuition Fees,11-Nov-19,990,The Training Co
Bolton MBC,Childrens Services,Agency Staff - Other,25-Nov-19,"3,987.50",The University Of Manchester
Bolton MBC,Childrens Services,Training Exps Tuition Fees,14-Nov-19,"3,800.00",The University Of Manchester
Bolton MBC,Childrens Services,Training Exp - Ext Seminars,14-Nov-19,"1,900.00",The University Of Manchester
Bolton MBC,Childrens Services,Vol Assoc Grants - General,07-Nov-19,"3,814.50",Therapeutic Fostering Limited
Bolton MBC,Childrens Services,Vol Assoc Grants - General,07-Nov-19,"3,636.60",Therapeutic Fostering Limited
Bolton MBC,Childrens Services,Vol Assoc Grants - General,07-Nov-19,"3,400.80",Therapeutic Fostering Limited
Bolton MBC,Childrens Services,Vol Assoc Grants - General,07-Nov-19,"3,392.10",Therapeutic Fostering Limited
Bolton MBC,Chief Executives,Computer Software Licences,21-Nov-19,"3,201.60",Thomson Reuters (Professional) UK Limited#Practical Law Company Limited
Bolton MBC,Childrens Services,Vol Assoc Grants - General,14-Nov-19,"3,675.36",Three Circles Fostering Ltd
Bolton MBC,Childrens Services,Vol Assoc Grants - General,14-Nov-19,"3,675.36",Three Circles Fostering Ltd
Bolton MBC,Environmental Services,Horticultural Materials,18-Nov-19,621.5,Tillage Nurseries
Bolton MBC,Environmental Services,Horticultural Materials,04-Nov-19,549.12,Tillage Nurseries
Bolton MBC,Childrens Services,Other Fees,21-Nov-19,"1,584.00",Tiptoes Child Therapy Services ( Ltd)
Bolton MBC,Childrens Services,Other Fees,04-Nov-19,"1,344.00",Tiptoes Child Therapy Services ( Ltd)
Bolton MBC,Childrens Services,Other Fees,21-Nov-19,"1,344.00",Tiptoes Child Therapy Services ( Ltd)
Bolton MBC,Childrens Services,Other Fees,21-Nov-19,792,Tiptoes Child Therapy Services ( Ltd)
Bolton MBC,Childrens Services,Other Fees,07-Nov-19,672,Tiptoes Child Therapy Services ( Ltd)
Bolton MBC,Childrens Services,Other Fees,07-Nov-19,504,Tiptoes Child Therapy Services ( Ltd)
Bolton MBC,Childrens Services,Other Fees,21-Nov-19,504,Tiptoes Child Therapy Services ( Ltd)
Bolton MBC,Adult Services,Clients Aids & Adaptations,25-Nov-19,"1,094.40",Tom Gallagher Limited
Bolton MBC,Adult Services,Clients Aids & Adaptations,14-Nov-19,808.46,Tom Gallagher Limited
Bolton MBC,Adult Services,Clients Aids & Adaptations,25-Nov-19,553.62,Tom Gallagher Limited
Bolton MBC,Bolton MBC Balance Sheet,CIS Deductions,14-Nov-19,878.81,Tom Gallagher Limited
Bolton MBC,Bolton MBC Balance Sheet,CIS Deductions,14-Nov-19,568.07,Tom Gallagher Limited
Bolton MBC,Bolton MBC Balance Sheet,CIS Deductions,14-Nov-19,553.2,Tom Gallagher Limited
Bolton MBC,Bolton MBC Balance Sheet,CIS Deductions,14-Nov-19,507.54,Tom Gallagher Limited
Bolton MBC,Childrens Services,Client Support Costs,21-Nov-19,"22,714.29",Transitional Plus Care CIC Limited
Bolton MBC,Childrens Services,Client Support Costs,21-Nov-19,"5,464.29",Transitional Plus Care CIC Limited
Bolton MBC,Childrens Services,Clients - Bus Passes,25-Nov-19,897.49,Transport For Greater Manchester
Bolton MBC,Development & Regeneration,Work in Progress Additions,25-Nov-19,"2,621.44",Transport For Greater Manchester
Bolton MBC,Adult Services,Clients Aids & Adaptations,28-Nov-19,"3,360.00",Tunstall Healthcare (UK) Limited
Bolton MBC,Adult Services,Clients Aids & Adaptations,07-Nov-19,816,Tunstall Healthcare (UK) Limited
Bolton MBC,Adult Services,Clients Aids & Adaptations,14-Nov-19,692.11,Tunstall Healthcare (UK) Limited
Bolton MBC,Adult Services,Clients Aids & Adaptations,07-Nov-19,631.09,Tunstall Healthcare (UK) Limited
Bolton MBC,Childrens Services,Fees/Expenses Schools,11-Nov-19,"1,807.73",Turton School#Turton High School
Bolton MBC,Childrens Services,Contracted Services,11-Nov-19,"1,500.00",Turton School#Turton High School
Bolton MBC,Chief Executives,Vehicle Purchase,18-Nov-19,"33,800.53",Tusker
Bolton MBC,Highways ,Work in Progress Additions,07-Nov-19,"1,260.00",TWM Traffic Control Systems Limited
Bolton MBC,Childrens Services,Other Fees,21-Nov-19,983.5,U-IN-MIND
Bolton MBC,Environmental Services,Operational Equipment Purchase,28-Nov-19,"1,112.40",UK Container Maintenance Limited
Bolton MBC,Childrens Services,Vol Assoc Grants - General,21-Nov-19,"4,428.66",UK Fostering Limited
Bolton MBC,Childrens Services,Vol Assoc Grants - General,07-Nov-19,"4,285.80",UK Fostering Limited
Bolton MBC,Childrens Services,Vol Assoc Grants - General,21-Nov-19,"3,587.01",UK Fostering Limited
Bolton MBC,Childrens Services,Vol Assoc Grants - General,07-Nov-19,"3,471.30",UK Fostering Limited
Bolton MBC,Childrens Services,Vol Assoc Grants - General,07-Nov-19,"1,758.40",UK Fostering Limited
Bolton MBC,Childrens Services,Vol Assoc Grants - General,07-Nov-19,"1,758.40",UK Fostering Limited
Bolton MBC,Childrens Services,Vol Assoc Grants - General,07-Nov-19,"1,680.00",UK Fostering Limited
Bolton MBC,Development & Regeneration,Book Fund Expenditure,25-Nov-19,664.94,Ulverscroft Large Print Books Limited
Bolton MBC,Environmental Services,Computer Software Licences,21-Nov-19,600.38,Unique IQ Limited
Bolton MBC,Environmental Services,Contracted Services,07-Nov-19,"1,491.22",Universal Body Repairs Ltd
Bolton MBC,Environmental Services,Contracted Services,28-Nov-19,"1,341.77",Universal Body Repairs Ltd
Bolton MBC,Environmental Services,Contracted Services,28-Nov-19,"1,024.80",Universal Body Repairs Ltd
Bolton MBC,Chief Executives,Promoting Events,28-Nov-19,558,Universal Tanker Solutions Limited
Bolton MBC,Environmental Services,Training Exps Tuition Fees,28-Nov-19,"2,996.00",University of Bolton
Bolton MBC,Childrens Services,Training - Exam Fees,28-Nov-19,"2,592.00",University of Salford
Bolton MBC,Childrens Services,Training Exps Tuition Fees,07-Nov-19,750,University of Salford
Bolton MBC,Childrens Services,Other Fees,14-Nov-19,574.01,University of Salford
Bolton MBC,Public Health,Training Exps Tuition Fees,04-Nov-19,"2,592.00",University of Salford
Bolton MBC,Chief Executives,Governer Support-LEA,14-Nov-19,"7,433.00",Urban Outreach (Bolton)
Bolton MBC,Chief Executives,Governer Support-LEA,14-Nov-19,"7,079.00",Urban Outreach (Bolton)
Bolton MBC,Chief Executives,Governer Support-LEA,14-Nov-19,"5,190.00",Urban Outreach (Bolton)
Bolton MBC,Childrens Services,Contracted Services,28-Nov-19,"12,500.00",Urban Outreach (Bolton)
Bolton MBC,Development & Regeneration,Agency Staff - Other,18-Nov-19,"6,718.40",Urban Vision Partnership Limited#GMGU
Bolton MBC,Development & Regeneration,Agency Staff - Other,11-Nov-19,"2,400.28",Urban Vision Partnership Limited#GMGU
Bolton MBC,Adult Services,Nursing Provision,05-Nov-19,"26,996.78",Vale House
Bolton MBC,Environmental Services,Contracted Services,07-Nov-19,"1,896.00",Vanliners Limited
Bolton MBC,Environmental Services,Contracted Services,07-Nov-19,"1,320.00",Vanliners Limited
Bolton MBC,Childrens Services,Vol Assoc Grants - General,04-Nov-19,"6,723.57",Vcare-24 Limited
Bolton MBC,Childrens Services,Vol Assoc Grants - General,11-Nov-19,"6,723.57",Vcare-24 Limited
Bolton MBC,Childrens Services,Vol Assoc Grants - General,18-Nov-19,"6,723.57",Vcare-24 Limited
Bolton MBC,Childrens Services,Vol Assoc Grants - General,04-Nov-19,"6,720.00",Vcare-24 Limited
Bolton MBC,Childrens Services,Vol Assoc Grants - General,11-Nov-19,"6,720.00",Vcare-24 Limited
Bolton MBC,Childrens Services,Vol Assoc Grants - General,18-Nov-19,"6,720.00",Vcare-24 Limited
Bolton MBC,Childrens Services,Vol Assoc Grants - General,28-Nov-19,"6,720.00",Vcare-24 Limited
Bolton MBC,Childrens Services,Vol Assoc Grants - General,04-Nov-19,"6,252.89",Vcare-24 Limited
Bolton MBC,Childrens Services,Vol Assoc Grants - General,11-Nov-19,"6,252.89",Vcare-24 Limited
Bolton MBC,Childrens Services,Vol Assoc Grants - General,18-Nov-19,"6,252.89",Vcare-24 Limited
Bolton MBC,Childrens Services,Vol Assoc Grants - General,28-Nov-19,"6,252.89",Vcare-24 Limited
Bolton MBC,Childrens Services,Vol Assoc Grants - General,04-Nov-19,"6,219.01",Vcare-24 Limited
Bolton MBC,Childrens Services,Vol Assoc Grants - General,11-Nov-19,"6,219.01",Vcare-24 Limited
Bolton MBC,Childrens Services,Vol Assoc Grants - General,18-Nov-19,"6,219.01",Vcare-24 Limited
Bolton MBC,Childrens Services,Vol Assoc Grants - General,28-Nov-19,"6,219.01",Vcare-24 Limited
Bolton MBC,Chief Executives,Agency Staff - Other,21-Nov-19,"1,392.80",Venn Group Limited
Bolton MBC,Chief Executives,Agency Staff - Other,28-Nov-19,"1,392.80",Venn Group Limited
Bolton MBC,Chief Executives,Agency Staff - Other,07-Nov-19,585.64,Venn Group Limited
Bolton MBC,Childrens Services,Other Fees,07-Nov-19,644.21,Redacted - Personal Data
Bolton MBC,Childrens Services,Other Fees,28-Nov-19,585,Redacted - Personal Data
Bolton MBC,Childrens Services,Operational Equipment Purchase,07-Nov-19,"5,999.52",Virgin Media Payments Limited#Virgin Media Business
Bolton MBC,Environmental Services,Refuse Collection,14-Nov-19,"7,947.00",Viridor Waste Management Limited
Bolton MBC,Chief Executives,Mobile Telephone Rental,07-Nov-19,"55,653.88",Vodafone Limited#1
Bolton MBC,Chief Executives,Mobile Telephone Purchase,07-Nov-19,"2,030.40",Vodafone Limited#1
Bolton MBC,Chief Executives,Mobile Telephone Purchase,28-Nov-19,"1,027.20",Vodafone Limited#1
Bolton MBC,Environmental Services,Artistes Fees,07-Nov-19,"3,667.50",Vogue Duo
Bolton MBC,Adult Services,Contracted Services,04-Nov-19,"13,951.28",Voyage 1 Limited Trading As Voyage Care
Bolton MBC,Environmental Services,Contracted Services,25-Nov-19,805.06,W & S C Jobson
Bolton MBC,Environmental Services,Contracted Services,25-Nov-19,539.19,W & S C Jobson
Bolton MBC,Chief Executives,Civic Hospitality,28-Nov-19,"3,360.00",Walk The Plank Fireworks Ltd
Bolton MBC,Adult Services,Residential Provision,05-Nov-19,"1,952.20",Walshaw Hall Residential Home
Bolton MBC,Bolton MBC Balance Sheet,CIS Deductions,21-Nov-19,"291,914.64",Walter Carefoot & Sons Construction Limited
Bolton MBC,Adult Services,Nursing Provision,05-Nov-19,"2,378.20",Walton House Nursing Home
Bolton MBC,Childrens Services,Water Charges - Metered,18-Nov-19,"47,188.13",Water Plus
Bolton MBC,Childrens Services,Water Charges - Metered,18-Nov-19,"40,892.39",Water Plus
Bolton MBC,Childrens Services,Water Charges - Metered,18-Nov-19,"38,587.83",Water Plus
Bolton MBC,Development & Regeneration,Water Charges - Metered,28-Nov-19,"53,539.60",Water Plus
Bolton MBC,Development & Regeneration,Water Charges - Metered,18-Nov-19,"49,035.69",Water Plus
Bolton MBC,Environmental Services,Water Charges - Metered,18-Nov-19,"52,796.31",Water Plus
Bolton MBC,Environmental Services,Water Charges - Metered,18-Nov-19,"49,341.65",Water Plus
Bolton MBC,Chief Executives,Other Fees,07-Nov-19,"10,364.64",Weightmans LLP
Bolton MBC,Chief Executives,Other Fees,07-Nov-19,"3,929.76",Weightmans LLP
Bolton MBC,Chief Executives,Other Fees,18-Nov-19,"1,318.32",Weightmans LLP
Bolton MBC,Development & Regeneration,Other Fees,18-Nov-19,"11,700.38",Weightmans LLP
Bolton MBC,Adult Services,Residential Provision,05-Nov-19,"2,460.52",Wentworth House Care Services Ltd
Bolton MBC,Development & Regeneration,Other Fees,04-Nov-19,500,Westhoughton Lions Rugby League Club
Bolton MBC,Adult Services,Nursing Provision,05-Nov-19,"2,284.00",Westleigh Lodge#Westleigh Lodge Care Home
Bolton MBC,Adult Services,Residential Provision,05-Nov-19,"47,684.00",Westmead
Bolton MBC,Adult Services,Residential Provision,05-Nov-19,"2,113.44",Westwood Residential Care Home
Bolton MBC,Chief Executives,Agilisys - Managed Service,18-Nov-19,"52,392.73",Wigan Council
Bolton MBC,Chief Executives,Agilisys - Managed Service,18-Nov-19,"45,208.80",Wigan Council
Bolton MBC,Chief Executives,Agilisys - Managed Service,18-Nov-19,"10,524.00",Wigan Council
Bolton MBC,Chief Executives,Agilisys - Managed Service,18-Nov-19,"7,104.84",Wigan Council
Bolton MBC,Chief Executives,Computer Software Licences,25-Nov-19,"4,327.02",Wigan Council
Bolton MBC,Chief Executives,Disclosure Monitoring,21-Nov-19,"1,500.00",Wigan Council
Bolton MBC,Environmental Services,Transport Hire,04-Nov-19,643.71,Wigan Council
Bolton MBC,Development & Regeneration,Office Stationery,18-Nov-19,"3,612.00",Wigan Pier Promotions
Bolton MBC,Development & Regeneration,Work in Progress Additions,28-Nov-19,661.86,Wilde Consultants Limited
Bolton MBC,Environmental Services,Agency Staff - Full-time,14-Nov-19,"3,882.34",Wilde Consultants Limited
Bolton MBC,Development & Regeneration,Work in Progress Additions,28-Nov-19,"778,667.40",Willmott Dixon Construction Limited
Bolton MBC,Environmental Services,Clients - Taxi Fares,25-Nov-19,"3,641.00",Willows Minibus
Bolton MBC,Adult Services,Residential Provision,05-Nov-19,"47,840.00",Wingates Residential Home
Bolton MBC,Adult Services,Residential Provision,05-Nov-19,"82,668.57",Withins Residential Home
Bolton MBC,Adult Services,Residential Provision,05-Nov-19,"2,360.00",Withins Residential Home
Bolton MBC,Adult Services,Residential Provision,05-Nov-19,"6,288.00",Woodlands Court Residential Home
Bolton MBC,Adult Services,Residential Provision,05-Nov-19,"26,678.00",Woodlands House Residential Home Ltd
Bolton MBC,Adult Services,Residential Provision,05-Nov-19,"55,710.00",Woodlands Westhoughton
Bolton MBC,Environmental Services,Contracted Services,28-Nov-19,"2,537.71",Woodscape Limited
Bolton MBC,Adult Services,Residential Provision,05-Nov-19,"1,866.96",Worsley Lodge Nursing Home
Bolton MBC,Environmental Services,Marketing,14-Nov-19,"1,776.60",WV Howe Limited
Bolton MBC,Environmental Services,General Materials,21-Nov-19,"8,038.98",Wybone Limited
Bolton MBC,Highways ,Inventory AP Accrual,07-Nov-19,771.54,Yeshili Reflectives T/A Vizwear
Bolton MBC,Highways ,Inventory AP Accrual,04-Nov-19,615,Yeshili Reflectives T/A Vizwear
Bolton MBC,Development & Regeneration,Op Equip Furniture Purchase,29-Nov-19,"1,127.88",Yorkshire Purchasing Organisation
Bolton MBC,Childrens Services,Vol Assoc Grants - General,18-Nov-19,"34,414.29",Young Foundations Limited
Bolton MBC,Childrens Services,Vol Assoc Grants - General,18-Nov-19,"29,014.29",Young Foundations Limited
Bolton MBC,Adult Services,Contracted Services,14-Nov-19,"1,058.60",Your Care (UK) Limited
Bolton MBC,Adult Services,Contracted Services,14-Nov-19,537.2,Your Care (UK) Limited
Bolton MBC,Adult Services,Contracted Services,07-Nov-19,"1,056.65",Your Choice Homecare
Bolton MBC,Adult Services,Contracted Services,25-Nov-19,"1,052.40",Your Choice Homecare
Bolton MBC,Adult Services,Contracted Services,14-Nov-19,"1,047.50",Your Choice Homecare
Bolton MBC,Adult Services,Contracted Services,07-Nov-19,"7,679.84",Your Life Your Support Limited
Bolton MBC,Adult Services,Contracted Services,25-Nov-19,"7,679.84",Your Life Your Support Limited
Bolton MBC,Adult Services,Contracted Services,21-Nov-19,"4,461.50",Your Life Your Support Limited
Bolton MBC,Childrens Services,Legal Fees,18-Nov-19,"1,440.00",Zenith Chambers
